Workbook

Sheet Protokół
A1: ………………………...………….… | K1: PROTOKÓŁ NR | N1: …………………….. | S1: DLA REGIONU FADN | V1: A
A2: (gmina)
A3: z oszacowania zakresu i wysokości szkód w gospodarstwie rolnym lub dziale specjalnym produkcji rolnej spowodowanych wystąpieniem niekorzystnego zjawiska atmosferycznego:
C4: (właściwe zaznacz - | I4: x | J4: )
B5: □ | C5: z całego gospodarstwa | M5: □ | N5: z części gospodarstwa
A6: 1. Dane producenta rolnego:
A8: Imię i nazwisko/nazwa producenta rolnego | G8: ……………………………………… ………………………...…………… | L8: Adres i miejsce zamieszkania/adres i siedziba producenta rolnego/adres i miejsce położenia gospodarstwa rolnego lub prowadzenia działu specjalnego produkcji rolnej | R8: …………………………...……………… ………………………...……….....…….
A9: Gmina
A11: Numer identyfikacyjny producenta rolnego nadawany w trybie przepisów o krajowym systemie ewidencji producentów, ewidencji gospodarstw rolnych oraz ewidencji wniosków o przyznanie płatności – jeżeli został nadany
A13: Szkoda została zgłoszona przez producenta rolnego do Urzędu Gminy/Miasta | M13: ………………………………….. | Q13: w dniu | S13: …………...…………..
A15: 2. Dane dotyczące komisji ds. oszacowania szkód:
A16: Komisja ds. oszacowania szkód w gospodarstwach rolnych lub działach specjalnych produkcji rolnej powołana przez Wojewodę | L16: ……………………………………………….…….. | R16: zarządzeniem/pismem
A18: numer/znak | D18: ………………………. | I18: z dnia | J18: ……………………………..………… | O18: w składzie:
B20: Imię i Nazwisko | I20: Instytucja: | N20: Imię i Nazwisko | R20: Instytucja:
A21: 1. | B21: …………………………………. | I21: …….……………………. | M21: 6. | N21: …………...………………………. | R21: ………………………………
A22: 2. | B22: …………………………………. | I22: …….……………………. | M22: 7. | N22: …………...………………………. | R22: ………………………………
A23: 3. | B23: …………………………………. | I23: …….……………………. | M23: 8. | N23: …………...………………………. | R23: ………………………………
A24: 4. | B24: …………………………………. | I24: …….……………………. | M24: 9. | N24: …………...………………………. | R24: ………………………………
A25: 5. | B25: …………………………………. | I25: …….……………………. | M25: 10. | N25: …………...………………………. | R25: ………………………………
A27: 3. Dane dotyczące oszacowania szkód:
A28: Komisja przeprowadziła w dniu | G28: ………………………. | J28: oszacowanie szkód na miejscu w ww. gospodarstwie rolnym/dziale specjalnym produkcji rolnej poszkodowanego oraz
A29: stwierdziła wystąpienie szkód powstałych w wyniku następującego zjawiska atmosferycznego: | O29: Dzień | P29: Miesiąc | R29: Rok
B30: (właściwe zaznacz - | E30: x | F30: ) | I30: data wystąpienia szkód (należy wybrać datę z listy rozwijanej) | O30: 1 | P30: Styczeń | R30: 2026
A32: □ | B32: suszy w środku trwałym | I32: □ | J32: powodzi
A33: □ | B33: gradu | I33: □ | J33: huraganu
A34: □ | B34: deszczu nawalnego | I34: □ | J34: piorunu
A35: □ | B35: ujemnych skutków przezimowania | I35: □ | J35: obsunięcia się ziemi
A36: □ | B36: przymrozków wiosennych | I36: □ | J36: lawiny
A38: Średni plon i cena sprzedaży ustalona w gospodarstwie na podstawie:
A39: ( | B39: właściwe zaznacz - | E39: x | F39: )
A40: □ | B40: ksiąg rachunkowych | G40: □ | H40: innej ewidencji lub dokumentów przedłożonych przez producenta rolnego potwierdzających uzyskanie plonów (podać jakie): | S40: □ | T40: danych IERiGŻ
H41: …………………………………………………………………………………………………………
A43: Kwota obniżenia dochodu w wyniku szkód w produkcji roślinnej wynosi | N43: ='Prod. roślinna'!M47-N45+N46+'Prod. roślinna'!I64 -> 0 | O43: zł, co stanowi | R43: =IFERROR((N43/N60),0) -> 0 | T43: średniej rocznej produkcji,
A45: Koszty nieponiesione wynoszą łącznie | N45: ='Prod. roślinna'!N47+'Prod. roślinna'!K64 -> 0 | O45: zł,
A46: Koszty poniesione z powodu nie zebrania plonów wynoszą łącznie | N46: ='Prod. roślinna'!R47+'Prod. roślinna'!L64 -> 0 | O46: zł
A48: Kwota obniżenia dochodu w wyniku szkód w produkcji zwierzęcej towarowej bez produkcji ryb wynosi | N48: ='Prod. roślinna'!K47+'Prod. roślinna'!H64+'Prod. zwierzęca towar.'!K57-N50+N51 -> 0 | O48: zł, co stanowi | R48: =IFERROR((N48/N61),0) -> 0 | T48: średniej rocznej produkcji,
A50: Koszty nieponiesione wynoszą łącznie | N50: ='Prod. zwierzęca towar.'!L57 -> 0 | O50: zł,
A51: Koszty poniesione z powodu wystąpienia niekorzystnych zjawisk wynoszą łącznie | N51: ='Prod. zwierzęca towar.'!M57 -> 0 | O51: zł
A53: Kwota obniżenia dochodu w wyniku szkód w produkcji ryb wynosi | N53: ='Prod. ryb'!K20-N55+N56 -> 0 | O53: zł, co stanowi | R53: =IFERROR((N53/N62),0) -> 0 | T53: średniej rocznej produkcji,
A55: Koszty nieponiesione wynoszą łącznie | N55: ='Prod. ryb'!M20 -> 0 | O55: zł,
A56: Koszty poniesione z powodu wystąpienia niekorzystnych zjawisk wynoszą łącznie | N56: ='Prod. ryb'!N20 -> 0 | O56: zł
A58: Średnia wartość produkcji ( roślinnej + zwierzęcej towarowej bez produkcji ryb + ryb) z gospodarstwa rolnego
A59: wyniosła ogółem | N59: =N60+N61+N62 -> 0 | O59: zł, w tym:
A60: wartość produkcji roślinnej | N60: ='Prod. roślinna'!H47+'Prod. roślinna'!G64 -> 0 | O60: zł
A61: wartość produkcji zwierzęcej towarowej bez produkcji ryb | N61: ='Prod. zwierzęca towar.'!H57 -> 0 | O61: zł | U61: PROTOKÓŁ NR
A62: wartość produkcji ryb | N62: ='Prod. ryb'!H20 -> 0 | O62: zł | U62: =N1 -> ……………………..
A64: Łączna wysokość oszacowanych szkód wg kwoty obniżenia dochodu w gospodarstwie rolnym
A66: (produkcji roślinnej + produkcji zwierzęcej towarowej bez produkcji ryb +produkcji ryb) wyniosła ogółem | N66: =N43+N48+N53 -> 0 | P66: zł, co stanowi | R66: =IFERROR((N66/N59),0) -> 0 | T66: średniej rocznej produkcji w gospodarstwie rolnym.
A68: 4. Powierzchnie w gospodarstwie rolnym:
A69: Całkowita powierzchnia upraw rolnych w danym sezonie wegetacyjnym, z których w danym roku przewidziany jest zbiór plonu w gospodarstwie rolnym (zgodnie z wnioskiem o płatności w ramach wsparcia bezpośredniego, o ile został złożony, bez uwzględnienia ugorów, odłogów, czy nieużytków)
A70: wynosi: | C70: ='Prod. roślinna'!D47+'Prod. roślinna'!F64 -> 0 | G70: ha, w tym:
A72: powierzchnia upraw rolnych w dniu wystąpienia szkód z wyłączeniem wieloletnich użytków zielonych (UZ) | N72: ='Prod. roślinna'!D47-'Prod. roślinna'!Q47+'Prod. roślinna'!N64 -> 0 | O72: ha
A73: powierzchnia upraw rolnych dotknięta zjawiskiem wynosi | N73: ='Prod. roślinna'!S47+'Prod. roślinna'!M64 -> 0 | O73: ha
A74: powierzchnia upraw w których wystąpiły szkody co najmniej 70 % | N74: ='Prod. roślinna'!P47+'Prod. roślinna'!R64 -> 0 | O74: ha
A75: Powierzchnia gospodarstwa rolnego | N75: …….…… | O75: ha
A77: 5. Szkody w środkach trwałych:
A78: Szkody w środkach trwałych wynoszą łącznie | J78: =J79+J80+J81+J82 -> 0 | M78: zł, w tym:
A79: sadach i plantacjach wieloletnich | J79: ='Uprawy trwałe'!K23 -> 0 | L79: zł
A80: stadach podstawowych zwierząt gospodarskich | J80: ='Środki trwałe'!E16 -> 0 | L80: zł
A81: budynkach i budowlach służących do produkcji rolnej | J81: ='Środki trwałe'!E34 -> 0 | L81: zł
A82: maszynach i narzędziach służących do produkcji rolnej | J82: ='Środki trwałe'!E25 -> 0 | L82: zł
A84: 6. Dane dotyczące ubezpieczenia:
A85: Czy producent rolny zawarł umowę obowiązkowego lub dobrowolnego ubezpieczenia | N85: (właściwe zaznacz - | P85: x | Q85: )
A86: □ | B86: NIE | E86: □ | F86: TAK
A88: Jeżeli tak to w jakim zakresie: | H88: (właściwe zaznacz - | K88: x | L88: ) | U88: PROTOKÓŁ NR
A90: □ | B90: uprawy | H90: □ | I90: zwierzęta | M90: □ | N90: budynki | Q90: □ | R90: maszyny | U90: =N1 -> ……………………..
B92: Nazwa upraw | J92: Powierzchnia upraw ubezpieczonych | N92: Nazwa zwierząt | R92: Liczba zwierząt ubezpieczonych
A99: Kwota uzyskanego odszkodowania z tytułu ubezpieczenia upraw rolnych, zwierząt gospodarskich, ryb, środków trwałych wynosi:
A101: upraw rolnych | F101: …………………… | J101: zł
A102: zwierząt gospodarskich | F102: ……………………. | J102: zł
A103: ryb | F103: ……………………. | J103: zł
A104: środków trwałych | F104: ……………………. | J104: zł
A106: 7. Dane dotyczące gruntów rolnych w innych gminach:
J107: (właściwe zaznacz - | M107: x | N107: )
A108: Czy rolnik posiada grunty w innych gminach
A109: □ | B109: NIE
A110: □ | B110: TAK (jeśli tak wymienić w jakich?) | H110: ………………………………………………………………………………………………….…...…………………………………………
A112: W protokole uwzględnione zostały szkody z innej gminy
A113: □ | B113: NIE
A114: □ | B114: TAK (jeśli tak wymienić z jakiej) | H114: ………………………………………………………………………………………………….…...…………………………………………
A115: W protokole uwzględnione zostały szkody z innego województwa oszacowane przez komisję powołaną przez Wojewodę
A116: □ | B116: NIE
A117: □ | B117: TAK | Q117: z protokołu nr
B118: oszacowane przez Komisję powołaną przez Wojewodę | K118: ……………………………………………………………….. | S118: ……………..…………
A119: Załączniki stanowią integralną część protokołu. | Q119: PROTOKÓŁ NR | T119: =N1 -> ……………………..
A120: Oświadczam, że wszystkie dane podane w protokole oraz w załącznikach do niego są prawdziwe i zgodne ze stanem faktycznym, a także, że znane mi są skutki składania fałszywych oświadczeń wynikające z art. 297 Kodeksu karnego (Dz.U. z 2025 r. poz. 383 z późn. zm.).
A122: Na tym protokół zakończono i podpisano: | J122: Dzień | K122: Miesiąc | M122: Rok
D123: Data sporządzenia protokołu: | J123: 1 | K123: Styczeń | M123: 2026
K125: Czytelne podpisy członków komisji
A126: …………………………………………………………. | K126: 1. | L126: …………………………………………….. | P126: 6. | Q126: …………………………...………………
A127: (data i czytelny podpis rolnika) | K127: 2. | L127: …………………………………………….. | P127: 7. | Q127: …………………………...………………
K128: 3. | L128: …………………………………………….. | P128: 8. | Q128: …………………………...………………
K129: 4. | L129: …………………………………………….. | P129: 9. | Q129: …………………………...………………
K130: 5. | L130: …………………………………………….. | P130: 10. | Q130: …………………………...………………
A134: Protokół sporządzono w dwóch jednobrzmiących egzemplarzach, z których jeden otrzymuje wojewoda właściwy ze względu na miejsce wystąpienia szkód a drugi producent rolny, przy czym w przypadku szkód powyżej 30 proc. średniej rocznej produkcji rolnej lub 3350 zł w środkach trwałych producent rolny otrzymuje protokół potwierdzony przez wojewodę.
A136: Uwagi: | M136: Potwierdzam wystąpienie szkód powstałych w wyniku | S136: =_xlfn.TEXTJOIN(", ",TRUE,IF(LOWER(A32)="x","suszy w środku trwałym",""),IF(LOWER(A33)="x","gradu",""),IF(LOWER(A34)="x","deszczu nawalnego",""),IF(LOWER(A35)="x","ujemnych skutków przezimowania",""),IF(LOWER(A36)="x","przymrozków wiosennych",""),IF(LOWER(I32)="x","powodzi",""),IF(LOWER(I33)="x","huraganu",""),IF(LOWER(I34)="x","piorunu",""),IF(LOWER(I35)="x","obsunięcia się ziemi",""),IF(LOWER(I36)="x","lawiny","")) -> 
M137: w przedmiotowym gospodarstwie rolnym.
N141: ……………………….. | R141: ………………………………….
O142: (data) | R142: (podpis Wojewody)
R149: PROTOKÓŁ NR | U149: =N1 -> ……………………..

Sheet Prod. roślinna
B1: Załącznik 1 Szkody w produkcji roślinnej | M1: DLA REGIONU FADN | R1: =Protokół!V1 -> A
B2: Imię i nazwisko producenta rolnego | D2: Imię i nazwisko producenta rolnego | F2: =Protokół!G8 -> ……………………………………… ………………………...……………
B4: L.p | C4: Nazwa wszystkich upraw w gospodarstwie rolnym | D4: Powierzchnia uprawy w roku wystąpienia niekorzystnego zjawiska atmosferycznego | E4: Średni plon z 1 ha danej uprawy | F4: Średnia cena | G4: Średni dochód z 1 ha | H4: Średnia roczna wartość produkcji | I4: Straty plonu w % w roku wystąpienia szkody | K4: Wysokość szkód w uprawach uwzględnianych w produkcji zwierzęcej * | L4: Wartość produkcji w roku wystąpienia szkód po wystąpieniu niekorzystnego zjawiska atmosferycznego | M4: Kwota obniżenia dochodu w wyniku szkód | N4: Koszty nieponiesione w związku z wystąpieniem szkód łącznie | P4: suma pow 70% | Q4: pow UZ | R4: Koszty poniesione z powodu niezebrania plonów w wyniku szkód łącznie | S4: Powierzchnia upraw rolnych dotknięta zjawiskiem wynosi
D5: ha | E5: dt/ha | F5: w zł/dt | G5: w zł/ha | H5: w zł | I5: % | K5: zł | L5: zł | M5: zł | N5: zł | R5: zł
C6: NAZWA
B7: 1 | C7: 2 | D7: 3 | E7: 4 | F7: 5 | G7: 6=4x5 | H7: 7=3x6 | I7: 8 | K7: 9=7x8 | L7: 10= 7x(100%-8) | M7: 11=7-10 | N7: 12 | R7: 13 | S7: 14
A8: =C8&region -> A | B8: 1 | E8: =IFERROR(VLOOKUP(region&'Prod. roślinna'!$C8,Dane_srednie_baza,6,0),0) -> 0 | F8: =IFERROR(VLOOKUP(region&'Prod. roślinna'!$C8,Dane_srednie_baza,7,0),0) -> 0 | G8: =E8*F8 -> 0 | H8: =D8*G8 -> 0 | J8: =AND(VLOOKUP(C8,rosliny_baza,2,0),('Prod. zwierzęca towar.'!$B$6>0)) ->  | L8: =H8*(100%-I8) -> 0 | M8: =H8-L8 -> 0 | N8: =I8*O8 -> 0 | O8: =IF(I8>=70%,VLOOKUP(A8,Koszty_nieponiesione_baza,2,0)*D8,0) -> 0 | P8: =IF(I8>=70%,D8,0) -> 0 | Q8: =IF(OR(C8='Koszty nieponiesione'!$A$283,C8='Koszty nieponiesione'!$A$291,C8='Koszty nieponiesione'!$A$295,C8='Koszty nieponiesione'!$A$303,C8='Koszty nieponiesione'!$A$307,C8='Koszty nieponiesione'!$A$311,C8='Koszty nieponiesione'!$A$315,C8='Koszty nieponiesione'!$A$319), 'Prod. roślinna'!D8,0) -> 0 | S8: =IF(I8>0,D8,0) -> 0
A9: A | B9: 2 | E9: =IFERROR(VLOOKUP(region&'Prod. roślinna'!$C9,Dane_srednie_baza,6,0),0) -> 0 | F9: =IFERROR(VLOOKUP(region&'Prod. roślinna'!C9,Dane_srednie_baza,7,0),0) -> 0 | G9: =E9*F9 -> 0 | H9: =D9*G9 -> 0 | J9: =AND(VLOOKUP(C9,rosliny_baza,2,0),('Prod. zwierzęca towar.'!$B$6>0)) ->  | L9: 0 | M9: 0 | N9: =I9*O9 -> 0 | O9: 0 | P9: =IF(I9>=70%,D9,0) -> 0 | Q9: =IF(OR(C9='Koszty nieponiesione'!$A$283,C9='Koszty nieponiesione'!$A$291,C9='Koszty nieponiesione'!$A$295,C9='Koszty nieponiesione'!$A$303,C9='Koszty nieponiesione'!$A$307,C9='Koszty nieponiesione'!$A$311,C9='Koszty nieponiesione'!$A$315,C9='Koszty nieponiesione'!$A$319), 'Prod. roślinna'!D9,0) -> 0 | S9: 0
A10: A | B10: 3 | E10: =IFERROR(VLOOKUP(region&'Prod. roślinna'!$C10,Dane_srednie_baza,6,0),0) -> 0 | F10: =IFERROR(VLOOKUP(region&'Prod. roślinna'!C10,Dane_srednie_baza,7,0),0) -> 0 | G10: 0 | H10: 0 | J10: =AND(VLOOKUP(C10,rosliny_baza,2,0),('Prod. zwierzęca towar.'!$B$6>0)) ->  | L10: 0 | M10: 0 | N10: =I10*O10 -> 0 | O10: 0 | P10: 0 | Q10: =IF(OR(C10='Koszty nieponiesione'!$A$283,C10='Koszty nieponiesione'!$A$291,C10='Koszty nieponiesione'!$A$295,C10='Koszty nieponiesione'!$A$303,C10='Koszty nieponiesione'!$A$307,C10='Koszty nieponiesione'!$A$311,C10='Koszty nieponiesione'!$A$315,C10='Koszty nieponiesione'!$A$319), 'Prod. roślinna'!D10,0) -> 0 | S10: 0
A11: A | B11: 4 | E11: =IFERROR(VLOOKUP(region&'Prod. roślinna'!$C11,Dane_srednie_baza,6,0),0) -> 0 | F11: =IFERROR(VLOOKUP(region&'Prod. roślinna'!C11,Dane_srednie_baza,7,0),0) -> 0 | G11: 0 | H11: 0 | J11: =AND(VLOOKUP(C11,rosliny_baza,2,0),('Prod. zwierzęca towar.'!$B$6>0)) ->  | L11: 0 | M11: 0 | N11: =I11*O11 -> 0 | O11: 0 | P11: 0 | Q11: =IF(OR(C11='Koszty nieponiesione'!$A$283,C11='Koszty nieponiesione'!$A$291,C11='Koszty nieponiesione'!$A$295,C11='Koszty nieponiesione'!$A$303,C11='Koszty nieponiesione'!$A$307,C11='Koszty nieponiesione'!$A$311,C11='Koszty nieponiesione'!$A$315,C11='Koszty nieponiesione'!$A$319), 'Prod. roślinna'!D11,0) -> 0 | S11: 0
A12: A | B12: 5 | E12: =IFERROR(VLOOKUP(region&'Prod. roślinna'!$C12,Dane_srednie_baza,6,0),0) -> 0 | F12: =IFERROR(VLOOKUP(region&'Prod. roślinna'!C12,Dane_srednie_baza,7,0),0) -> 0 | G12: 0 | H12: 0 | J12: =AND(VLOOKUP(C12,rosliny_baza,2,0),('Prod. zwierzęca towar.'!$B$6>0)) ->  | L12: 0 | M12: 0 | N12: 0 | O12: 0 | P12: 0 | Q12: =IF(OR(C12='Koszty nieponiesione'!$A$283,C12='Koszty nieponiesione'!$A$291,C12='Koszty nieponiesione'!$A$295,C12='Koszty nieponiesione'!$A$303,C12='Koszty nieponiesione'!$A$307,C12='Koszty nieponiesione'!$A$311,C12='Koszty nieponiesione'!$A$315,C12='Koszty nieponiesione'!$A$319), 'Prod. roślinna'!D12,0) -> 0 | S12: 0
A13: A | B13: 6 | E13: =IFERROR(VLOOKUP(region&'Prod. roślinna'!$C13,Dane_srednie_baza,6,0),0) -> 0 | F13: =IFERROR(VLOOKUP(region&'Prod. roślinna'!$C13,Dane_srednie_baza,7,0),0) -> 0 | G13: 0 | H13: 0 | J13: =AND(VLOOKUP(C13,rosliny_baza,2,0),('Prod. zwierzęca towar.'!$B$6>0)) ->  | L13: 0 | M13: 0 | N13: =I13*O13 -> 0 | O13: 0 | P13: 0 | Q13: =IF(OR(C13='Koszty nieponiesione'!$A$283,C13='Koszty nieponiesione'!$A$291,C13='Koszty nieponiesione'!$A$295,C13='Koszty nieponiesione'!$A$303,C13='Koszty nieponiesione'!$A$307,C13='Koszty nieponiesione'!$A$311,C13='Koszty nieponiesione'!$A$315,C13='Koszty nieponiesione'!$A$319), 'Prod. roślinna'!D13,0) -> 0 | S13: 0
A14: A | B14: 7 | E14: =IFERROR(VLOOKUP(region&'Prod. roślinna'!$C14,Dane_srednie_baza,6,0),0) -> 0 | F14: =IFERROR(VLOOKUP(region&'Prod. roślinna'!C14,Dane_srednie_baza,7,0),0) -> 0 | G14: 0 | H14: 0 | J14: =AND(VLOOKUP(C14,rosliny_baza,2,0),('Prod. zwierzęca towar.'!$B$6>0)) ->  | L14: 0 | M14: 0 | N14: 0 | O14: 0 | P14: 0 | Q14: =IF(OR(C14='Koszty nieponiesione'!$A$283,C14='Koszty nieponiesione'!$A$291,C14='Koszty nieponiesione'!$A$295,C14='Koszty nieponiesione'!$A$303,C14='Koszty nieponiesione'!$A$307,C14='Koszty nieponiesione'!$A$311,C14='Koszty nieponiesione'!$A$315,C14='Koszty nieponiesione'!$A$319), 'Prod. roślinna'!D14,0) -> 0 | S14: 0
A15: A | B15: 8 | E15: =IFERROR(VLOOKUP(region&'Prod. roślinna'!$C15,Dane_srednie_baza,6,0),0) -> 0 | F15: =IFERROR(VLOOKUP(region&'Prod. roślinna'!C15,Dane_srednie_baza,7,0),0) -> 0 | G15: 0 | H15: 0 | J15: =AND(VLOOKUP(C15,rosliny_baza,2,0),('Prod. zwierzęca towar.'!$B$6>0)) ->  | L15: 0 | M15: 0 | N15: 0 | O15: 0 | P15: 0 | Q15: =IF(OR(C15='Koszty nieponiesione'!$A$283,C15='Koszty nieponiesione'!$A$291,C15='Koszty nieponiesione'!$A$295,C15='Koszty nieponiesione'!$A$303,C15='Koszty nieponiesione'!$A$307,C15='Koszty nieponiesione'!$A$311,C15='Koszty nieponiesione'!$A$315,C15='Koszty nieponiesione'!$A$319), 'Prod. roślinna'!D15,0) -> 0 | S15: 0
A16: A | B16: 9 | E16: =IFERROR(VLOOKUP(region&'Prod. roślinna'!$C16,Dane_srednie_baza,6,0),0) -> 0 | F16: =IFERROR(VLOOKUP(region&'Prod. roślinna'!C16,Dane_srednie_baza,7,0),0) -> 0 | G16: 0 | H16: 0 | J16: =AND(VLOOKUP(C16,rosliny_baza,2,0),('Prod. zwierzęca towar.'!$B$6>0)) ->  | L16: 0 | M16: 0 | N16: 0 | O16: 0 | P16: 0 | Q16: =IF(OR(C16='Koszty nieponiesione'!$A$283,C16='Koszty nieponiesione'!$A$291,C16='Koszty nieponiesione'!$A$295,C16='Koszty nieponiesione'!$A$303,C16='Koszty nieponiesione'!$A$307,C16='Koszty nieponiesione'!$A$311,C16='Koszty nieponiesione'!$A$315,C16='Koszty nieponiesione'!$A$319), 'Prod. roślinna'!D16,0) -> 0 | S16: 0
A17: A | B17: 10 | E17: =IFERROR(VLOOKUP(region&'Prod. roślinna'!$C17,Dane_srednie_baza,6,0),0) -> 0 | F17: =IFERROR(VLOOKUP(region&'Prod. roślinna'!C17,Dane_srednie_baza,7,0),0) -> 0 | G17: 0 | H17: 0 | J17: =AND(VLOOKUP(C17,rosliny_baza,2,0),('Prod. zwierzęca towar.'!$B$6>0)) ->  | L17: 0 | M17: 0 | N17: 0 | O17: 0 | P17: 0 | Q17: =IF(OR(C17='Koszty nieponiesione'!$A$283,C17='Koszty nieponiesione'!$A$291,C17='Koszty nieponiesione'!$A$295,C17='Koszty nieponiesione'!$A$303,C17='Koszty nieponiesione'!$A$307,C17='Koszty nieponiesione'!$A$311,C17='Koszty nieponiesione'!$A$315,C17='Koszty nieponiesione'!$A$319), 'Prod. roślinna'!D17,0) -> 0 | S17: 0
A18: A | B18: 11 | E18: =IFERROR(VLOOKUP(region&'Prod. roślinna'!$C18,Dane_srednie_baza,6,0),0) -> 0 | F18: =IFERROR(VLOOKUP(region&'Prod. roślinna'!$C18,Dane_srednie_baza,7,0),0) -> 0 | G18: 0 | H18: 0 | J18: =AND(VLOOKUP(C18,rosliny_baza,2,0),('Prod. zwierzęca towar.'!$B$6>0)) ->  | L18: 0 | M18: 0 | N18: =I18*O18 -> 0 | O18: 0 | P18: 0 | Q18: =IF(OR(C18='Koszty nieponiesione'!$A$283,C18='Koszty nieponiesione'!$A$291,C18='Koszty nieponiesione'!$A$295,C18='Koszty nieponiesione'!$A$303,C18='Koszty nieponiesione'!$A$307,C18='Koszty nieponiesione'!$A$311,C18='Koszty nieponiesione'!$A$315,C18='Koszty nieponiesione'!$A$319), 'Prod. roślinna'!D18,0) -> 0 | S18: 0
A19: A | B19: 12 | E19: =IFERROR(VLOOKUP(region&'Prod. roślinna'!$C19,Dane_srednie_baza,6,0),0) -> 0 | F19: =IFERROR(VLOOKUP(region&'Prod. roślinna'!C19,Dane_srednie_baza,7,0),0) -> 0 | G19: 0 | H19: 0 | J19: =AND(VLOOKUP(C19,rosliny_baza,2,0),('Prod. zwierzęca towar.'!$B$6>0)) ->  | L19: 0 | M19: 0 | N19: 0 | O19: 0 | P19: 0 | Q19: =IF(OR(C19='Koszty nieponiesione'!$A$283,C19='Koszty nieponiesione'!$A$291,C19='Koszty nieponiesione'!$A$295,C19='Koszty nieponiesione'!$A$303,C19='Koszty nieponiesione'!$A$307,C19='Koszty nieponiesione'!$A$311,C19='Koszty nieponiesione'!$A$315,C19='Koszty nieponiesione'!$A$319), 'Prod. roślinna'!D19,0) -> 0 | S19: 0
A20: A | B20: 13 | E20: =IFERROR(VLOOKUP(region&'Prod. roślinna'!$C20,Dane_srednie_baza,6,0),0) -> 0 | F20: =IFERROR(VLOOKUP(region&'Prod. roślinna'!C20,Dane_srednie_baza,7,0),0) -> 0 | G20: 0 | H20: 0 | J20: =AND(VLOOKUP(C20,rosliny_baza,2,0),('Prod. zwierzęca towar.'!$B$6>0)) ->  | L20: 0 | M20: 0 | N20: 0 | O20: 0 | P20: 0 | Q20: =IF(OR(C20='Koszty nieponiesione'!$A$283,C20='Koszty nieponiesione'!$A$291,C20='Koszty nieponiesione'!$A$295,C20='Koszty nieponiesione'!$A$303,C20='Koszty nieponiesione'!$A$307,C20='Koszty nieponiesione'!$A$311,C20='Koszty nieponiesione'!$A$315,C20='Koszty nieponiesione'!$A$319), 'Prod. roślinna'!D20,0) -> 0 | S20: 0
A21: A | B21: 14 | E21: =IFERROR(VLOOKUP(region&'Prod. roślinna'!$C21,Dane_srednie_baza,6,0),0) -> 0 | F21: =IFERROR(VLOOKUP(region&'Prod. roślinna'!C21,Dane_srednie_baza,7,0),0) -> 0 | G21: 0 | H21: 0 | J21: =AND(VLOOKUP(C21,rosliny_baza,2,0),('Prod. zwierzęca towar.'!$B$6>0)) ->  | L21: 0 | M21: 0 | N21: 0 | O21: 0 | P21: 0 | Q21: =IF(OR(C21='Koszty nieponiesione'!$A$283,C21='Koszty nieponiesione'!$A$291,C21='Koszty nieponiesione'!$A$295,C21='Koszty nieponiesione'!$A$303,C21='Koszty nieponiesione'!$A$307,C21='Koszty nieponiesione'!$A$311,C21='Koszty nieponiesione'!$A$315,C21='Koszty nieponiesione'!$A$319), 'Prod. roślinna'!D21,0) -> 0 | S21: 0
A22: A | B22: 15 | E22: =IFERROR(VLOOKUP(region&'Prod. roślinna'!$C22,Dane_srednie_baza,6,0),0) -> 0 | F22: =IFERROR(VLOOKUP(region&'Prod. roślinna'!C22,Dane_srednie_baza,7,0),0) -> 0 | G22: 0 | H22: 0 | J22: =AND(VLOOKUP(C22,rosliny_baza,2,0),('Prod. zwierzęca towar.'!$B$6>0)) ->  | L22: 0 | M22: 0 | N22: 0 | O22: 0 | P22: 0 | Q22: =IF(OR(C22='Koszty nieponiesione'!$A$283,C22='Koszty nieponiesione'!$A$291,C22='Koszty nieponiesione'!$A$295,C22='Koszty nieponiesione'!$A$303,C22='Koszty nieponiesione'!$A$307,C22='Koszty nieponiesione'!$A$311,C22='Koszty nieponiesione'!$A$315,C22='Koszty nieponiesione'!$A$319), 'Prod. roślinna'!D22,0) -> 0 | S22: 0
A23: A | B23: 16 | E23: =IFERROR(VLOOKUP(region&'Prod. roślinna'!$C23,Dane_srednie_baza,6,0),0) -> 0 | F23: =IFERROR(VLOOKUP(region&'Prod. roślinna'!C23,Dane_srednie_baza,7,0),0) -> 0 | G23: 0 | H23: 0 | J23: =AND(VLOOKUP(C23,rosliny_baza,2,0),('Prod. zwierzęca towar.'!$B$6>0)) ->  | L23: 0 | M23: 0 | N23: 0 | O23: 0 | P23: 0 | Q23: =IF(OR(C23='Koszty nieponiesione'!$A$283,C23='Koszty nieponiesione'!$A$291,C23='Koszty nieponiesione'!$A$295,C23='Koszty nieponiesione'!$A$303,C23='Koszty nieponiesione'!$A$307,C23='Koszty nieponiesione'!$A$311,C23='Koszty nieponiesione'!$A$315,C23='Koszty nieponiesione'!$A$319), 'Prod. roślinna'!D23,0) -> 0 | S23: 0
A24: A | B24: 17 | E24: =IFERROR(VLOOKUP(region&'Prod. roślinna'!$C24,Dane_srednie_baza,6,0),0) -> 0 | F24: =IFERROR(VLOOKUP(region&'Prod. roślinna'!C24,Dane_srednie_baza,7,0),0) -> 0 | G24: 0 | H24: 0 | J24: =AND(VLOOKUP(C24,rosliny_baza,2,0),('Prod. zwierzęca towar.'!$B$6>0)) ->  | L24: 0 | M24: 0 | N24: 0 | O24: 0 | P24: 0 | Q24: =IF(OR(C24='Koszty nieponiesione'!$A$283,C24='Koszty nieponiesione'!$A$291,C24='Koszty nieponiesione'!$A$295,C24='Koszty nieponiesione'!$A$303,C24='Koszty nieponiesione'!$A$307,C24='Koszty nieponiesione'!$A$311,C24='Koszty nieponiesione'!$A$315,C24='Koszty nieponiesione'!$A$319), 'Prod. roślinna'!D24,0) -> 0 | S24: 0
A25: A | B25: 18 | E25: =IFERROR(VLOOKUP(region&'Prod. roślinna'!$C25,Dane_srednie_baza,6,0),0) -> 0 | F25: =IFERROR(VLOOKUP(region&'Prod. roślinna'!C25,Dane_srednie_baza,7,0),0) -> 0 | G25: 0 | H25: 0 | J25: =AND(VLOOKUP(C25,rosliny_baza,2,0),('Prod. zwierzęca towar.'!$B$6>0)) ->  | L25: 0 | M25: 0 | N25: 0 | O25: 0 | P25: 0 | Q25: =IF(OR(C25='Koszty nieponiesione'!$A$283,C25='Koszty nieponiesione'!$A$291,C25='Koszty nieponiesione'!$A$295,C25='Koszty nieponiesione'!$A$303,C25='Koszty nieponiesione'!$A$307,C25='Koszty nieponiesione'!$A$311,C25='Koszty nieponiesione'!$A$315,C25='Koszty nieponiesione'!$A$319), 'Prod. roślinna'!D25,0) -> 0 | S25: 0
A26: A | B26: 19 | E26: =IFERROR(VLOOKUP(region&'Prod. roślinna'!$C26,Dane_srednie_baza,6,0),0) -> 0 | F26: =IFERROR(VLOOKUP(region&'Prod. roślinna'!C26,Dane_srednie_baza,7,0),0) -> 0 | G26: 0 | H26: 0 | J26: =AND(VLOOKUP(C26,rosliny_baza,2,0),('Prod. zwierzęca towar.'!$B$6>0)) ->  | L26: 0 | M26: 0 | N26: 0 | O26: 0 | P26: 0 | Q26: =IF(OR(C26='Koszty nieponiesione'!$A$283,C26='Koszty nieponiesione'!$A$291,C26='Koszty nieponiesione'!$A$295,C26='Koszty nieponiesione'!$A$303,C26='Koszty nieponiesione'!$A$307,C26='Koszty nieponiesione'!$A$311,C26='Koszty nieponiesione'!$A$315,C26='Koszty nieponiesione'!$A$319), 'Prod. roślinna'!D26,0) -> 0 | S26: 0
A27: A | B27: 20 | E27: =IFERROR(VLOOKUP(region&'Prod. roślinna'!$C27,Dane_srednie_baza,6,0),0) -> 0 | F27: =IFERROR(VLOOKUP(region&'Prod. roślinna'!C27,Dane_srednie_baza,7,0),0) -> 0 | G27: 0 | H27: 0 | J27: =AND(VLOOKUP(C27,rosliny_baza,2,0),('Prod. zwierzęca towar.'!$B$6>0)) ->  | L27: 0 | M27: 0 | N27: 0 | O27: 0 | P27: 0 | Q27: =IF(OR(C27='Koszty nieponiesione'!$A$283,C27='Koszty nieponiesione'!$A$291,C27='Koszty nieponiesione'!$A$295,C27='Koszty nieponiesione'!$A$303,C27='Koszty nieponiesione'!$A$307,C27='Koszty nieponiesione'!$A$311,C27='Koszty nieponiesione'!$A$315,C27='Koszty nieponiesione'!$A$319), 'Prod. roślinna'!D27,0) -> 0 | S27: 0
A28: A | B28: 21 | E28: =IFERROR(VLOOKUP(region&'Prod. roślinna'!$C28,Dane_srednie_baza,6,0),0) -> 0 | F28: =IFERROR(VLOOKUP(region&'Prod. roślinna'!C28,Dane_srednie_baza,7,0),0) -> 0 | G28: 0 | H28: 0 | J28: =AND(VLOOKUP(C28,rosliny_baza,2,0),('Prod. zwierzęca towar.'!$B$6>0)) ->  | L28: 0 | M28: 0 | N28: 0 | O28: 0 | P28: 0 | Q28: =IF(OR(C28='Koszty nieponiesione'!$A$283,C28='Koszty nieponiesione'!$A$291,C28='Koszty nieponiesione'!$A$295,C28='Koszty nieponiesione'!$A$303,C28='Koszty nieponiesione'!$A$307,C28='Koszty nieponiesione'!$A$311,C28='Koszty nieponiesione'!$A$315,C28='Koszty nieponiesione'!$A$319), 'Prod. roślinna'!D28,0) -> 0 | S28: 0
A29: A | B29: 22 | E29: =IFERROR(VLOOKUP(region&'Prod. roślinna'!$C29,Dane_srednie_baza,6,0),0) -> 0 | F29: =IFERROR(VLOOKUP(region&'Prod. roślinna'!C29,Dane_srednie_baza,7,0),0) -> 0 | G29: 0 | H29: 0 | J29: =AND(VLOOKUP(C29,rosliny_baza,2,0),('Prod. zwierzęca towar.'!$B$6>0)) ->  | L29: 0 | M29: 0 | N29: 0 | O29: 0 | P29: 0 | Q29: =IF(OR(C29='Koszty nieponiesione'!$A$283,C29='Koszty nieponiesione'!$A$291,C29='Koszty nieponiesione'!$A$295,C29='Koszty nieponiesione'!$A$303,C29='Koszty nieponiesione'!$A$307,C29='Koszty nieponiesione'!$A$311,C29='Koszty nieponiesione'!$A$315,C29='Koszty nieponiesione'!$A$319), 'Prod. roślinna'!D29,0) -> 0 | S29: 0
A30: A | B30: 23 | E30: =IFERROR(VLOOKUP(region&'Prod. roślinna'!$C30,Dane_srednie_baza,6,0),0) -> 0 | F30: =IFERROR(VLOOKUP(region&'Prod. roślinna'!C30,Dane_srednie_baza,7,0),0) -> 0 | G30: 0 | H30: 0 | J30: =AND(VLOOKUP(C30,rosliny_baza,2,0),('Prod. zwierzęca towar.'!$B$6>0)) ->  | L30: 0 | M30: 0 | N30: 0 | O30: 0 | P30: 0 | Q30: =IF(OR(C30='Koszty nieponiesione'!$A$283,C30='Koszty nieponiesione'!$A$291,C30='Koszty nieponiesione'!$A$295,C30='Koszty nieponiesione'!$A$303,C30='Koszty nieponiesione'!$A$307,C30='Koszty nieponiesione'!$A$311,C30='Koszty nieponiesione'!$A$315,C30='Koszty nieponiesione'!$A$319), 'Prod. roślinna'!D30,0) -> 0 | S30: 0
A31: A | B31: 24 | E31: =IFERROR(VLOOKUP(region&'Prod. roślinna'!$C31,Dane_srednie_baza,6,0),0) -> 0 | F31: =IFERROR(VLOOKUP(region&'Prod. roślinna'!C31,Dane_srednie_baza,7,0),0) -> 0 | G31: 0 | H31: 0 | J31: =AND(VLOOKUP(C31,rosliny_baza,2,0),('Prod. zwierzęca towar.'!$B$6>0)) ->  | L31: 0 | M31: 0 | N31: 0 | O31: 0 | P31: 0 | Q31: =IF(OR(C31='Koszty nieponiesione'!$A$283,C31='Koszty nieponiesione'!$A$291,C31='Koszty nieponiesione'!$A$295,C31='Koszty nieponiesione'!$A$303,C31='Koszty nieponiesione'!$A$307,C31='Koszty nieponiesione'!$A$311,C31='Koszty nieponiesione'!$A$315,C31='Koszty nieponiesione'!$A$319), 'Prod. roślinna'!D31,0) -> 0 | S31: 0
A32: A | B32: 25 | E32: =IFERROR(VLOOKUP(region&'Prod. roślinna'!$C32,Dane_srednie_baza,6,0),0) -> 0 | F32: =IFERROR(VLOOKUP(region&'Prod. roślinna'!C32,Dane_srednie_baza,7,0),0) -> 0 | G32: 0 | H32: 0 | J32: =AND(VLOOKUP(C32,rosliny_baza,2,0),('Prod. zwierzęca towar.'!$B$6>0)) ->  | L32: 0 | M32: 0 | N32: 0 | O32: 0 | P32: 0 | Q32: =IF(OR(C32='Koszty nieponiesione'!$A$283,C32='Koszty nieponiesione'!$A$291,C32='Koszty nieponiesione'!$A$295,C32='Koszty nieponiesione'!$A$303,C32='Koszty nieponiesione'!$A$307,C32='Koszty nieponiesione'!$A$311,C32='Koszty nieponiesione'!$A$315,C32='Koszty nieponiesione'!$A$319), 'Prod. roślinna'!D32,0) -> 0 | S32: 0
A33: A | B33: 26 | E33: =IFERROR(VLOOKUP(region&'Prod. roślinna'!$C33,Dane_srednie_baza,6,0),0) -> 0 | F33: =IFERROR(VLOOKUP(region&'Prod. roślinna'!C33,Dane_srednie_baza,7,0),0) -> 0 | G33: 0 | H33: 0 | J33: =AND(VLOOKUP(C33,rosliny_baza,2,0),('Prod. zwierzęca towar.'!$B$6>0)) ->  | L33: 0 | M33: 0 | N33: 0 | O33: 0 | P33: 0 | Q33: =IF(OR(C33='Koszty nieponiesione'!$A$283,C33='Koszty nieponiesione'!$A$291,C33='Koszty nieponiesione'!$A$295,C33='Koszty nieponiesione'!$A$303,C33='Koszty nieponiesione'!$A$307,C33='Koszty nieponiesione'!$A$311,C33='Koszty nieponiesione'!$A$315,C33='Koszty nieponiesione'!$A$319), 'Prod. roślinna'!D33,0) -> 0 | S33: 0
A34: A | B34: 27 | E34: =IFERROR(VLOOKUP(region&'Prod. roślinna'!$C34,Dane_srednie_baza,6,0),0) -> 0 | F34: =IFERROR(VLOOKUP(region&'Prod. roślinna'!C34,Dane_srednie_baza,7,0),0) -> 0 | G34: 0 | H34: 0 | J34: =AND(VLOOKUP(C34,rosliny_baza,2,0),('Prod. zwierzęca towar.'!$B$6>0)) ->  | L34: 0 | M34: 0 | N34: 0 | O34: 0 | P34: 0 | Q34: =IF(OR(C34='Koszty nieponiesione'!$A$283,C34='Koszty nieponiesione'!$A$291,C34='Koszty nieponiesione'!$A$295,C34='Koszty nieponiesione'!$A$303,C34='Koszty nieponiesione'!$A$307,C34='Koszty nieponiesione'!$A$311,C34='Koszty nieponiesione'!$A$315,C34='Koszty nieponiesione'!$A$319), 'Prod. roślinna'!D34,0) -> 0 | S34: 0
A35: A | B35: 28 | E35: =IFERROR(VLOOKUP(region&'Prod. roślinna'!$C35,Dane_srednie_baza,6,0),0) -> 0 | F35: =IFERROR(VLOOKUP(region&'Prod. roślinna'!C35,Dane_srednie_baza,7,0),0) -> 0 | G35: 0 | H35: 0 | J35: =AND(VLOOKUP(C35,rosliny_baza,2,0),('Prod. zwierzęca towar.'!$B$6>0)) ->  | L35: 0 | M35: 0 | N35: 0 | O35: 0 | P35: 0 | Q35: =IF(OR(C35='Koszty nieponiesione'!$A$283,C35='Koszty nieponiesione'!$A$291,C35='Koszty nieponiesione'!$A$295,C35='Koszty nieponiesione'!$A$303,C35='Koszty nieponiesione'!$A$307,C35='Koszty nieponiesione'!$A$311,C35='Koszty nieponiesione'!$A$315,C35='Koszty nieponiesione'!$A$319), 'Prod. roślinna'!D35,0) -> 0 | S35: 0
A36: A | B36: 29 | E36: =IFERROR(VLOOKUP(region&'Prod. roślinna'!$C36,Dane_srednie_baza,6,0),0) -> 0 | F36: =IFERROR(VLOOKUP(region&'Prod. roślinna'!C36,Dane_srednie_baza,7,0),0) -> 0 | G36: 0 | H36: 0 | J36: =AND(VLOOKUP(C36,rosliny_baza,2,0),('Prod. zwierzęca towar.'!$B$6>0)) ->  | L36: 0 | M36: 0 | N36: 0 | O36: 0 | P36: 0 | Q36: =IF(OR(C36='Koszty nieponiesione'!$A$283,C36='Koszty nieponiesione'!$A$291,C36='Koszty nieponiesione'!$A$295,C36='Koszty nieponiesione'!$A$303,C36='Koszty nieponiesione'!$A$307,C36='Koszty nieponiesione'!$A$311,C36='Koszty nieponiesione'!$A$315,C36='Koszty nieponiesione'!$A$319), 'Prod. roślinna'!D36,0) -> 0 | S36: 0
A37: A | B37: 30 | E37: =IFERROR(VLOOKUP(region&'Prod. roślinna'!$C37,Dane_srednie_baza,6,0),0) -> 0 | F37: =IFERROR(VLOOKUP(region&'Prod. roślinna'!C37,Dane_srednie_baza,7,0),0) -> 0 | G37: 0 | H37: 0 | J37: =AND(VLOOKUP(C37,rosliny_baza,2,0),('Prod. zwierzęca towar.'!$B$6>0)) ->  | L37: 0 | M37: 0 | N37: 0 | O37: 0 | P37: 0 | Q37: =IF(OR(C37='Koszty nieponiesione'!$A$283,C37='Koszty nieponiesione'!$A$291,C37='Koszty nieponiesione'!$A$295,C37='Koszty nieponiesione'!$A$303,C37='Koszty nieponiesione'!$A$307,C37='Koszty nieponiesione'!$A$311,C37='Koszty nieponiesione'!$A$315,C37='Koszty nieponiesione'!$A$319), 'Prod. roślinna'!D37,0) -> 0 | S37: 0
A38: A | B38: 31 | E38: =IFERROR(VLOOKUP(region&'Prod. roślinna'!$C38,Dane_srednie_baza,6,0),0) -> 0 | F38: =IFERROR(VLOOKUP(region&'Prod. roślinna'!C38,Dane_srednie_baza,7,0),0) -> 0 | G38: 0 | H38: 0 | J38: =AND(VLOOKUP(C38,rosliny_baza,2,0),('Prod. zwierzęca towar.'!$B$6>0)) ->  | L38: 0 | M38: 0 | N38: 0 | O38: 0 | P38: 0 | Q38: =IF(OR(C38='Koszty nieponiesione'!$A$283,C38='Koszty nieponiesione'!$A$291,C38='Koszty nieponiesione'!$A$295,C38='Koszty nieponiesione'!$A$303,C38='Koszty nieponiesione'!$A$307,C38='Koszty nieponiesione'!$A$311,C38='Koszty nieponiesione'!$A$315,C38='Koszty nieponiesione'!$A$319), 'Prod. roślinna'!D38,0) -> 0 | S38: 0
A39: A | B39: 32 | E39: =IFERROR(VLOOKUP(region&'Prod. roślinna'!$C39,Dane_srednie_baza,6,0),0) -> 0 | F39: =IFERROR(VLOOKUP(region&'Prod. roślinna'!C39,Dane_srednie_baza,7,0),0) -> 0 | G39: 0 | H39: 0 | J39: =AND(VLOOKUP(C39,rosliny_baza,2,0),('Prod. zwierzęca towar.'!$B$6>0)) ->  | L39: 0 | M39: 0 | N39: 0 | O39: 0 | P39: 0 | Q39: =IF(OR(C39='Koszty nieponiesione'!$A$283,C39='Koszty nieponiesione'!$A$291,C39='Koszty nieponiesione'!$A$295,C39='Koszty nieponiesione'!$A$303,C39='Koszty nieponiesione'!$A$307,C39='Koszty nieponiesione'!$A$311,C39='Koszty nieponiesione'!$A$315,C39='Koszty nieponiesione'!$A$319), 'Prod. roślinna'!D39,0) -> 0 | S39: 0
A40: A | B40: 33 | E40: =IFERROR(VLOOKUP(region&'Prod. roślinna'!$C40,Dane_srednie_baza,6,0),0) -> 0 | F40: =IFERROR(VLOOKUP(region&'Prod. roślinna'!C40,Dane_srednie_baza,7,0),0) -> 0 | G40: =E40*F40 -> 0 | H40: 0 | J40: =AND(VLOOKUP(C40,rosliny_baza,2,0),('Prod. zwierzęca towar.'!$B$6>0)) ->  | L40: 0 | M40: 0 | N40: 0 | O40: 0 | P40: 0 | Q40: =IF(OR(C40='Koszty nieponiesione'!$A$283,C40='Koszty nieponiesione'!$A$291,C40='Koszty nieponiesione'!$A$295,C40='Koszty nieponiesione'!$A$303,C40='Koszty nieponiesione'!$A$307,C40='Koszty nieponiesione'!$A$311,C40='Koszty nieponiesione'!$A$315,C40='Koszty nieponiesione'!$A$319), 'Prod. roślinna'!D40,0) -> 0 | S40: 0
A41: A | B41: 34 | E41: =IFERROR(VLOOKUP(region&'Prod. roślinna'!$C41,Dane_srednie_baza,6,0),0) -> 0 | F41: =IFERROR(VLOOKUP(region&'Prod. roślinna'!C41,Dane_srednie_baza,7,0),0) -> 0 | G41: 0 | H41: 0 | J41: =AND(VLOOKUP(C41,rosliny_baza,2,0),('Prod. zwierzęca towar.'!$B$6>0)) ->  | L41: 0 | M41: 0 | N41: 0 | O41: 0 | P41: 0 | Q41: =IF(OR(C41='Koszty nieponiesione'!$A$283,C41='Koszty nieponiesione'!$A$291,C41='Koszty nieponiesione'!$A$295,C41='Koszty nieponiesione'!$A$303,C41='Koszty nieponiesione'!$A$307,C41='Koszty nieponiesione'!$A$311,C41='Koszty nieponiesione'!$A$315,C41='Koszty nieponiesione'!$A$319), 'Prod. roślinna'!D41,0) -> 0 | S41: 0
A42: A | B42: 35 | E42: =IFERROR(VLOOKUP(region&'Prod. roślinna'!$C42,Dane_srednie_baza,6,0),0) -> 0 | F42: =IFERROR(VLOOKUP(region&'Prod. roślinna'!C42,Dane_srednie_baza,7,0),0) -> 0 | G42: 0 | H42: 0 | J42: =AND(VLOOKUP(C42,rosliny_baza,2,0),('Prod. zwierzęca towar.'!$B$6>0)) ->  | L42: 0 | M42: 0 | N42: 0 | O42: 0 | P42: 0 | Q42: =IF(OR(C42='Koszty nieponiesione'!$A$283,C42='Koszty nieponiesione'!$A$291,C42='Koszty nieponiesione'!$A$295,C42='Koszty nieponiesione'!$A$303,C42='Koszty nieponiesione'!$A$307,C42='Koszty nieponiesione'!$A$311,C42='Koszty nieponiesione'!$A$315,C42='Koszty nieponiesione'!$A$319), 'Prod. roślinna'!D42,0) -> 0 | S42: 0
A43: A | B43: 36 | E43: =IFERROR(VLOOKUP(region&'Prod. roślinna'!$C43,Dane_srednie_baza,6,0),0) -> 0 | F43: =IFERROR(VLOOKUP(region&'Prod. roślinna'!C43,Dane_srednie_baza,7,0),0) -> 0 | G43: 0 | H43: 0 | J43: =AND(VLOOKUP(C43,rosliny_baza,2,0),('Prod. zwierzęca towar.'!$B$6>0)) ->  | L43: 0 | M43: 0 | N43: 0 | O43: 0 | P43: 0 | Q43: =IF(OR(C43='Koszty nieponiesione'!$A$283,C43='Koszty nieponiesione'!$A$291,C43='Koszty nieponiesione'!$A$295,C43='Koszty nieponiesione'!$A$303,C43='Koszty nieponiesione'!$A$307,C43='Koszty nieponiesione'!$A$311,C43='Koszty nieponiesione'!$A$315,C43='Koszty nieponiesione'!$A$319), 'Prod. roślinna'!D43,0) -> 0 | S43: 0
A44: A | B44: 37 | E44: =IFERROR(VLOOKUP(region&'Prod. roślinna'!$C44,Dane_srednie_baza,6,0),0) -> 0 | F44: =IFERROR(VLOOKUP(region&'Prod. roślinna'!C44,Dane_srednie_baza,7,0),0) -> 0 | G44: 0 | H44: 0 | J44: =AND(VLOOKUP(C44,rosliny_baza,2,0),('Prod. zwierzęca towar.'!$B$6>0)) ->  | L44: 0 | M44: 0 | N44: 0 | O44: 0 | P44: 0 | Q44: =IF(OR(C44='Koszty nieponiesione'!$A$283,C44='Koszty nieponiesione'!$A$291,C44='Koszty nieponiesione'!$A$295,C44='Koszty nieponiesione'!$A$303,C44='Koszty nieponiesione'!$A$307,C44='Koszty nieponiesione'!$A$311,C44='Koszty nieponiesione'!$A$315,C44='Koszty nieponiesione'!$A$319), 'Prod. roślinna'!D44,0) -> 0 | S44: 0
A45: A | B45: 38 | E45: =IFERROR(VLOOKUP(region&'Prod. roślinna'!$C45,Dane_srednie_baza,6,0),0) -> 0 | F45: =IFERROR(VLOOKUP(region&'Prod. roślinna'!C45,Dane_srednie_baza,7,0),0) -> 0 | G45: 0 | H45: 0 | J45: =AND(VLOOKUP(C45,rosliny_baza,2,0),('Prod. zwierzęca towar.'!$B$6>0)) ->  | L45: 0 | M45: 0 | N45: 0 | O45: 0 | P45: 0 | Q45: =IF(OR(C45='Koszty nieponiesione'!$A$283,C45='Koszty nieponiesione'!$A$291,C45='Koszty nieponiesione'!$A$295,C45='Koszty nieponiesione'!$A$303,C45='Koszty nieponiesione'!$A$307,C45='Koszty nieponiesione'!$A$311,C45='Koszty nieponiesione'!$A$315,C45='Koszty nieponiesione'!$A$319), 'Prod. roślinna'!D45,0) -> 0 | S45: 0
A46: A | B46: 39 | E46: =IFERROR(VLOOKUP(region&'Prod. roślinna'!$C46,Dane_srednie_baza,6,0),0) -> 0 | F46: =IFERROR(VLOOKUP(region&'Prod. roślinna'!C46,Dane_srednie_baza,7,0),0) -> 0 | G46: =E46*F46 -> 0 | H46: 0 | J46: =AND(VLOOKUP(C46,rosliny_baza,2,0),('Prod. zwierzęca towar.'!$B$6>0)) ->  | L46: 0 | M46: 0 | N46: 0 | O46: 0 | P46: 0 | Q46: =IF(OR(C46='Koszty nieponiesione'!$A$283,C46='Koszty nieponiesione'!$A$291,C46='Koszty nieponiesione'!$A$295,C46='Koszty nieponiesione'!$A$303,C46='Koszty nieponiesione'!$A$307,C46='Koszty nieponiesione'!$A$311,C46='Koszty nieponiesione'!$A$315,C46='Koszty nieponiesione'!$A$319), 'Prod. roślinna'!D46,0) -> 0 | S46: 0
B47: Razem (poz. 1 - 186) | D47: =SUM(D8:D46, 'Prod. roślinna str 2'!D57, 'Prod. roślinna str 3'!D57, 'Prod. roślinna str 4'!D57) -> 0 | E47: x | F47: x | G47: x | H47: =SUM(H8:H46, 'Prod. roślinna str 2'!H57, 'Prod. roślinna str 3'!H57, 'Prod. roślinna str 4'!H57) -> 0 | I47: x | K47: =MIN( SUM(K8:K46, 'Prod. roślinna str 2'!K57, 'Prod. roślinna str 3'!K57, 'Prod. roślinna str 4'!K57), 'Prod. zwierzęca towar.'!H57 ) -> 0 | L47: =SUM(L8:L46, 'Prod. roślinna str 2'!L57, 'Prod. roślinna str 3'!L57, 'Prod. roślinna str 4'!L57) -> 0 | M47: =SUM(M8:M46, 'Prod. roślinna str 2'!M57, 'Prod. roślinna str 3'!M57, 'Prod. roślinna str 4'!M57) -> 0 | N47: =SUM(N8:N46, 'Prod. roślinna str 2'!N57, 'Prod. roślinna str 3'!N57, 'Prod. roślinna str 4'!N57) -> 0 | O47: =SUM(O8:O46, 'Prod. roślinna str 2'!O57, 'Prod. roślinna str 3'!O57, 'Prod. roślinna str 4'!O57) -> 0 | P47: =SUM(P8:P46, 'Prod. roślinna str 2'!P57, 'Prod. roślinna str 3'!P57, 'Prod. roślinna str 4'!P57) -> 0 | Q47: =SUM(Q8:Q46, 'Prod. roślinna str 2'!Q57, 'Prod. roślinna str 3'!Q57, 'Prod. roślinna str 4'!Q57) -> 0 | R47: =SUM(R8:R46, 'Prod. roślinna str 2'!R57, 'Prod. roślinna str 3'!R57, 'Prod. roślinna str 4'!R57) -> 0 | S47: =SUM(S8:S46, 'Prod. roślinna str 2'!S57, 'Prod. roślinna str 3'!S57, 'Prod. roślinna str 4'!S57) -> 0
B48: *Dane w kolumnie 9 "Wysokości szkód w uprawach uwzględnianych w produkcji zwierzęcej” oblicza się w zakresie upraw : rośliny pastewne objętościowe na gruntach ornych, okopowe pastewne na pasze, buraki pastewne na pasze, brukiew pastewna na pasze, marchew pastewna na pasze, dynia pastewna na pasze, pozostałe okopowe pastewne na pasze, kukurydza pastewna na zielonkę, zboża na zielonkę i mieszanki zbóż z innymi roślinami na zielonkę, trawy w uprawie polowej na zielonkę, strączkowe na zielonkę, motylkowe drobnonasienne na zielonkę, mieszanki motylkowych z trawami, pozostałe polowe uprawy pastewne na zielonkę, rośliny pastewne objętościowe z użytków zielonych (uprawa lub zielonka), rośliny pastewne objętościowe z łąk – zielonka, rośliny pastewne objętościowe z pastwisk, rośliny pastewne objętościowe z pastwisk pielęgnowanych, rośliny pastewne objętościowe z pastwisk niepielęgnowanych, kukurydza (sucha i wilgotna) na ziarno, proso na ziarno, strączkowe pastewne na nasiona suche, groch pastewny (peluszka) na nasiona suche, pozostałe strączkowe pastewne na nasiona suche, mieszanki strączkowych z innymi roślinami jare na nasiona suche, mieszanki strączkowych z innymi roślinami ozime na nasiona suche. w przypadku prowadzenia produkcji zwierzęcej w zakresie: byki do opasu, wolce 2-letnie i starsze, jałówki do opasu 2-letnie i starsze, byczki od 1 do 2 lat, jałówki od 1 do 2 lat, owce 1 roczne i starsze, mleko krowie, mleko owcze, mleko kozie, kozy 1 roczne i starsze, konie, tuczniki o wadze 50 kg i więcej, warchlaki do tuczu o wadze od 20 do 50 kg.
B49: Załącznik 1b Dane z protokołu oszacowania szkód spowodowanych wystąpieniem niekorzystnego zjawiska atmosferycznego w gospodarstwie rolnym lub dziale specjalnym produkcji rolnej położonym na terenie innego województwa, gminy (kserokopia potwierdzona za zgodność z oryginałem w załączeniu).
B51: L.p | C51: Nazwa innego województwa na terenie, którego producent rolny posiada grunty rolne, w których wystąpiły szkody spowodowane wystąpieniem niekorzystnego zjawiska atmosferycznego | D51: Dane protokołu | F51: Suma powierzchni upraw w roku wystąpienia niekorzystnego zjawiska atmosferycznego (z kolumny nr 3) | G51: Suma średniorocznej wartości produkcji na terenie województwa (z kolumny nr 7) | H51: Suma wartości wysokosci szkód (z kolumny nr 9) | I51: Suma kwot obniżenia dochodów w wyniku szkód (z kolumny nr 11) | K51: Suma kosztów nieponiesionych w związku z wystąpieniem szkód łącznie (z kolumny nr 12) | L51: Suma kosztów poniesionych z powodu niezebrania plonów w wyniku szkód łącznie (z kolumny nr 13) | M51: Suma powierzchni upraw rolnych dotknięta zjawiskiem wynosi (z kolumny nr 14) | N51: Powierzchnia upraw rolnych w dniu wystąpienia szkód z wyłączeniem wieloletnich użytków zielonych (UZ) (z pkt 4 protokołu) | O51: Suma powierzchni upraw rolnych dotknięta zjawiskiem wynosi (z kolumny nr 14) | P51: Suma powierzchni upraw rolnych dotknięta zjawiskiem wynosi (z kolumny nr 14) | Q51: Suma powierzchni upraw rolnych dotknięta zjawiskiem wynosi (z kolumny nr 14) | R51: Powierzchnia upraw w których wystąpiły szkody co najmniej 70 % (z pkt 4 protokołu)
D52: z dnia | E52: numer
B53: 1 | C53: 2 | D53: 3 | E53: 4 | F53: 5 | G53: 6 | H53: 7 | I53: 8 | K53: 9 | L53: 10 | M53: 11 | N53: 12 | O53: 11 | P53: 11 | Q53: 11 | R53: 13
B54: 1
B55: 2
B56: 3
B57: 4
B58: 5
B59: 6
B60: 7
B61: 8
B62: 9
B63: 10
B64: Razem | D64: x | E64: x | F64: =SUM(F54:F63) -> 0 | G64: =SUM(G54:G63) -> 0 | H64: =SUM(H54:H63) -> 0 | I64: =SUM(I54:I63) -> 0 | K64: =SUM(K54:K63) -> 0 | L64: =SUM(L54:L63) -> 0 | M64: =SUM(M54:M63) -> 0 | N64: =SUM(N54:N63) -> 0 | O64: =SUM(O54:O63) -> 0 | P64: 0 | Q64: 0 | R64: =SUM(R54:R63) -> 0
C65: Czytelne podpisy członków komisji powołanych przez Wojewodę
B66: 1. | C66: ……………………………………………………………………………………………….……… | F66: 6. | G66: ……………………………………………………………………………………………….………
B67: 2. | C67: ……………………………………………………………………………………………….……… | F67: 7. | G67: ……………………………………………………………………………………………….………
B68: 3. | C68: ……………………………………………………………………………………………….……… | F68: 8. | G68: ……………………………………………………………………………………………….………
B69: 4. | C69: ……………………………………………………………………………………………….……… | F69: 9. | G69: ……………………………………………………………………………………………….……… | N69: …………………………………..……………..……….….
B70: 5. | C70: ……………………………………………………………………………………………….……… | F70: 10. | G70: ……………………………………………………………………………………………….……… | N70: (data i czytelny podpis rolnika)

Sheet Prod. roślinna str 2
B1: Załącznik 1 Szkody w produkcji roślinnej | M1: DLA REGIONU FADN | R1: =Protokół!V1 -> A
B2: Imię i nazwisko producenta rolnego | D2: Imię i nazwisko producenta rolnego | F2: =Protokół!G8 -> ……………………………………… ………………………...……………
B4: L.p | C4: Nazwa wszystkich upraw w gospodarstwie rolnym | D4: Powierzchnia uprawy w roku wystąpienia niekorzystnego zjawiska atmosferycznego | E4: Średni plon z 1 ha danej uprawy | F4: Średnia cena | G4: Średni dochód z 1 ha | H4: Średnia roczna wartość produkcji | I4: Straty plonu w % w roku wystąpienia szkody | K4: Wysokość szkód w uprawach uwzględnianych w produkcji zwierzęcej * | L4: Wartość produkcji w roku wystąpienia szkód po wystąpieniu niekorzystnego zjawiska atmosferycznego | M4: Kwota obniżenia dochodu w wyniku szkód | N4: Koszty nieponiesione w związku z wystąpieniem szkód łącznie | P4: pow 70% | Q4: pow UZ | R4: Koszty poniesione z powodu niezebrania plonów w wyniku szkód łącznie | S4: Powierzchnia upraw rolnych dotknięta zjawiskiem wynosi
D5: ha | E5: dt/ha | F5: w zł/dt | G5: w zł/ha | H5: w zł | I5: % | K5: zł | L5: zł | M5: zł | N5: zł | R5: zł
C6: NAZWA
B7: 1 | C7: 2 | D7: 3 | E7: 4 | F7: 5 | G7: 6=4x5 | H7: 7=3x6 | I7: 8 | K7: 9=7x8 | L7: 10= 7x(100%-8) | M7: 11=7-10 | N7: 12 | R7: 13 | S7: 14
A8: =C8&region -> A | B8: 40 | E8: =IFERROR(VLOOKUP(region&'Prod. roślinna str 2'!$C8,Dane_srednie_baza,6,0),0) -> 0 | F8: =IFERROR(VLOOKUP(region&'Prod. roślinna str 2'!C8,Dane_srednie_baza,7,0),0) -> 0 | G8: =E8*F8 -> 0 | H8: =D8*G8 -> 0 | J8: =AND(VLOOKUP(C8,rosliny_baza,2,0),('Prod. zwierzęca towar.'!$B$6>0)) ->  | L8: =H8*(100%-I8) -> 0 | M8: =H8-L8 -> 0 | N8: =I8*O8 -> 0 | O8: =IF(I8>=70%,VLOOKUP(A8,Koszty_nieponiesione_baza,2,0)*D8,0) -> 0 | P8: =IF(I8>=70%,D8,0) -> 0 | Q8: =IF(OR(C8='Koszty nieponiesione'!$A$283,C8='Koszty nieponiesione'!$A$291,C8='Koszty nieponiesione'!$A$295,C8='Koszty nieponiesione'!$A$303,C8='Koszty nieponiesione'!$A$307,C8='Koszty nieponiesione'!$A$311,C8='Koszty nieponiesione'!$A$315,C8='Koszty nieponiesione'!$A$319), 'Prod. roślinna'!D8,0) -> 0 | S8: =IF(I8>0,D8,0) -> 0
A9: A | B9: 41 | E9: =IFERROR(VLOOKUP(region&'Prod. roślinna str 2'!$C9,Dane_srednie_baza,6,0),0) -> 0 | F9: =IFERROR(VLOOKUP(region&'Prod. roślinna str 2'!C9,Dane_srednie_baza,7,0),0) -> 0 | G9: =E9*F9 -> 0 | H9: =D9*G9 -> 0 | J9: =AND(VLOOKUP(C9,rosliny_baza,2,0),('Prod. zwierzęca towar.'!$B$6>0)) ->  | L9: =H9*(100%-I9) -> 0 | M9: =H9-L9 -> 0 | N9: =I9*O9 -> 0 | O9: 0 | P9: 0 | Q9: =IF(OR(C9='Koszty nieponiesione'!$A$283,C9='Koszty nieponiesione'!$A$291,C9='Koszty nieponiesione'!$A$295,C9='Koszty nieponiesione'!$A$303,C9='Koszty nieponiesione'!$A$307,C9='Koszty nieponiesione'!$A$311,C9='Koszty nieponiesione'!$A$315,C9='Koszty nieponiesione'!$A$319), 'Prod. roślinna'!D9,0) -> 0 | S9: 0
A10: A | B10: 42 | E10: =IFERROR(VLOOKUP(region&'Prod. roślinna str 2'!$C10,Dane_srednie_baza,6,0),0) -> 0 | F10: =IFERROR(VLOOKUP(region&'Prod. roślinna str 2'!C10,Dane_srednie_baza,7,0),0) -> 0 | G10: 0 | H10: 0 | J10: =AND(VLOOKUP(C10,rosliny_baza,2,0),('Prod. zwierzęca towar.'!$B$6>0)) ->  | L10: 0 | M10: 0 | N10: 0 | O10: 0 | P10: 0 | Q10: =IF(OR(C10='Koszty nieponiesione'!$A$283,C10='Koszty nieponiesione'!$A$291,C10='Koszty nieponiesione'!$A$295,C10='Koszty nieponiesione'!$A$303,C10='Koszty nieponiesione'!$A$307,C10='Koszty nieponiesione'!$A$311,C10='Koszty nieponiesione'!$A$315,C10='Koszty nieponiesione'!$A$319), 'Prod. roślinna'!D10,0) -> 0 | S10: 0
A11: A | B11: 43 | E11: =IFERROR(VLOOKUP(region&'Prod. roślinna str 2'!$C11,Dane_srednie_baza,6,0),0) -> 0 | F11: =IFERROR(VLOOKUP(region&'Prod. roślinna str 2'!C11,Dane_srednie_baza,7,0),0) -> 0 | G11: 0 | H11: 0 | J11: =AND(VLOOKUP(C11,rosliny_baza,2,0),('Prod. zwierzęca towar.'!$B$6>0)) ->  | L11: 0 | M11: 0 | N11: 0 | O11: 0 | P11: 0 | Q11: =IF(OR(C11='Koszty nieponiesione'!$A$283,C11='Koszty nieponiesione'!$A$291,C11='Koszty nieponiesione'!$A$295,C11='Koszty nieponiesione'!$A$303,C11='Koszty nieponiesione'!$A$307,C11='Koszty nieponiesione'!$A$311,C11='Koszty nieponiesione'!$A$315,C11='Koszty nieponiesione'!$A$319), 'Prod. roślinna'!D11,0) -> 0 | S11: 0
A12: A | B12: 44 | E12: =IFERROR(VLOOKUP(region&'Prod. roślinna str 2'!$C12,Dane_srednie_baza,6,0),0) -> 0 | F12: =IFERROR(VLOOKUP(region&'Prod. roślinna str 2'!C12,Dane_srednie_baza,7,0),0) -> 0 | G12: 0 | H12: 0 | J12: =AND(VLOOKUP(C12,rosliny_baza,2,0),('Prod. zwierzęca towar.'!$B$6>0)) ->  | L12: 0 | M12: 0 | N12: 0 | O12: 0 | P12: 0 | Q12: =IF(OR(C12='Koszty nieponiesione'!$A$283,C12='Koszty nieponiesione'!$A$291,C12='Koszty nieponiesione'!$A$295,C12='Koszty nieponiesione'!$A$303,C12='Koszty nieponiesione'!$A$307,C12='Koszty nieponiesione'!$A$311,C12='Koszty nieponiesione'!$A$315,C12='Koszty nieponiesione'!$A$319), 'Prod. roślinna'!D12,0) -> 0 | S12: 0
A13: A | B13: 45 | E13: =IFERROR(VLOOKUP(region&'Prod. roślinna str 2'!$C13,Dane_srednie_baza,6,0),0) -> 0 | F13: =IFERROR(VLOOKUP(region&'Prod. roślinna str 2'!C13,Dane_srednie_baza,7,0),0) -> 0 | G13: 0 | H13: 0 | J13: =AND(VLOOKUP(C13,rosliny_baza,2,0),('Prod. zwierzęca towar.'!$B$6>0)) ->  | L13: 0 | M13: 0 | N13: 0 | O13: 0 | P13: 0 | Q13: =IF(OR(C13='Koszty nieponiesione'!$A$283,C13='Koszty nieponiesione'!$A$291,C13='Koszty nieponiesione'!$A$295,C13='Koszty nieponiesione'!$A$303,C13='Koszty nieponiesione'!$A$307,C13='Koszty nieponiesione'!$A$311,C13='Koszty nieponiesione'!$A$315,C13='Koszty nieponiesione'!$A$319), 'Prod. roślinna'!D13,0) -> 0 | S13: 0
A14: A | B14: 46 | E14: =IFERROR(VLOOKUP(region&'Prod. roślinna str 2'!$C14,Dane_srednie_baza,6,0),0) -> 0 | F14: =IFERROR(VLOOKUP(region&'Prod. roślinna str 2'!C14,Dane_srednie_baza,7,0),0) -> 0 | G14: 0 | H14: 0 | J14: =AND(VLOOKUP(C14,rosliny_baza,2,0),('Prod. zwierzęca towar.'!$B$6>0)) ->  | L14: 0 | M14: 0 | N14: 0 | O14: 0 | P14: 0 | Q14: =IF(OR(C14='Koszty nieponiesione'!$A$283,C14='Koszty nieponiesione'!$A$291,C14='Koszty nieponiesione'!$A$295,C14='Koszty nieponiesione'!$A$303,C14='Koszty nieponiesione'!$A$307,C14='Koszty nieponiesione'!$A$311,C14='Koszty nieponiesione'!$A$315,C14='Koszty nieponiesione'!$A$319), 'Prod. roślinna'!D14,0) -> 0 | S14: 0
A15: A | B15: 47 | E15: =IFERROR(VLOOKUP(region&'Prod. roślinna str 2'!$C15,Dane_srednie_baza,6,0),0) -> 0 | F15: =IFERROR(VLOOKUP(region&'Prod. roślinna str 2'!C15,Dane_srednie_baza,7,0),0) -> 0 | G15: 0 | H15: 0 | J15: =AND(VLOOKUP(C15,rosliny_baza,2,0),('Prod. zwierzęca towar.'!$B$6>0)) ->  | L15: 0 | M15: 0 | N15: 0 | O15: 0 | P15: 0 | Q15: =IF(OR(C15='Koszty nieponiesione'!$A$283,C15='Koszty nieponiesione'!$A$291,C15='Koszty nieponiesione'!$A$295,C15='Koszty nieponiesione'!$A$303,C15='Koszty nieponiesione'!$A$307,C15='Koszty nieponiesione'!$A$311,C15='Koszty nieponiesione'!$A$315,C15='Koszty nieponiesione'!$A$319), 'Prod. roślinna'!D15,0) -> 0 | S15: 0
A16: A | B16: 48 | E16: =IFERROR(VLOOKUP(region&'Prod. roślinna str 2'!$C16,Dane_srednie_baza,6,0),0) -> 0 | F16: =IFERROR(VLOOKUP(region&'Prod. roślinna str 2'!C16,Dane_srednie_baza,7,0),0) -> 0 | G16: 0 | H16: 0 | J16: =AND(VLOOKUP(C16,rosliny_baza,2,0),('Prod. zwierzęca towar.'!$B$6>0)) ->  | L16: 0 | M16: 0 | N16: 0 | O16: 0 | P16: 0 | Q16: =IF(OR(C16='Koszty nieponiesione'!$A$283,C16='Koszty nieponiesione'!$A$291,C16='Koszty nieponiesione'!$A$295,C16='Koszty nieponiesione'!$A$303,C16='Koszty nieponiesione'!$A$307,C16='Koszty nieponiesione'!$A$311,C16='Koszty nieponiesione'!$A$315,C16='Koszty nieponiesione'!$A$319), 'Prod. roślinna'!D16,0) -> 0 | S16: 0
A17: A | B17: 49 | E17: =IFERROR(VLOOKUP(region&'Prod. roślinna str 2'!$C17,Dane_srednie_baza,6,0),0) -> 0 | F17: =IFERROR(VLOOKUP(region&'Prod. roślinna str 2'!C17,Dane_srednie_baza,7,0),0) -> 0 | G17: 0 | H17: 0 | J17: =AND(VLOOKUP(C17,rosliny_baza,2,0),('Prod. zwierzęca towar.'!$B$6>0)) ->  | L17: 0 | M17: 0 | N17: 0 | O17: 0 | P17: 0 | Q17: =IF(OR(C17='Koszty nieponiesione'!$A$283,C17='Koszty nieponiesione'!$A$291,C17='Koszty nieponiesione'!$A$295,C17='Koszty nieponiesione'!$A$303,C17='Koszty nieponiesione'!$A$307,C17='Koszty nieponiesione'!$A$311,C17='Koszty nieponiesione'!$A$315,C17='Koszty nieponiesione'!$A$319), 'Prod. roślinna'!D17,0) -> 0 | S17: 0
A18: A | B18: 50 | E18: =IFERROR(VLOOKUP(region&'Prod. roślinna str 2'!$C18,Dane_srednie_baza,6,0),0) -> 0 | F18: =IFERROR(VLOOKUP(region&'Prod. roślinna str 2'!C18,Dane_srednie_baza,7,0),0) -> 0 | G18: 0 | H18: 0 | J18: =AND(VLOOKUP(C18,rosliny_baza,2,0),('Prod. zwierzęca towar.'!$B$6>0)) ->  | L18: 0 | M18: 0 | N18: 0 | O18: 0 | P18: 0 | Q18: =IF(OR(C18='Koszty nieponiesione'!$A$283,C18='Koszty nieponiesione'!$A$291,C18='Koszty nieponiesione'!$A$295,C18='Koszty nieponiesione'!$A$303,C18='Koszty nieponiesione'!$A$307,C18='Koszty nieponiesione'!$A$311,C18='Koszty nieponiesione'!$A$315,C18='Koszty nieponiesione'!$A$319), 'Prod. roślinna'!D18,0) -> 0 | S18: 0
A19: A | B19: 51 | E19: =IFERROR(VLOOKUP(region&'Prod. roślinna str 2'!$C19,Dane_srednie_baza,6,0),0) -> 0 | F19: =IFERROR(VLOOKUP(region&'Prod. roślinna str 2'!C19,Dane_srednie_baza,7,0),0) -> 0 | G19: 0 | H19: 0 | J19: =AND(VLOOKUP(C19,rosliny_baza,2,0),('Prod. zwierzęca towar.'!$B$6>0)) ->  | L19: 0 | M19: 0 | N19: 0 | O19: 0 | P19: 0 | Q19: =IF(OR(C19='Koszty nieponiesione'!$A$283,C19='Koszty nieponiesione'!$A$291,C19='Koszty nieponiesione'!$A$295,C19='Koszty nieponiesione'!$A$303,C19='Koszty nieponiesione'!$A$307,C19='Koszty nieponiesione'!$A$311,C19='Koszty nieponiesione'!$A$315,C19='Koszty nieponiesione'!$A$319), 'Prod. roślinna'!D19,0) -> 0 | S19: 0
A20: A | B20: 52 | E20: =IFERROR(VLOOKUP(region&'Prod. roślinna str 2'!$C20,Dane_srednie_baza,6,0),0) -> 0 | F20: =IFERROR(VLOOKUP(region&'Prod. roślinna str 2'!C20,Dane_srednie_baza,7,0),0) -> 0 | G20: 0 | H20: 0 | J20: =AND(VLOOKUP(C20,rosliny_baza,2,0),('Prod. zwierzęca towar.'!$B$6>0)) ->  | L20: 0 | M20: 0 | N20: 0 | O20: 0 | P20: 0 | Q20: =IF(OR(C20='Koszty nieponiesione'!$A$283,C20='Koszty nieponiesione'!$A$291,C20='Koszty nieponiesione'!$A$295,C20='Koszty nieponiesione'!$A$303,C20='Koszty nieponiesione'!$A$307,C20='Koszty nieponiesione'!$A$311,C20='Koszty nieponiesione'!$A$315,C20='Koszty nieponiesione'!$A$319), 'Prod. roślinna'!D20,0) -> 0 | S20: 0
A21: A | B21: 53 | E21: =IFERROR(VLOOKUP(region&'Prod. roślinna str 2'!$C21,Dane_srednie_baza,6,0),0) -> 0 | F21: =IFERROR(VLOOKUP(region&'Prod. roślinna str 2'!C21,Dane_srednie_baza,7,0),0) -> 0 | G21: 0 | H21: 0 | J21: =AND(VLOOKUP(C21,rosliny_baza,2,0),('Prod. zwierzęca towar.'!$B$6>0)) ->  | L21: 0 | M21: 0 | N21: 0 | O21: 0 | P21: 0 | Q21: =IF(OR(C21='Koszty nieponiesione'!$A$283,C21='Koszty nieponiesione'!$A$291,C21='Koszty nieponiesione'!$A$295,C21='Koszty nieponiesione'!$A$303,C21='Koszty nieponiesione'!$A$307,C21='Koszty nieponiesione'!$A$311,C21='Koszty nieponiesione'!$A$315,C21='Koszty nieponiesione'!$A$319), 'Prod. roślinna'!D21,0) -> 0 | S21: 0
A22: A | B22: 54 | E22: =IFERROR(VLOOKUP(region&'Prod. roślinna str 2'!$C22,Dane_srednie_baza,6,0),0) -> 0 | F22: =IFERROR(VLOOKUP(region&'Prod. roślinna str 2'!C22,Dane_srednie_baza,7,0),0) -> 0 | G22: 0 | H22: 0 | J22: =AND(VLOOKUP(C22,rosliny_baza,2,0),('Prod. zwierzęca towar.'!$B$6>0)) ->  | L22: 0 | M22: 0 | N22: 0 | O22: 0 | P22: 0 | Q22: =IF(OR(C22='Koszty nieponiesione'!$A$283,C22='Koszty nieponiesione'!$A$291,C22='Koszty nieponiesione'!$A$295,C22='Koszty nieponiesione'!$A$303,C22='Koszty nieponiesione'!$A$307,C22='Koszty nieponiesione'!$A$311,C22='Koszty nieponiesione'!$A$315,C22='Koszty nieponiesione'!$A$319), 'Prod. roślinna'!D22,0) -> 0 | S22: 0
A23: A | B23: 55 | E23: =IFERROR(VLOOKUP(region&'Prod. roślinna str 2'!$C23,Dane_srednie_baza,6,0),0) -> 0 | F23: =IFERROR(VLOOKUP(region&'Prod. roślinna str 2'!C23,Dane_srednie_baza,7,0),0) -> 0 | G23: 0 | H23: 0 | J23: =AND(VLOOKUP(C23,rosliny_baza,2,0),('Prod. zwierzęca towar.'!$B$6>0)) ->  | L23: 0 | M23: 0 | N23: 0 | O23: 0 | P23: 0 | Q23: =IF(OR(C23='Koszty nieponiesione'!$A$283,C23='Koszty nieponiesione'!$A$291,C23='Koszty nieponiesione'!$A$295,C23='Koszty nieponiesione'!$A$303,C23='Koszty nieponiesione'!$A$307,C23='Koszty nieponiesione'!$A$311,C23='Koszty nieponiesione'!$A$315,C23='Koszty nieponiesione'!$A$319), 'Prod. roślinna'!D23,0) -> 0 | S23: 0
A24: A | B24: 56 | E24: =IFERROR(VLOOKUP(region&'Prod. roślinna str 2'!$C24,Dane_srednie_baza,6,0),0) -> 0 | F24: =IFERROR(VLOOKUP(region&'Prod. roślinna str 2'!C24,Dane_srednie_baza,7,0),0) -> 0 | G24: 0 | H24: 0 | J24: =AND(VLOOKUP(C24,rosliny_baza,2,0),('Prod. zwierzęca towar.'!$B$6>0)) ->  | L24: 0 | M24: 0 | N24: 0 | O24: 0 | P24: 0 | Q24: =IF(OR(C24='Koszty nieponiesione'!$A$283,C24='Koszty nieponiesione'!$A$291,C24='Koszty nieponiesione'!$A$295,C24='Koszty nieponiesione'!$A$303,C24='Koszty nieponiesione'!$A$307,C24='Koszty nieponiesione'!$A$311,C24='Koszty nieponiesione'!$A$315,C24='Koszty nieponiesione'!$A$319), 'Prod. roślinna'!D24,0) -> 0 | S24: 0
A25: A | B25: 57 | E25: =IFERROR(VLOOKUP(region&'Prod. roślinna str 2'!$C25,Dane_srednie_baza,6,0),0) -> 0 | F25: =IFERROR(VLOOKUP(region&'Prod. roślinna str 2'!C25,Dane_srednie_baza,7,0),0) -> 0 | G25: 0 | H25: 0 | J25: =AND(VLOOKUP(C25,rosliny_baza,2,0),('Prod. zwierzęca towar.'!$B$6>0)) ->  | L25: 0 | M25: 0 | N25: 0 | O25: 0 | P25: 0 | Q25: =IF(OR(C25='Koszty nieponiesione'!$A$283,C25='Koszty nieponiesione'!$A$291,C25='Koszty nieponiesione'!$A$295,C25='Koszty nieponiesione'!$A$303,C25='Koszty nieponiesione'!$A$307,C25='Koszty nieponiesione'!$A$311,C25='Koszty nieponiesione'!$A$315,C25='Koszty nieponiesione'!$A$319), 'Prod. roślinna'!D25,0) -> 0 | S25: 0
A26: A | B26: 58 | E26: =IFERROR(VLOOKUP(region&'Prod. roślinna str 2'!$C26,Dane_srednie_baza,6,0),0) -> 0 | F26: =IFERROR(VLOOKUP(region&'Prod. roślinna str 2'!C26,Dane_srednie_baza,7,0),0) -> 0 | G26: 0 | H26: 0 | J26: =AND(VLOOKUP(C26,rosliny_baza,2,0),('Prod. zwierzęca towar.'!$B$6>0)) ->  | L26: 0 | M26: 0 | N26: 0 | O26: 0 | P26: 0 | Q26: =IF(OR(C26='Koszty nieponiesione'!$A$283,C26='Koszty nieponiesione'!$A$291,C26='Koszty nieponiesione'!$A$295,C26='Koszty nieponiesione'!$A$303,C26='Koszty nieponiesione'!$A$307,C26='Koszty nieponiesione'!$A$311,C26='Koszty nieponiesione'!$A$315,C26='Koszty nieponiesione'!$A$319), 'Prod. roślinna'!D26,0) -> 0 | S26: 0
A27: A | B27: 59 | E27: =IFERROR(VLOOKUP(region&'Prod. roślinna str 2'!$C27,Dane_srednie_baza,6,0),0) -> 0 | F27: =IFERROR(VLOOKUP(region&'Prod. roślinna str 2'!C27,Dane_srednie_baza,7,0),0) -> 0 | G27: 0 | H27: 0 | J27: =AND(VLOOKUP(C27,rosliny_baza,2,0),('Prod. zwierzęca towar.'!$B$6>0)) ->  | L27: 0 | M27: 0 | N27: 0 | O27: 0 | P27: 0 | Q27: =IF(OR(C27='Koszty nieponiesione'!$A$283,C27='Koszty nieponiesione'!$A$291,C27='Koszty nieponiesione'!$A$295,C27='Koszty nieponiesione'!$A$303,C27='Koszty nieponiesione'!$A$307,C27='Koszty nieponiesione'!$A$311,C27='Koszty nieponiesione'!$A$315,C27='Koszty nieponiesione'!$A$319), 'Prod. roślinna'!D27,0) -> 0 | S27: 0
A28: A | B28: 60 | E28: =IFERROR(VLOOKUP(region&'Prod. roślinna str 2'!$C28,Dane_srednie_baza,6,0),0) -> 0 | F28: =IFERROR(VLOOKUP(region&'Prod. roślinna str 2'!C28,Dane_srednie_baza,7,0),0) -> 0 | G28: 0 | H28: 0 | J28: =AND(VLOOKUP(C28,rosliny_baza,2,0),('Prod. zwierzęca towar.'!$B$6>0)) ->  | L28: 0 | M28: 0 | N28: 0 | O28: 0 | P28: 0 | Q28: =IF(OR(C28='Koszty nieponiesione'!$A$283,C28='Koszty nieponiesione'!$A$291,C28='Koszty nieponiesione'!$A$295,C28='Koszty nieponiesione'!$A$303,C28='Koszty nieponiesione'!$A$307,C28='Koszty nieponiesione'!$A$311,C28='Koszty nieponiesione'!$A$315,C28='Koszty nieponiesione'!$A$319), 'Prod. roślinna'!D28,0) -> 0 | S28: 0
A29: A | B29: 61 | E29: =IFERROR(VLOOKUP(region&'Prod. roślinna str 2'!$C29,Dane_srednie_baza,6,0),0) -> 0 | F29: =IFERROR(VLOOKUP(region&'Prod. roślinna str 2'!C29,Dane_srednie_baza,7,0),0) -> 0 | G29: 0 | H29: 0 | J29: =AND(VLOOKUP(C29,rosliny_baza,2,0),('Prod. zwierzęca towar.'!$B$6>0)) ->  | L29: 0 | M29: 0 | N29: 0 | O29: 0 | P29: 0 | Q29: =IF(OR(C29='Koszty nieponiesione'!$A$283,C29='Koszty nieponiesione'!$A$291,C29='Koszty nieponiesione'!$A$295,C29='Koszty nieponiesione'!$A$303,C29='Koszty nieponiesione'!$A$307,C29='Koszty nieponiesione'!$A$311,C29='Koszty nieponiesione'!$A$315,C29='Koszty nieponiesione'!$A$319), 'Prod. roślinna'!D29,0) -> 0 | S29: 0
A30: A | B30: 62 | E30: =IFERROR(VLOOKUP(region&'Prod. roślinna str 2'!$C30,Dane_srednie_baza,6,0),0) -> 0 | F30: =IFERROR(VLOOKUP(region&'Prod. roślinna str 2'!C30,Dane_srednie_baza,7,0),0) -> 0 | G30: 0 | H30: 0 | J30: =AND(VLOOKUP(C30,rosliny_baza,2,0),('Prod. zwierzęca towar.'!$B$6>0)) ->  | L30: 0 | M30: 0 | N30: 0 | O30: 0 | P30: 0 | Q30: =IF(OR(C30='Koszty nieponiesione'!$A$283,C30='Koszty nieponiesione'!$A$291,C30='Koszty nieponiesione'!$A$295,C30='Koszty nieponiesione'!$A$303,C30='Koszty nieponiesione'!$A$307,C30='Koszty nieponiesione'!$A$311,C30='Koszty nieponiesione'!$A$315,C30='Koszty nieponiesione'!$A$319), 'Prod. roślinna'!D30,0) -> 0 | S30: 0
A31: A | B31: 63 | E31: =IFERROR(VLOOKUP(region&'Prod. roślinna str 2'!$C31,Dane_srednie_baza,6,0),0) -> 0 | F31: =IFERROR(VLOOKUP(region&'Prod. roślinna str 2'!C31,Dane_srednie_baza,7,0),0) -> 0 | G31: 0 | H31: 0 | J31: =AND(VLOOKUP(C31,rosliny_baza,2,0),('Prod. zwierzęca towar.'!$B$6>0)) ->  | L31: 0 | M31: 0 | N31: 0 | O31: 0 | P31: 0 | Q31: =IF(OR(C31='Koszty nieponiesione'!$A$283,C31='Koszty nieponiesione'!$A$291,C31='Koszty nieponiesione'!$A$295,C31='Koszty nieponiesione'!$A$303,C31='Koszty nieponiesione'!$A$307,C31='Koszty nieponiesione'!$A$311,C31='Koszty nieponiesione'!$A$315,C31='Koszty nieponiesione'!$A$319), 'Prod. roślinna'!D31,0) -> 0 | S31: 0
A32: A | B32: 64 | E32: =IFERROR(VLOOKUP(region&'Prod. roślinna str 2'!$C32,Dane_srednie_baza,6,0),0) -> 0 | F32: =IFERROR(VLOOKUP(region&'Prod. roślinna str 2'!C32,Dane_srednie_baza,7,0),0) -> 0 | G32: 0 | H32: 0 | J32: =AND(VLOOKUP(C32,rosliny_baza,2,0),('Prod. zwierzęca towar.'!$B$6>0)) ->  | L32: 0 | M32: 0 | N32: 0 | O32: 0 | P32: 0 | Q32: =IF(OR(C32='Koszty nieponiesione'!$A$283,C32='Koszty nieponiesione'!$A$291,C32='Koszty nieponiesione'!$A$295,C32='Koszty nieponiesione'!$A$303,C32='Koszty nieponiesione'!$A$307,C32='Koszty nieponiesione'!$A$311,C32='Koszty nieponiesione'!$A$315,C32='Koszty nieponiesione'!$A$319), 'Prod. roślinna'!D32,0) -> 0 | S32: 0
A33: A | B33: 65 | E33: =IFERROR(VLOOKUP(region&'Prod. roślinna str 2'!$C33,Dane_srednie_baza,6,0),0) -> 0 | F33: =IFERROR(VLOOKUP(region&'Prod. roślinna str 2'!C33,Dane_srednie_baza,7,0),0) -> 0 | G33: 0 | H33: 0 | J33: =AND(VLOOKUP(C33,rosliny_baza,2,0),('Prod. zwierzęca towar.'!$B$6>0)) ->  | L33: 0 | M33: 0 | N33: 0 | O33: 0 | P33: 0 | Q33: =IF(OR(C33='Koszty nieponiesione'!$A$283,C33='Koszty nieponiesione'!$A$291,C33='Koszty nieponiesione'!$A$295,C33='Koszty nieponiesione'!$A$303,C33='Koszty nieponiesione'!$A$307,C33='Koszty nieponiesione'!$A$311,C33='Koszty nieponiesione'!$A$315,C33='Koszty nieponiesione'!$A$319), 'Prod. roślinna'!D33,0) -> 0 | S33: 0
A34: A | B34: 66 | E34: =IFERROR(VLOOKUP(region&'Prod. roślinna str 2'!$C34,Dane_srednie_baza,6,0),0) -> 0 | F34: =IFERROR(VLOOKUP(region&'Prod. roślinna str 2'!C34,Dane_srednie_baza,7,0),0) -> 0 | G34: 0 | H34: 0 | J34: =AND(VLOOKUP(C34,rosliny_baza,2,0),('Prod. zwierzęca towar.'!$B$6>0)) ->  | L34: 0 | M34: 0 | N34: 0 | O34: 0 | P34: 0 | Q34: =IF(OR(C34='Koszty nieponiesione'!$A$283,C34='Koszty nieponiesione'!$A$291,C34='Koszty nieponiesione'!$A$295,C34='Koszty nieponiesione'!$A$303,C34='Koszty nieponiesione'!$A$307,C34='Koszty nieponiesione'!$A$311,C34='Koszty nieponiesione'!$A$315,C34='Koszty nieponiesione'!$A$319), 'Prod. roślinna'!D34,0) -> 0 | S34: 0
A35: A | B35: 67 | E35: =IFERROR(VLOOKUP(region&'Prod. roślinna str 2'!$C35,Dane_srednie_baza,6,0),0) -> 0 | F35: =IFERROR(VLOOKUP(region&'Prod. roślinna str 2'!C35,Dane_srednie_baza,7,0),0) -> 0 | G35: 0 | H35: 0 | J35: =AND(VLOOKUP(C35,rosliny_baza,2,0),('Prod. zwierzęca towar.'!$B$6>0)) ->  | L35: 0 | M35: =H35-L35 -> 0 | N35: 0 | O35: 0 | P35: 0 | Q35: =IF(OR(C35='Koszty nieponiesione'!$A$283,C35='Koszty nieponiesione'!$A$291,C35='Koszty nieponiesione'!$A$295,C35='Koszty nieponiesione'!$A$303,C35='Koszty nieponiesione'!$A$307,C35='Koszty nieponiesione'!$A$311,C35='Koszty nieponiesione'!$A$315,C35='Koszty nieponiesione'!$A$319), 'Prod. roślinna'!D35,0) -> 0 | S35: 0
A36: A | B36: 68 | E36: =IFERROR(VLOOKUP(region&'Prod. roślinna str 2'!$C36,Dane_srednie_baza,6,0),0) -> 0 | F36: =IFERROR(VLOOKUP(region&'Prod. roślinna str 2'!C36,Dane_srednie_baza,7,0),0) -> 0 | G36: 0 | H36: 0 | J36: =AND(VLOOKUP(C36,rosliny_baza,2,0),('Prod. zwierzęca towar.'!$B$6>0)) ->  | L36: 0 | M36: 0 | N36: 0 | O36: 0 | P36: 0 | Q36: =IF(OR(C36='Koszty nieponiesione'!$A$283,C36='Koszty nieponiesione'!$A$291,C36='Koszty nieponiesione'!$A$295,C36='Koszty nieponiesione'!$A$303,C36='Koszty nieponiesione'!$A$307,C36='Koszty nieponiesione'!$A$311,C36='Koszty nieponiesione'!$A$315,C36='Koszty nieponiesione'!$A$319), 'Prod. roślinna'!D36,0) -> 0 | S36: 0
A37: A | B37: 69 | E37: =IFERROR(VLOOKUP(region&'Prod. roślinna str 2'!$C37,Dane_srednie_baza,6,0),0) -> 0 | F37: =IFERROR(VLOOKUP(region&'Prod. roślinna str 2'!C37,Dane_srednie_baza,7,0),0) -> 0 | G37: 0 | H37: 0 | J37: =AND(VLOOKUP(C37,rosliny_baza,2,0),('Prod. zwierzęca towar.'!$B$6>0)) ->  | L37: 0 | M37: 0 | N37: 0 | O37: 0 | P37: 0 | Q37: =IF(OR(C37='Koszty nieponiesione'!$A$283,C37='Koszty nieponiesione'!$A$291,C37='Koszty nieponiesione'!$A$295,C37='Koszty nieponiesione'!$A$303,C37='Koszty nieponiesione'!$A$307,C37='Koszty nieponiesione'!$A$311,C37='Koszty nieponiesione'!$A$315,C37='Koszty nieponiesione'!$A$319), 'Prod. roślinna'!D37,0) -> 0 | S37: 0
A38: A | B38: 70 | E38: =IFERROR(VLOOKUP(region&'Prod. roślinna str 2'!$C38,Dane_srednie_baza,6,0),0) -> 0 | F38: =IFERROR(VLOOKUP(region&'Prod. roślinna str 2'!C38,Dane_srednie_baza,7,0),0) -> 0 | G38: 0 | H38: 0 | J38: =AND(VLOOKUP(C38,rosliny_baza,2,0),('Prod. zwierzęca towar.'!$B$6>0)) ->  | L38: 0 | M38: 0 | N38: 0 | O38: 0 | P38: 0 | Q38: =IF(OR(C38='Koszty nieponiesione'!$A$283,C38='Koszty nieponiesione'!$A$291,C38='Koszty nieponiesione'!$A$295,C38='Koszty nieponiesione'!$A$303,C38='Koszty nieponiesione'!$A$307,C38='Koszty nieponiesione'!$A$311,C38='Koszty nieponiesione'!$A$315,C38='Koszty nieponiesione'!$A$319), 'Prod. roślinna'!D38,0) -> 0 | S38: 0
A39: A | B39: 71 | E39: =IFERROR(VLOOKUP(region&'Prod. roślinna str 2'!$C39,Dane_srednie_baza,6,0),0) -> 0 | F39: =IFERROR(VLOOKUP(region&'Prod. roślinna str 2'!C39,Dane_srednie_baza,7,0),0) -> 0 | G39: 0 | H39: 0 | J39: =AND(VLOOKUP(C39,rosliny_baza,2,0),('Prod. zwierzęca towar.'!$B$6>0)) ->  | L39: 0 | M39: 0 | N39: 0 | O39: 0 | P39: 0 | Q39: =IF(OR(C39='Koszty nieponiesione'!$A$283,C39='Koszty nieponiesione'!$A$291,C39='Koszty nieponiesione'!$A$295,C39='Koszty nieponiesione'!$A$303,C39='Koszty nieponiesione'!$A$307,C39='Koszty nieponiesione'!$A$311,C39='Koszty nieponiesione'!$A$315,C39='Koszty nieponiesione'!$A$319), 'Prod. roślinna'!D39,0) -> 0 | S39: 0
A40: A | B40: 72 | E40: =IFERROR(VLOOKUP(region&'Prod. roślinna str 2'!$C40,Dane_srednie_baza,6,0),0) -> 0 | F40: =IFERROR(VLOOKUP(region&'Prod. roślinna str 2'!C40,Dane_srednie_baza,7,0),0) -> 0 | G40: 0 | H40: 0 | J40: =AND(VLOOKUP(C40,rosliny_baza,2,0),('Prod. zwierzęca towar.'!$B$6>0)) ->  | L40: 0 | M40: 0 | N40: 0 | O40: =IF(I40>=70%,VLOOKUP(A40,Koszty_nieponiesione_baza,2,0)*D40,0) -> 0 | P40: 0 | Q40: =IF(OR(C40='Koszty nieponiesione'!$A$283,C40='Koszty nieponiesione'!$A$291,C40='Koszty nieponiesione'!$A$295,C40='Koszty nieponiesione'!$A$303,C40='Koszty nieponiesione'!$A$307,C40='Koszty nieponiesione'!$A$311,C40='Koszty nieponiesione'!$A$315,C40='Koszty nieponiesione'!$A$319), 'Prod. roślinna'!D40,0) -> 0 | S40: 0
A41: A | B41: 73 | E41: =IFERROR(VLOOKUP(region&'Prod. roślinna str 2'!$C41,Dane_srednie_baza,6,0),0) -> 0 | F41: =IFERROR(VLOOKUP(region&'Prod. roślinna str 2'!C41,Dane_srednie_baza,7,0),0) -> 0 | G41: 0 | H41: 0 | J41: =AND(VLOOKUP(C41,rosliny_baza,2,0),('Prod. zwierzęca towar.'!$B$6>0)) ->  | L41: 0 | M41: 0 | N41: 0 | O41: 0 | P41: 0 | Q41: =IF(OR(C41='Koszty nieponiesione'!$A$283,C41='Koszty nieponiesione'!$A$291,C41='Koszty nieponiesione'!$A$295,C41='Koszty nieponiesione'!$A$303,C41='Koszty nieponiesione'!$A$307,C41='Koszty nieponiesione'!$A$311,C41='Koszty nieponiesione'!$A$315,C41='Koszty nieponiesione'!$A$319), 'Prod. roślinna'!D41,0) -> 0 | S41: 0
A42: A | B42: 74 | E42: =IFERROR(VLOOKUP(region&'Prod. roślinna str 2'!$C42,Dane_srednie_baza,6,0),0) -> 0 | F42: =IFERROR(VLOOKUP(region&'Prod. roślinna str 2'!C42,Dane_srednie_baza,7,0),0) -> 0 | G42: 0 | H42: 0 | J42: =AND(VLOOKUP(C42,rosliny_baza,2,0),('Prod. zwierzęca towar.'!$B$6>0)) ->  | L42: 0 | M42: 0 | N42: 0 | O42: 0 | P42: 0 | Q42: =IF(OR(C42='Koszty nieponiesione'!$A$283,C42='Koszty nieponiesione'!$A$291,C42='Koszty nieponiesione'!$A$295,C42='Koszty nieponiesione'!$A$303,C42='Koszty nieponiesione'!$A$307,C42='Koszty nieponiesione'!$A$311,C42='Koszty nieponiesione'!$A$315,C42='Koszty nieponiesione'!$A$319), 'Prod. roślinna'!D42,0) -> 0 | S42: 0
A43: A | B43: 75 | E43: =IFERROR(VLOOKUP(region&'Prod. roślinna str 2'!$C43,Dane_srednie_baza,6,0),0) -> 0 | F43: =IFERROR(VLOOKUP(region&'Prod. roślinna str 2'!C43,Dane_srednie_baza,7,0),0) -> 0 | G43: 0 | H43: 0 | J43: =AND(VLOOKUP(C43,rosliny_baza,2,0),('Prod. zwierzęca towar.'!$B$6>0)) ->  | L43: 0 | M43: 0 | N43: 0 | O43: 0 | P43: 0 | Q43: =IF(OR(C43='Koszty nieponiesione'!$A$283,C43='Koszty nieponiesione'!$A$291,C43='Koszty nieponiesione'!$A$295,C43='Koszty nieponiesione'!$A$303,C43='Koszty nieponiesione'!$A$307,C43='Koszty nieponiesione'!$A$311,C43='Koszty nieponiesione'!$A$315,C43='Koszty nieponiesione'!$A$319), 'Prod. roślinna'!D43,0) -> 0 | S43: 0
A44: A | B44: 76 | E44: =IFERROR(VLOOKUP(region&'Prod. roślinna str 2'!$C44,Dane_srednie_baza,6,0),0) -> 0 | F44: =IFERROR(VLOOKUP(region&'Prod. roślinna str 2'!C44,Dane_srednie_baza,7,0),0) -> 0 | G44: 0 | H44: 0 | J44: =AND(VLOOKUP(C44,rosliny_baza,2,0),('Prod. zwierzęca towar.'!$B$6>0)) ->  | L44: 0 | M44: 0 | N44: 0 | O44: 0 | P44: 0 | Q44: =IF(OR(C44='Koszty nieponiesione'!$A$283,C44='Koszty nieponiesione'!$A$291,C44='Koszty nieponiesione'!$A$295,C44='Koszty nieponiesione'!$A$303,C44='Koszty nieponiesione'!$A$307,C44='Koszty nieponiesione'!$A$311,C44='Koszty nieponiesione'!$A$315,C44='Koszty nieponiesione'!$A$319), 'Prod. roślinna'!D44,0) -> 0 | S44: 0
A45: A | B45: 77 | E45: =IFERROR(VLOOKUP(region&'Prod. roślinna str 2'!$C45,Dane_srednie_baza,6,0),0) -> 0 | F45: =IFERROR(VLOOKUP(region&'Prod. roślinna str 2'!C45,Dane_srednie_baza,7,0),0) -> 0 | G45: =E45*F45 -> 0 | H45: =D45*G45 -> 0 | J45: =AND(VLOOKUP(C45,rosliny_baza,2,0),('Prod. zwierzęca towar.'!$B$6>0)) ->  | L45: =H45*(100%-I45) -> 0 | M45: =H45-L45 -> 0 | N45: 0 | O45: 0 | P45: 0 | Q45: =IF(OR(C45='Koszty nieponiesione'!$A$283,C45='Koszty nieponiesione'!$A$291,C45='Koszty nieponiesione'!$A$295,C45='Koszty nieponiesione'!$A$303,C45='Koszty nieponiesione'!$A$307,C45='Koszty nieponiesione'!$A$311,C45='Koszty nieponiesione'!$A$315,C45='Koszty nieponiesione'!$A$319), 'Prod. roślinna'!D45,0) -> 0 | S45: =IF(I45>0,D45,0) -> 0
A46: A | B46: 78 | E46: =IFERROR(VLOOKUP(region&'Prod. roślinna str 2'!$C46,Dane_srednie_baza,6,0),0) -> 0 | F46: =IFERROR(VLOOKUP(region&'Prod. roślinna str 2'!C46,Dane_srednie_baza,7,0),0) -> 0 | G46: 0 | H46: 0 | J46: =AND(VLOOKUP(C46,rosliny_baza,2,0),('Prod. zwierzęca towar.'!$B$6>0)) ->  | L46: 0 | M46: 0 | N46: 0 | O46: 0 | P46: 0 | Q46: =IF(OR(C46='Koszty nieponiesione'!$A$283,C46='Koszty nieponiesione'!$A$291,C46='Koszty nieponiesione'!$A$295,C46='Koszty nieponiesione'!$A$303,C46='Koszty nieponiesione'!$A$307,C46='Koszty nieponiesione'!$A$311,C46='Koszty nieponiesione'!$A$315,C46='Koszty nieponiesione'!$A$319), 'Prod. roślinna'!D46,0) -> 0 | S46: 0
A47: A | B47: 79 | E47: =IFERROR(VLOOKUP(region&'Prod. roślinna str 2'!$C47,Dane_srednie_baza,6,0),0) -> 0 | F47: =IFERROR(VLOOKUP(region&'Prod. roślinna str 2'!C47,Dane_srednie_baza,7,0),0) -> 0 | G47: 0 | H47: 0 | J47: =AND(VLOOKUP(C47,rosliny_baza,2,0),('Prod. zwierzęca towar.'!$B$6>0)) ->  | L47: 0 | M47: 0 | N47: 0 | O47: 0 | P47: 0 | Q47: =IF(OR(C47='Koszty nieponiesione'!$A$283,C47='Koszty nieponiesione'!$A$291,C47='Koszty nieponiesione'!$A$295,C47='Koszty nieponiesione'!$A$303,C47='Koszty nieponiesione'!$A$307,C47='Koszty nieponiesione'!$A$311,C47='Koszty nieponiesione'!$A$315,C47='Koszty nieponiesione'!$A$319), 'Prod. roślinna'!D47,0) -> 0 | S47: 0
A48: A | B48: 80 | E48: =IFERROR(VLOOKUP(region&'Prod. roślinna str 2'!$C48,Dane_srednie_baza,6,0),0) -> 0 | F48: =IFERROR(VLOOKUP(region&'Prod. roślinna str 2'!C48,Dane_srednie_baza,7,0),0) -> 0 | G48: 0 | H48: 0 | J48: =AND(VLOOKUP(C48,rosliny_baza,2,0),('Prod. zwierzęca towar.'!$B$6>0)) ->  | L48: 0 | M48: 0 | N48: 0 | O48: 0 | P48: 0 | Q48: =IF(OR(C48='Koszty nieponiesione'!$A$283,C48='Koszty nieponiesione'!$A$291,C48='Koszty nieponiesione'!$A$295,C48='Koszty nieponiesione'!$A$303,C48='Koszty nieponiesione'!$A$307,C48='Koszty nieponiesione'!$A$311,C48='Koszty nieponiesione'!$A$315,C48='Koszty nieponiesione'!$A$319), 'Prod. roślinna'!D48,0) -> 0 | S48: 0
A49: A | B49: 81 | E49: =IFERROR(VLOOKUP(region&'Prod. roślinna str 2'!$C49,Dane_srednie_baza,6,0),0) -> 0 | F49: =IFERROR(VLOOKUP(region&'Prod. roślinna str 2'!C49,Dane_srednie_baza,7,0),0) -> 0 | G49: 0 | H49: 0 | J49: =AND(VLOOKUP(C49,rosliny_baza,2,0),('Prod. zwierzęca towar.'!$B$6>0)) ->  | L49: 0 | M49: 0 | N49: 0 | O49: 0 | P49: 0 | Q49: =IF(OR(C49='Koszty nieponiesione'!$A$283,C49='Koszty nieponiesione'!$A$291,C49='Koszty nieponiesione'!$A$295,C49='Koszty nieponiesione'!$A$303,C49='Koszty nieponiesione'!$A$307,C49='Koszty nieponiesione'!$A$311,C49='Koszty nieponiesione'!$A$315,C49='Koszty nieponiesione'!$A$319), 'Prod. roślinna'!D49,0) -> 0 | S49: 0
A50: A | B50: 82 | E50: =IFERROR(VLOOKUP(region&'Prod. roślinna str 2'!$C50,Dane_srednie_baza,6,0),0) -> 0 | F50: =IFERROR(VLOOKUP(region&'Prod. roślinna str 2'!C50,Dane_srednie_baza,7,0),0) -> 0 | G50: 0 | H50: 0 | J50: =AND(VLOOKUP(C50,rosliny_baza,2,0),('Prod. zwierzęca towar.'!$B$6>0)) ->  | L50: 0 | M50: 0 | N50: 0 | O50: 0 | P50: 0 | Q50: =IF(OR(C50='Koszty nieponiesione'!$A$283,C50='Koszty nieponiesione'!$A$291,C50='Koszty nieponiesione'!$A$295,C50='Koszty nieponiesione'!$A$303,C50='Koszty nieponiesione'!$A$307,C50='Koszty nieponiesione'!$A$311,C50='Koszty nieponiesione'!$A$315,C50='Koszty nieponiesione'!$A$319), 'Prod. roślinna'!D50,0) -> 0 | S50: 0
A51: A | B51: 83 | E51: =IFERROR(VLOOKUP(region&'Prod. roślinna str 2'!$C51,Dane_srednie_baza,6,0),0) -> 0 | F51: =IFERROR(VLOOKUP(region&'Prod. roślinna str 2'!C51,Dane_srednie_baza,7,0),0) -> 0 | G51: 0 | H51: 0 | J51: =AND(VLOOKUP(C51,rosliny_baza,2,0),('Prod. zwierzęca towar.'!$B$6>0)) ->  | L51: 0 | M51: 0 | N51: 0 | O51: 0 | P51: 0 | Q51: =IF(OR(C51='Koszty nieponiesione'!$A$283,C51='Koszty nieponiesione'!$A$291,C51='Koszty nieponiesione'!$A$295,C51='Koszty nieponiesione'!$A$303,C51='Koszty nieponiesione'!$A$307,C51='Koszty nieponiesione'!$A$311,C51='Koszty nieponiesione'!$A$315,C51='Koszty nieponiesione'!$A$319), 'Prod. roślinna'!D51,0) -> 0 | S51: 0
A52: A | B52: 84 | E52: =IFERROR(VLOOKUP(region&'Prod. roślinna str 2'!$C52,Dane_srednie_baza,6,0),0) -> 0 | F52: =IFERROR(VLOOKUP(region&'Prod. roślinna str 2'!C52,Dane_srednie_baza,7,0),0) -> 0 | G52: 0 | H52: 0 | J52: =AND(VLOOKUP(C52,rosliny_baza,2,0),('Prod. zwierzęca towar.'!$B$6>0)) ->  | L52: 0 | M52: 0 | N52: 0 | O52: 0 | P52: 0 | Q52: =IF(OR(C52='Koszty nieponiesione'!$A$283,C52='Koszty nieponiesione'!$A$291,C52='Koszty nieponiesione'!$A$295,C52='Koszty nieponiesione'!$A$303,C52='Koszty nieponiesione'!$A$307,C52='Koszty nieponiesione'!$A$311,C52='Koszty nieponiesione'!$A$315,C52='Koszty nieponiesione'!$A$319), 'Prod. roślinna'!D52,0) -> 0 | S52: 0
A53: A | B53: 85 | E53: =IFERROR(VLOOKUP(region&'Prod. roślinna str 2'!$C53,Dane_srednie_baza,6,0),0) -> 0 | F53: =IFERROR(VLOOKUP(region&'Prod. roślinna str 2'!C53,Dane_srednie_baza,7,0),0) -> 0 | G53: 0 | H53: 0 | J53: =AND(VLOOKUP(C53,rosliny_baza,2,0),('Prod. zwierzęca towar.'!$B$6>0)) ->  | L53: 0 | M53: 0 | N53: 0 | O53: 0 | P53: 0 | Q53: =IF(OR(C53='Koszty nieponiesione'!$A$283,C53='Koszty nieponiesione'!$A$291,C53='Koszty nieponiesione'!$A$295,C53='Koszty nieponiesione'!$A$303,C53='Koszty nieponiesione'!$A$307,C53='Koszty nieponiesione'!$A$311,C53='Koszty nieponiesione'!$A$315,C53='Koszty nieponiesione'!$A$319), 'Prod. roślinna'!D53,0) -> 0 | S53: 0
A54: A | B54: 86 | E54: =IFERROR(VLOOKUP(region&'Prod. roślinna str 2'!$C54,Dane_srednie_baza,6,0),0) -> 0 | F54: =IFERROR(VLOOKUP(region&'Prod. roślinna str 2'!C54,Dane_srednie_baza,7,0),0) -> 0 | G54: 0 | H54: 0 | J54: =AND(VLOOKUP(C54,rosliny_baza,2,0),('Prod. zwierzęca towar.'!$B$6>0)) ->  | L54: 0 | M54: 0 | N54: 0 | O54: 0 | P54: 0 | Q54: =IF(OR(C54='Koszty nieponiesione'!$A$283,C54='Koszty nieponiesione'!$A$291,C54='Koszty nieponiesione'!$A$295,C54='Koszty nieponiesione'!$A$303,C54='Koszty nieponiesione'!$A$307,C54='Koszty nieponiesione'!$A$311,C54='Koszty nieponiesione'!$A$315,C54='Koszty nieponiesione'!$A$319), 'Prod. roślinna'!D54,0) -> 0 | S54: 0
A55: A | B55: 87 | E55: =IFERROR(VLOOKUP(region&'Prod. roślinna str 2'!$C55,Dane_srednie_baza,6,0),0) -> 0 | F55: =IFERROR(VLOOKUP(region&'Prod. roślinna str 2'!C55,Dane_srednie_baza,7,0),0) -> 0 | G55: 0 | H55: 0 | J55: =AND(VLOOKUP(C55,rosliny_baza,2,0),('Prod. zwierzęca towar.'!$B$6>0)) ->  | L55: 0 | M55: 0 | N55: 0 | O55: 0 | P55: 0 | Q55: =IF(OR(C55='Koszty nieponiesione'!$A$283,C55='Koszty nieponiesione'!$A$291,C55='Koszty nieponiesione'!$A$295,C55='Koszty nieponiesione'!$A$303,C55='Koszty nieponiesione'!$A$307,C55='Koszty nieponiesione'!$A$311,C55='Koszty nieponiesione'!$A$315,C55='Koszty nieponiesione'!$A$319), 'Prod. roślinna'!D55,0) -> 0 | S55: 0
A56: A | B56: 88 | E56: =IFERROR(VLOOKUP(region&'Prod. roślinna str 2'!$C56,Dane_srednie_baza,6,0),0) -> 0 | F56: =IFERROR(VLOOKUP(region&'Prod. roślinna str 2'!C56,Dane_srednie_baza,7,0),0) -> 0 | G56: =E56*F56 -> 0 | H56: 0 | J56: =AND(VLOOKUP(C56,rosliny_baza,2,0),('Prod. zwierzęca towar.'!$B$6>0)) ->  | L56: 0 | M56: 0 | N56: 0 | O56: 0 | P56: 0 | Q56: =IF(OR(C56='Koszty nieponiesione'!$A$283,C56='Koszty nieponiesione'!$A$291,C56='Koszty nieponiesione'!$A$295,C56='Koszty nieponiesione'!$A$303,C56='Koszty nieponiesione'!$A$307,C56='Koszty nieponiesione'!$A$311,C56='Koszty nieponiesione'!$A$315,C56='Koszty nieponiesione'!$A$319), 'Prod. roślinna'!D56,0) -> 0 | S56: 0
B57: Razem (poz. 40 - 88) | D57: =SUM(D8:D56) -> 0 | E57: x | F57: x | G57: x | H57: =SUM(H8:H56) -> 0 | I57: x | K57: =IF(SUM(K8:K56)<'Prod. zwierzęca towar.'!H57,SUM(K8:K56),'Prod. zwierzęca towar.'!H57) -> 0 | L57: =SUM(L8:L56) -> 0 | M57: =SUM(M8:M56) -> 0 | N57: =SUM(N8:N56) -> 0 | P57: =SUM(P8:P56) -> 0 | Q57: =SUM(Q8:Q56) -> 0 | R57: =SUM(R8:R56) -> 0 | S57: =SUM(S8:S56) -> 0
B58: *Dane w kolumnie 9 "Wysokości szkód w uprawach uwzględnianych w produkcji zwierzęcej” oblicza się w zakresie upraw : rośliny pastewne objętościowe na gruntach ornych, okopowe pastewne na pasze, buraki pastewne na pasze, brukiew pastewna na pasze, marchew pastewna na pasze, dynia pastewna na pasze, pozostałe okopowe pastewne na pasze, kukurydza pastewna na zielonkę, zboża na zielonkę i mieszanki zbóż z innymi roślinami na zielonkę, trawy w uprawie polowej na zielonkę, strączkowe na zielonkę, motylkowe drobnonasienne na zielonkę, mieszanki motylkowych z trawami, pozostałe polowe uprawy pastewne na zielonkę, rośliny pastewne objętościowe z użytków zielonych (uprawa lub zielonka), rośliny pastewne objętościowe z łąk – zielonka, rośliny pastewne objętościowe z pastwisk, rośliny pastewne objętościowe z pastwisk pielęgnowanych, rośliny pastewne objętościowe z pastwisk niepielęgnowanych, kukurydza (sucha i wilgotna) na ziarno, proso na ziarno, strączkowe pastewne na nasiona suche, groch pastewny (peluszka) na nasiona suche, pozostałe strączkowe pastewne na nasiona suche, mieszanki strączkowych z innymi roślinami jare na nasiona suche, mieszanki strączkowych z innymi roślinami ozime na nasiona suche. w przypadku prowadzenia produkcji zwierzęcej w zakresie: byki do opasu, wolce 2-letnie i starsze, jałówki do opasu 2-letnie i starsze, byczki od 1 do 2 lat, jałówki od 1 do 2 lat, owce 1 roczne i starsze, mleko krowie, mleko owcze, mleko kozie, kozy 1 roczne i starsze, konie, tuczniki o wadze 50 kg i więcej, warchlaki do tuczu o wadze od 20 do 50 kg.
C61: Czytelne podpisy członków komisji powołanych przez Wojewodę
B62: 1. | C62: ……………………………………………………………………………………………….……… | F62: 6. | G62: ……………………………………………………………………………………………….………
B63: 2. | C63: ……………………………………………………………………………………………….……… | F63: 7. | G63: ……………………………………………………………………………………………….………
B64: 3. | C64: ……………………………………………………………………………………………….……… | F64: 8. | G64: ……………………………………………………………………………………………….………
B65: 4. | C65: ……………………………………………………………………………………………….……… | F65: 9. | G65: ……………………………………………………………………………………………….……… | N65: …………………………………..……………..……….….
B66: 5. | C66: ……………………………………………………………………………………………….……… | F66: 10. | G66: ……………………………………………………………………………………………….……… | N66: (data i czytelny podpis rolnika)

Sheet Prod. roślinna str 3
B1: Załącznik 1 Szkody w produkcji roślinnej | M1: DLA REGIONU FADN | R1: =Protokół!V1 -> A
B2: Imię i nazwisko producenta rolnego | D2: Imię i nazwisko producenta rolnego | F2: =Protokół!G8 -> ……………………………………… ………………………...……………
B4: L.p | C4: Nazwa wszystkich upraw w gospodarstwie rolnym | D4: Powierzchnia uprawy w roku wystąpienia niekorzystnego zjawiska atmosferycznego | E4: Średni plon z 1 ha danej uprawy | F4: Średnia cena | G4: Średni dochód z 1 ha | H4: Średnia roczna wartość produkcji | I4: Straty plonu w % w roku wystąpienia szkody | K4: Wysokość szkód w uprawach uwzględnianych w produkcji zwierzęcej * | L4: Wartość produkcji w roku wystąpienia szkód po wystąpieniu niekorzystnego zjawiska atmosferycznego | M4: Kwota obniżenia dochodu w wyniku szkód | N4: Koszty nieponiesione w związku z wystąpieniem szkód łącznie | P4: pow 70% | Q4: pow UZ | R4: Koszty poniesione z powodu niezebrania plonów w wyniku szkód łącznie | S4: Powierzchnia upraw rolnych dotknięta zjawiskiem wynosi
D5: ha | E5: dt/ha | F5: w zł/dt | G5: w zł/ha | H5: w zł | I5: % | K5: zł | L5: zł | M5: zł | N5: zł | R5: zł
C6: NAZWA
B7: 1 | C7: 2 | D7: 3 | E7: 4 | F7: 5 | G7: 6=4x5 | H7: 7=3x6 | I7: 8 | K7: 9=7x8 | L7: 10= 7x(100%-8) | M7: 11=7-10 | N7: 12 | R7: 13 | S7: 14
A8: =C8&region -> A | B8: 89 | E8: =IFERROR(VLOOKUP(region&'Prod. roślinna str 3'!$C8,Dane_srednie_baza,6,0),0) -> 0 | F8: =IFERROR(VLOOKUP(region&'Prod. roślinna str 3'!C8,Dane_srednie_baza,7,0),0) -> 0 | G8: =E8*F8 -> 0 | H8: =D8*G8 -> 0 | J8: =AND(VLOOKUP(C8,rosliny_baza,2,0),('Prod. zwierzęca towar.'!$B$6>0)) ->  | L8: =H8*(100%-I8) -> 0 | M8: =H8-L8 -> 0 | N8: =I8*O8 -> 0 | O8: =IF(I8>=70%,VLOOKUP(A8,Koszty_nieponiesione_baza,2,0)*D8,0) -> 0 | P8: =IF(I8>=70%,D8,0) -> 0 | Q8: =IF(OR(C8='Koszty nieponiesione'!$A$283,C8='Koszty nieponiesione'!$A$291,C8='Koszty nieponiesione'!$A$295,C8='Koszty nieponiesione'!$A$303,C8='Koszty nieponiesione'!$A$307,C8='Koszty nieponiesione'!$A$311,C8='Koszty nieponiesione'!$A$315,C8='Koszty nieponiesione'!$A$319), 'Prod. roślinna'!D8,0) -> 0 | S8: =IF(I8>0,D8,0) -> 0
A9: A | B9: 90 | E9: =IFERROR(VLOOKUP(region&'Prod. roślinna str 3'!$C9,Dane_srednie_baza,6,0),0) -> 0 | F9: =IFERROR(VLOOKUP(region&'Prod. roślinna str 3'!C9,Dane_srednie_baza,7,0),0) -> 0 | G9: =E9*F9 -> 0 | H9: =D9*G9 -> 0 | J9: =AND(VLOOKUP(C9,rosliny_baza,2,0),('Prod. zwierzęca towar.'!$B$6>0)) ->  | L9: =H9*(100%-I9) -> 0 | M9: =H9-L9 -> 0 | N9: =I9*O9 -> 0 | O9: 0 | P9: 0 | Q9: =IF(OR(C9='Koszty nieponiesione'!$A$283,C9='Koszty nieponiesione'!$A$291,C9='Koszty nieponiesione'!$A$295,C9='Koszty nieponiesione'!$A$303,C9='Koszty nieponiesione'!$A$307,C9='Koszty nieponiesione'!$A$311,C9='Koszty nieponiesione'!$A$315,C9='Koszty nieponiesione'!$A$319), 'Prod. roślinna'!D9,0) -> 0 | S9: 0
A10: A | B10: 91 | E10: =IFERROR(VLOOKUP(region&'Prod. roślinna str 3'!$C10,Dane_srednie_baza,6,0),0) -> 0 | F10: =IFERROR(VLOOKUP(region&'Prod. roślinna str 3'!C10,Dane_srednie_baza,7,0),0) -> 0 | G10: 0 | H10: 0 | J10: =AND(VLOOKUP(C10,rosliny_baza,2,0),('Prod. zwierzęca towar.'!$B$6>0)) ->  | L10: 0 | M10: 0 | N10: 0 | O10: 0 | P10: 0 | Q10: =IF(OR(C10='Koszty nieponiesione'!$A$283,C10='Koszty nieponiesione'!$A$291,C10='Koszty nieponiesione'!$A$295,C10='Koszty nieponiesione'!$A$303,C10='Koszty nieponiesione'!$A$307,C10='Koszty nieponiesione'!$A$311,C10='Koszty nieponiesione'!$A$315,C10='Koszty nieponiesione'!$A$319), 'Prod. roślinna'!D10,0) -> 0 | S10: 0
A11: A | B11: 92 | E11: =IFERROR(VLOOKUP(region&'Prod. roślinna str 3'!$C11,Dane_srednie_baza,6,0),0) -> 0 | F11: =IFERROR(VLOOKUP(region&'Prod. roślinna str 3'!C11,Dane_srednie_baza,7,0),0) -> 0 | G11: 0 | H11: 0 | J11: =AND(VLOOKUP(C11,rosliny_baza,2,0),('Prod. zwierzęca towar.'!$B$6>0)) ->  | L11: 0 | M11: 0 | N11: 0 | O11: 0 | P11: 0 | Q11: =IF(OR(C11='Koszty nieponiesione'!$A$283,C11='Koszty nieponiesione'!$A$291,C11='Koszty nieponiesione'!$A$295,C11='Koszty nieponiesione'!$A$303,C11='Koszty nieponiesione'!$A$307,C11='Koszty nieponiesione'!$A$311,C11='Koszty nieponiesione'!$A$315,C11='Koszty nieponiesione'!$A$319), 'Prod. roślinna'!D11,0) -> 0 | S11: 0
A12: A | B12: 93 | E12: =IFERROR(VLOOKUP(region&'Prod. roślinna str 3'!$C12,Dane_srednie_baza,6,0),0) -> 0 | F12: =IFERROR(VLOOKUP(region&'Prod. roślinna str 3'!C12,Dane_srednie_baza,7,0),0) -> 0 | G12: 0 | H12: 0 | J12: =AND(VLOOKUP(C12,rosliny_baza,2,0),('Prod. zwierzęca towar.'!$B$6>0)) ->  | L12: 0 | M12: 0 | N12: 0 | O12: 0 | P12: 0 | Q12: =IF(OR(C12='Koszty nieponiesione'!$A$283,C12='Koszty nieponiesione'!$A$291,C12='Koszty nieponiesione'!$A$295,C12='Koszty nieponiesione'!$A$303,C12='Koszty nieponiesione'!$A$307,C12='Koszty nieponiesione'!$A$311,C12='Koszty nieponiesione'!$A$315,C12='Koszty nieponiesione'!$A$319), 'Prod. roślinna'!D12,0) -> 0 | S12: 0
A13: A | B13: 94 | E13: =IFERROR(VLOOKUP(region&'Prod. roślinna str 3'!$C13,Dane_srednie_baza,6,0),0) -> 0 | F13: =IFERROR(VLOOKUP(region&'Prod. roślinna str 3'!C13,Dane_srednie_baza,7,0),0) -> 0 | G13: 0 | H13: 0 | J13: =AND(VLOOKUP(C13,rosliny_baza,2,0),('Prod. zwierzęca towar.'!$B$6>0)) ->  | L13: 0 | M13: 0 | N13: 0 | O13: 0 | P13: 0 | Q13: =IF(OR(C13='Koszty nieponiesione'!$A$283,C13='Koszty nieponiesione'!$A$291,C13='Koszty nieponiesione'!$A$295,C13='Koszty nieponiesione'!$A$303,C13='Koszty nieponiesione'!$A$307,C13='Koszty nieponiesione'!$A$311,C13='Koszty nieponiesione'!$A$315,C13='Koszty nieponiesione'!$A$319), 'Prod. roślinna'!D13,0) -> 0 | S13: 0
A14: A | B14: 95 | E14: =IFERROR(VLOOKUP(region&'Prod. roślinna str 3'!$C14,Dane_srednie_baza,6,0),0) -> 0 | F14: =IFERROR(VLOOKUP(region&'Prod. roślinna str 3'!C14,Dane_srednie_baza,7,0),0) -> 0 | G14: 0 | H14: 0 | J14: =AND(VLOOKUP(C14,rosliny_baza,2,0),('Prod. zwierzęca towar.'!$B$6>0)) ->  | L14: 0 | M14: 0 | N14: 0 | O14: 0 | P14: 0 | Q14: =IF(OR(C14='Koszty nieponiesione'!$A$283,C14='Koszty nieponiesione'!$A$291,C14='Koszty nieponiesione'!$A$295,C14='Koszty nieponiesione'!$A$303,C14='Koszty nieponiesione'!$A$307,C14='Koszty nieponiesione'!$A$311,C14='Koszty nieponiesione'!$A$315,C14='Koszty nieponiesione'!$A$319), 'Prod. roślinna'!D14,0) -> 0 | S14: 0
A15: A | B15: 96 | E15: =IFERROR(VLOOKUP(region&'Prod. roślinna str 3'!$C15,Dane_srednie_baza,6,0),0) -> 0 | F15: =IFERROR(VLOOKUP(region&'Prod. roślinna str 3'!C15,Dane_srednie_baza,7,0),0) -> 0 | G15: 0 | H15: 0 | J15: =AND(VLOOKUP(C15,rosliny_baza,2,0),('Prod. zwierzęca towar.'!$B$6>0)) ->  | L15: 0 | M15: 0 | N15: 0 | O15: 0 | P15: 0 | Q15: =IF(OR(C15='Koszty nieponiesione'!$A$283,C15='Koszty nieponiesione'!$A$291,C15='Koszty nieponiesione'!$A$295,C15='Koszty nieponiesione'!$A$303,C15='Koszty nieponiesione'!$A$307,C15='Koszty nieponiesione'!$A$311,C15='Koszty nieponiesione'!$A$315,C15='Koszty nieponiesione'!$A$319), 'Prod. roślinna'!D15,0) -> 0 | S15: 0
A16: A | B16: 97 | E16: =IFERROR(VLOOKUP(region&'Prod. roślinna str 3'!$C16,Dane_srednie_baza,6,0),0) -> 0 | F16: =IFERROR(VLOOKUP(region&'Prod. roślinna str 3'!C16,Dane_srednie_baza,7,0),0) -> 0 | G16: 0 | H16: 0 | J16: =AND(VLOOKUP(C16,rosliny_baza,2,0),('Prod. zwierzęca towar.'!$B$6>0)) ->  | L16: 0 | M16: 0 | N16: 0 | O16: 0 | P16: 0 | Q16: =IF(OR(C16='Koszty nieponiesione'!$A$283,C16='Koszty nieponiesione'!$A$291,C16='Koszty nieponiesione'!$A$295,C16='Koszty nieponiesione'!$A$303,C16='Koszty nieponiesione'!$A$307,C16='Koszty nieponiesione'!$A$311,C16='Koszty nieponiesione'!$A$315,C16='Koszty nieponiesione'!$A$319), 'Prod. roślinna'!D16,0) -> 0 | S16: 0
A17: A | B17: 98 | E17: =IFERROR(VLOOKUP(region&'Prod. roślinna str 3'!$C17,Dane_srednie_baza,6,0),0) -> 0 | F17: =IFERROR(VLOOKUP(region&'Prod. roślinna str 3'!C17,Dane_srednie_baza,7,0),0) -> 0 | G17: 0 | H17: 0 | J17: =AND(VLOOKUP(C17,rosliny_baza,2,0),('Prod. zwierzęca towar.'!$B$6>0)) ->  | L17: 0 | M17: 0 | N17: 0 | O17: 0 | P17: 0 | Q17: =IF(OR(C17='Koszty nieponiesione'!$A$283,C17='Koszty nieponiesione'!$A$291,C17='Koszty nieponiesione'!$A$295,C17='Koszty nieponiesione'!$A$303,C17='Koszty nieponiesione'!$A$307,C17='Koszty nieponiesione'!$A$311,C17='Koszty nieponiesione'!$A$315,C17='Koszty nieponiesione'!$A$319), 'Prod. roślinna'!D17,0) -> 0 | S17: 0
A18: A | B18: 99 | E18: =IFERROR(VLOOKUP(region&'Prod. roślinna str 3'!$C18,Dane_srednie_baza,6,0),0) -> 0 | F18: =IFERROR(VLOOKUP(region&'Prod. roślinna str 3'!C18,Dane_srednie_baza,7,0),0) -> 0 | G18: 0 | H18: 0 | J18: =AND(VLOOKUP(C18,rosliny_baza,2,0),('Prod. zwierzęca towar.'!$B$6>0)) ->  | L18: 0 | M18: 0 | N18: 0 | O18: 0 | P18: 0 | Q18: =IF(OR(C18='Koszty nieponiesione'!$A$283,C18='Koszty nieponiesione'!$A$291,C18='Koszty nieponiesione'!$A$295,C18='Koszty nieponiesione'!$A$303,C18='Koszty nieponiesione'!$A$307,C18='Koszty nieponiesione'!$A$311,C18='Koszty nieponiesione'!$A$315,C18='Koszty nieponiesione'!$A$319), 'Prod. roślinna'!D18,0) -> 0 | S18: 0
A19: A | B19: 100 | E19: =IFERROR(VLOOKUP(region&'Prod. roślinna str 3'!$C19,Dane_srednie_baza,6,0),0) -> 0 | F19: =IFERROR(VLOOKUP(region&'Prod. roślinna str 3'!C19,Dane_srednie_baza,7,0),0) -> 0 | G19: 0 | H19: 0 | J19: =AND(VLOOKUP(C19,rosliny_baza,2,0),('Prod. zwierzęca towar.'!$B$6>0)) ->  | L19: 0 | M19: 0 | N19: 0 | O19: 0 | P19: 0 | Q19: =IF(OR(C19='Koszty nieponiesione'!$A$283,C19='Koszty nieponiesione'!$A$291,C19='Koszty nieponiesione'!$A$295,C19='Koszty nieponiesione'!$A$303,C19='Koszty nieponiesione'!$A$307,C19='Koszty nieponiesione'!$A$311,C19='Koszty nieponiesione'!$A$315,C19='Koszty nieponiesione'!$A$319), 'Prod. roślinna'!D19,0) -> 0 | S19: 0
A20: A | B20: 101 | E20: =IFERROR(VLOOKUP(region&'Prod. roślinna str 3'!$C20,Dane_srednie_baza,6,0),0) -> 0 | F20: =IFERROR(VLOOKUP(region&'Prod. roślinna str 3'!C20,Dane_srednie_baza,7,0),0) -> 0 | G20: 0 | H20: 0 | J20: =AND(VLOOKUP(C20,rosliny_baza,2,0),('Prod. zwierzęca towar.'!$B$6>0)) ->  | L20: 0 | M20: 0 | N20: 0 | O20: 0 | P20: 0 | Q20: =IF(OR(C20='Koszty nieponiesione'!$A$283,C20='Koszty nieponiesione'!$A$291,C20='Koszty nieponiesione'!$A$295,C20='Koszty nieponiesione'!$A$303,C20='Koszty nieponiesione'!$A$307,C20='Koszty nieponiesione'!$A$311,C20='Koszty nieponiesione'!$A$315,C20='Koszty nieponiesione'!$A$319), 'Prod. roślinna'!D20,0) -> 0 | S20: 0
A21: A | B21: 102 | E21: =IFERROR(VLOOKUP(region&'Prod. roślinna str 3'!$C21,Dane_srednie_baza,6,0),0) -> 0 | F21: =IFERROR(VLOOKUP(region&'Prod. roślinna str 3'!C21,Dane_srednie_baza,7,0),0) -> 0 | G21: 0 | H21: 0 | J21: =AND(VLOOKUP(C21,rosliny_baza,2,0),('Prod. zwierzęca towar.'!$B$6>0)) ->  | L21: 0 | M21: 0 | N21: 0 | O21: 0 | P21: 0 | Q21: =IF(OR(C21='Koszty nieponiesione'!$A$283,C21='Koszty nieponiesione'!$A$291,C21='Koszty nieponiesione'!$A$295,C21='Koszty nieponiesione'!$A$303,C21='Koszty nieponiesione'!$A$307,C21='Koszty nieponiesione'!$A$311,C21='Koszty nieponiesione'!$A$315,C21='Koszty nieponiesione'!$A$319), 'Prod. roślinna'!D21,0) -> 0 | S21: 0
A22: A | B22: 103 | E22: =IFERROR(VLOOKUP(region&'Prod. roślinna str 3'!$C22,Dane_srednie_baza,6,0),0) -> 0 | F22: =IFERROR(VLOOKUP(region&'Prod. roślinna str 3'!C22,Dane_srednie_baza,7,0),0) -> 0 | G22: 0 | H22: 0 | J22: =AND(VLOOKUP(C22,rosliny_baza,2,0),('Prod. zwierzęca towar.'!$B$6>0)) ->  | L22: 0 | M22: 0 | N22: 0 | O22: 0 | P22: 0 | Q22: =IF(OR(C22='Koszty nieponiesione'!$A$283,C22='Koszty nieponiesione'!$A$291,C22='Koszty nieponiesione'!$A$295,C22='Koszty nieponiesione'!$A$303,C22='Koszty nieponiesione'!$A$307,C22='Koszty nieponiesione'!$A$311,C22='Koszty nieponiesione'!$A$315,C22='Koszty nieponiesione'!$A$319), 'Prod. roślinna'!D22,0) -> 0 | S22: 0
A23: A | B23: 104 | E23: =IFERROR(VLOOKUP(region&'Prod. roślinna str 3'!$C23,Dane_srednie_baza,6,0),0) -> 0 | F23: =IFERROR(VLOOKUP(region&'Prod. roślinna str 3'!C23,Dane_srednie_baza,7,0),0) -> 0 | G23: 0 | H23: 0 | J23: =AND(VLOOKUP(C23,rosliny_baza,2,0),('Prod. zwierzęca towar.'!$B$6>0)) ->  | L23: 0 | M23: 0 | N23: 0 | O23: 0 | P23: 0 | Q23: =IF(OR(C23='Koszty nieponiesione'!$A$283,C23='Koszty nieponiesione'!$A$291,C23='Koszty nieponiesione'!$A$295,C23='Koszty nieponiesione'!$A$303,C23='Koszty nieponiesione'!$A$307,C23='Koszty nieponiesione'!$A$311,C23='Koszty nieponiesione'!$A$315,C23='Koszty nieponiesione'!$A$319), 'Prod. roślinna'!D23,0) -> 0 | S23: 0
A24: A | B24: 105 | E24: =IFERROR(VLOOKUP(region&'Prod. roślinna str 3'!$C24,Dane_srednie_baza,6,0),0) -> 0 | F24: =IFERROR(VLOOKUP(region&'Prod. roślinna str 3'!C24,Dane_srednie_baza,7,0),0) -> 0 | G24: 0 | H24: 0 | J24: =AND(VLOOKUP(C24,rosliny_baza,2,0),('Prod. zwierzęca towar.'!$B$6>0)) ->  | L24: 0 | M24: 0 | N24: 0 | O24: 0 | P24: 0 | Q24: =IF(OR(C24='Koszty nieponiesione'!$A$283,C24='Koszty nieponiesione'!$A$291,C24='Koszty nieponiesione'!$A$295,C24='Koszty nieponiesione'!$A$303,C24='Koszty nieponiesione'!$A$307,C24='Koszty nieponiesione'!$A$311,C24='Koszty nieponiesione'!$A$315,C24='Koszty nieponiesione'!$A$319), 'Prod. roślinna'!D24,0) -> 0 | S24: 0
A25: A | B25: 106 | E25: =IFERROR(VLOOKUP(region&'Prod. roślinna str 3'!$C25,Dane_srednie_baza,6,0),0) -> 0 | F25: =IFERROR(VLOOKUP(region&'Prod. roślinna str 3'!C25,Dane_srednie_baza,7,0),0) -> 0 | G25: 0 | H25: 0 | J25: =AND(VLOOKUP(C25,rosliny_baza,2,0),('Prod. zwierzęca towar.'!$B$6>0)) ->  | L25: 0 | M25: 0 | N25: 0 | O25: 0 | P25: 0 | Q25: =IF(OR(C25='Koszty nieponiesione'!$A$283,C25='Koszty nieponiesione'!$A$291,C25='Koszty nieponiesione'!$A$295,C25='Koszty nieponiesione'!$A$303,C25='Koszty nieponiesione'!$A$307,C25='Koszty nieponiesione'!$A$311,C25='Koszty nieponiesione'!$A$315,C25='Koszty nieponiesione'!$A$319), 'Prod. roślinna'!D25,0) -> 0 | S25: 0
A26: A | B26: 107 | E26: =IFERROR(VLOOKUP(region&'Prod. roślinna str 3'!$C26,Dane_srednie_baza,6,0),0) -> 0 | F26: =IFERROR(VLOOKUP(region&'Prod. roślinna str 3'!C26,Dane_srednie_baza,7,0),0) -> 0 | G26: 0 | H26: 0 | J26: =AND(VLOOKUP(C26,rosliny_baza,2,0),('Prod. zwierzęca towar.'!$B$6>0)) ->  | L26: 0 | M26: 0 | N26: 0 | O26: 0 | P26: 0 | Q26: =IF(OR(C26='Koszty nieponiesione'!$A$283,C26='Koszty nieponiesione'!$A$291,C26='Koszty nieponiesione'!$A$295,C26='Koszty nieponiesione'!$A$303,C26='Koszty nieponiesione'!$A$307,C26='Koszty nieponiesione'!$A$311,C26='Koszty nieponiesione'!$A$315,C26='Koszty nieponiesione'!$A$319), 'Prod. roślinna'!D26,0) -> 0 | S26: 0
A27: A | B27: 108 | E27: =IFERROR(VLOOKUP(region&'Prod. roślinna str 3'!$C27,Dane_srednie_baza,6,0),0) -> 0 | F27: =IFERROR(VLOOKUP(region&'Prod. roślinna str 3'!C27,Dane_srednie_baza,7,0),0) -> 0 | G27: 0 | H27: 0 | J27: =AND(VLOOKUP(C27,rosliny_baza,2,0),('Prod. zwierzęca towar.'!$B$6>0)) ->  | L27: 0 | M27: 0 | N27: 0 | O27: 0 | P27: 0 | Q27: =IF(OR(C27='Koszty nieponiesione'!$A$283,C27='Koszty nieponiesione'!$A$291,C27='Koszty nieponiesione'!$A$295,C27='Koszty nieponiesione'!$A$303,C27='Koszty nieponiesione'!$A$307,C27='Koszty nieponiesione'!$A$311,C27='Koszty nieponiesione'!$A$315,C27='Koszty nieponiesione'!$A$319), 'Prod. roślinna'!D27,0) -> 0 | S27: 0
A28: A | B28: 109 | E28: =IFERROR(VLOOKUP(region&'Prod. roślinna str 3'!$C28,Dane_srednie_baza,6,0),0) -> 0 | F28: =IFERROR(VLOOKUP(region&'Prod. roślinna str 3'!C28,Dane_srednie_baza,7,0),0) -> 0 | G28: 0 | H28: 0 | J28: =AND(VLOOKUP(C28,rosliny_baza,2,0),('Prod. zwierzęca towar.'!$B$6>0)) ->  | L28: 0 | M28: 0 | N28: 0 | O28: 0 | P28: 0 | Q28: =IF(OR(C28='Koszty nieponiesione'!$A$283,C28='Koszty nieponiesione'!$A$291,C28='Koszty nieponiesione'!$A$295,C28='Koszty nieponiesione'!$A$303,C28='Koszty nieponiesione'!$A$307,C28='Koszty nieponiesione'!$A$311,C28='Koszty nieponiesione'!$A$315,C28='Koszty nieponiesione'!$A$319), 'Prod. roślinna'!D28,0) -> 0 | S28: 0
A29: A | B29: 110 | E29: =IFERROR(VLOOKUP(region&'Prod. roślinna str 3'!$C29,Dane_srednie_baza,6,0),0) -> 0 | F29: =IFERROR(VLOOKUP(region&'Prod. roślinna str 3'!C29,Dane_srednie_baza,7,0),0) -> 0 | G29: 0 | H29: 0 | J29: =AND(VLOOKUP(C29,rosliny_baza,2,0),('Prod. zwierzęca towar.'!$B$6>0)) ->  | L29: 0 | M29: 0 | N29: 0 | O29: 0 | P29: 0 | Q29: =IF(OR(C29='Koszty nieponiesione'!$A$283,C29='Koszty nieponiesione'!$A$291,C29='Koszty nieponiesione'!$A$295,C29='Koszty nieponiesione'!$A$303,C29='Koszty nieponiesione'!$A$307,C29='Koszty nieponiesione'!$A$311,C29='Koszty nieponiesione'!$A$315,C29='Koszty nieponiesione'!$A$319), 'Prod. roślinna'!D29,0) -> 0 | S29: 0
A30: A | B30: 111 | E30: =IFERROR(VLOOKUP(region&'Prod. roślinna str 3'!$C30,Dane_srednie_baza,6,0),0) -> 0 | F30: =IFERROR(VLOOKUP(region&'Prod. roślinna str 3'!C30,Dane_srednie_baza,7,0),0) -> 0 | G30: 0 | H30: 0 | J30: =AND(VLOOKUP(C30,rosliny_baza,2,0),('Prod. zwierzęca towar.'!$B$6>0)) ->  | L30: 0 | M30: 0 | N30: 0 | O30: 0 | P30: 0 | Q30: =IF(OR(C30='Koszty nieponiesione'!$A$283,C30='Koszty nieponiesione'!$A$291,C30='Koszty nieponiesione'!$A$295,C30='Koszty nieponiesione'!$A$303,C30='Koszty nieponiesione'!$A$307,C30='Koszty nieponiesione'!$A$311,C30='Koszty nieponiesione'!$A$315,C30='Koszty nieponiesione'!$A$319), 'Prod. roślinna'!D30,0) -> 0 | S30: 0
A31: A | B31: 112 | E31: =IFERROR(VLOOKUP(region&'Prod. roślinna str 3'!$C31,Dane_srednie_baza,6,0),0) -> 0 | F31: =IFERROR(VLOOKUP(region&'Prod. roślinna str 3'!C31,Dane_srednie_baza,7,0),0) -> 0 | G31: 0 | H31: 0 | J31: =AND(VLOOKUP(C31,rosliny_baza,2,0),('Prod. zwierzęca towar.'!$B$6>0)) ->  | L31: 0 | M31: 0 | N31: 0 | O31: 0 | P31: 0 | Q31: =IF(OR(C31='Koszty nieponiesione'!$A$283,C31='Koszty nieponiesione'!$A$291,C31='Koszty nieponiesione'!$A$295,C31='Koszty nieponiesione'!$A$303,C31='Koszty nieponiesione'!$A$307,C31='Koszty nieponiesione'!$A$311,C31='Koszty nieponiesione'!$A$315,C31='Koszty nieponiesione'!$A$319), 'Prod. roślinna'!D31,0) -> 0 | S31: 0
A32: A | B32: 113 | E32: =IFERROR(VLOOKUP(region&'Prod. roślinna str 3'!$C32,Dane_srednie_baza,6,0),0) -> 0 | F32: =IFERROR(VLOOKUP(region&'Prod. roślinna str 3'!C32,Dane_srednie_baza,7,0),0) -> 0 | G32: 0 | H32: 0 | J32: =AND(VLOOKUP(C32,rosliny_baza,2,0),('Prod. zwierzęca towar.'!$B$6>0)) ->  | L32: 0 | M32: 0 | N32: 0 | O32: 0 | P32: 0 | Q32: =IF(OR(C32='Koszty nieponiesione'!$A$283,C32='Koszty nieponiesione'!$A$291,C32='Koszty nieponiesione'!$A$295,C32='Koszty nieponiesione'!$A$303,C32='Koszty nieponiesione'!$A$307,C32='Koszty nieponiesione'!$A$311,C32='Koszty nieponiesione'!$A$315,C32='Koszty nieponiesione'!$A$319), 'Prod. roślinna'!D32,0) -> 0 | S32: 0
A33: A | B33: 114 | E33: =IFERROR(VLOOKUP(region&'Prod. roślinna str 3'!$C33,Dane_srednie_baza,6,0),0) -> 0 | F33: =IFERROR(VLOOKUP(region&'Prod. roślinna str 3'!C33,Dane_srednie_baza,7,0),0) -> 0 | G33: 0 | H33: 0 | J33: =AND(VLOOKUP(C33,rosliny_baza,2,0),('Prod. zwierzęca towar.'!$B$6>0)) ->  | L33: 0 | M33: 0 | N33: 0 | O33: 0 | P33: 0 | Q33: =IF(OR(C33='Koszty nieponiesione'!$A$283,C33='Koszty nieponiesione'!$A$291,C33='Koszty nieponiesione'!$A$295,C33='Koszty nieponiesione'!$A$303,C33='Koszty nieponiesione'!$A$307,C33='Koszty nieponiesione'!$A$311,C33='Koszty nieponiesione'!$A$315,C33='Koszty nieponiesione'!$A$319), 'Prod. roślinna'!D33,0) -> 0 | S33: 0
A34: A | B34: 115 | E34: =IFERROR(VLOOKUP(region&'Prod. roślinna str 3'!$C34,Dane_srednie_baza,6,0),0) -> 0 | F34: =IFERROR(VLOOKUP(region&'Prod. roślinna str 3'!C34,Dane_srednie_baza,7,0),0) -> 0 | G34: 0 | H34: 0 | J34: =AND(VLOOKUP(C34,rosliny_baza,2,0),('Prod. zwierzęca towar.'!$B$6>0)) ->  | L34: 0 | M34: 0 | N34: 0 | O34: 0 | P34: 0 | Q34: =IF(OR(C34='Koszty nieponiesione'!$A$283,C34='Koszty nieponiesione'!$A$291,C34='Koszty nieponiesione'!$A$295,C34='Koszty nieponiesione'!$A$303,C34='Koszty nieponiesione'!$A$307,C34='Koszty nieponiesione'!$A$311,C34='Koszty nieponiesione'!$A$315,C34='Koszty nieponiesione'!$A$319), 'Prod. roślinna'!D34,0) -> 0 | S34: 0
A35: A | B35: 116 | E35: =IFERROR(VLOOKUP(region&'Prod. roślinna str 3'!$C35,Dane_srednie_baza,6,0),0) -> 0 | F35: =IFERROR(VLOOKUP(region&'Prod. roślinna str 3'!C35,Dane_srednie_baza,7,0),0) -> 0 | G35: 0 | H35: 0 | J35: =AND(VLOOKUP(C35,rosliny_baza,2,0),('Prod. zwierzęca towar.'!$B$6>0)) ->  | L35: 0 | M35: =H35-L35 -> 0 | N35: 0 | O35: 0 | P35: 0 | Q35: =IF(OR(C35='Koszty nieponiesione'!$A$283,C35='Koszty nieponiesione'!$A$291,C35='Koszty nieponiesione'!$A$295,C35='Koszty nieponiesione'!$A$303,C35='Koszty nieponiesione'!$A$307,C35='Koszty nieponiesione'!$A$311,C35='Koszty nieponiesione'!$A$315,C35='Koszty nieponiesione'!$A$319), 'Prod. roślinna'!D35,0) -> 0 | S35: 0
A36: A | B36: 117 | E36: =IFERROR(VLOOKUP(region&'Prod. roślinna str 3'!$C36,Dane_srednie_baza,6,0),0) -> 0 | F36: =IFERROR(VLOOKUP(region&'Prod. roślinna str 3'!C36,Dane_srednie_baza,7,0),0) -> 0 | G36: 0 | H36: 0 | J36: =AND(VLOOKUP(C36,rosliny_baza,2,0),('Prod. zwierzęca towar.'!$B$6>0)) ->  | L36: 0 | M36: 0 | N36: 0 | O36: 0 | P36: 0 | Q36: =IF(OR(C36='Koszty nieponiesione'!$A$283,C36='Koszty nieponiesione'!$A$291,C36='Koszty nieponiesione'!$A$295,C36='Koszty nieponiesione'!$A$303,C36='Koszty nieponiesione'!$A$307,C36='Koszty nieponiesione'!$A$311,C36='Koszty nieponiesione'!$A$315,C36='Koszty nieponiesione'!$A$319), 'Prod. roślinna'!D36,0) -> 0 | S36: 0
A37: A | B37: 118 | E37: =IFERROR(VLOOKUP(region&'Prod. roślinna str 3'!$C37,Dane_srednie_baza,6,0),0) -> 0 | F37: =IFERROR(VLOOKUP(region&'Prod. roślinna str 3'!C37,Dane_srednie_baza,7,0),0) -> 0 | G37: 0 | H37: 0 | J37: =AND(VLOOKUP(C37,rosliny_baza,2,0),('Prod. zwierzęca towar.'!$B$6>0)) ->  | L37: 0 | M37: 0 | N37: 0 | O37: 0 | P37: 0 | Q37: =IF(OR(C37='Koszty nieponiesione'!$A$283,C37='Koszty nieponiesione'!$A$291,C37='Koszty nieponiesione'!$A$295,C37='Koszty nieponiesione'!$A$303,C37='Koszty nieponiesione'!$A$307,C37='Koszty nieponiesione'!$A$311,C37='Koszty nieponiesione'!$A$315,C37='Koszty nieponiesione'!$A$319), 'Prod. roślinna'!D37,0) -> 0 | S37: 0
A38: A | B38: 119 | E38: =IFERROR(VLOOKUP(region&'Prod. roślinna str 3'!$C38,Dane_srednie_baza,6,0),0) -> 0 | F38: =IFERROR(VLOOKUP(region&'Prod. roślinna str 3'!C38,Dane_srednie_baza,7,0),0) -> 0 | G38: 0 | H38: 0 | J38: =AND(VLOOKUP(C38,rosliny_baza,2,0),('Prod. zwierzęca towar.'!$B$6>0)) ->  | L38: 0 | M38: 0 | N38: 0 | O38: 0 | P38: 0 | Q38: =IF(OR(C38='Koszty nieponiesione'!$A$283,C38='Koszty nieponiesione'!$A$291,C38='Koszty nieponiesione'!$A$295,C38='Koszty nieponiesione'!$A$303,C38='Koszty nieponiesione'!$A$307,C38='Koszty nieponiesione'!$A$311,C38='Koszty nieponiesione'!$A$315,C38='Koszty nieponiesione'!$A$319), 'Prod. roślinna'!D38,0) -> 0 | S38: 0
A39: A | B39: 120 | E39: =IFERROR(VLOOKUP(region&'Prod. roślinna str 3'!$C39,Dane_srednie_baza,6,0),0) -> 0 | F39: =IFERROR(VLOOKUP(region&'Prod. roślinna str 3'!C39,Dane_srednie_baza,7,0),0) -> 0 | G39: 0 | H39: 0 | J39: =AND(VLOOKUP(C39,rosliny_baza,2,0),('Prod. zwierzęca towar.'!$B$6>0)) ->  | L39: 0 | M39: 0 | N39: 0 | O39: 0 | P39: 0 | Q39: =IF(OR(C39='Koszty nieponiesione'!$A$283,C39='Koszty nieponiesione'!$A$291,C39='Koszty nieponiesione'!$A$295,C39='Koszty nieponiesione'!$A$303,C39='Koszty nieponiesione'!$A$307,C39='Koszty nieponiesione'!$A$311,C39='Koszty nieponiesione'!$A$315,C39='Koszty nieponiesione'!$A$319), 'Prod. roślinna'!D39,0) -> 0 | S39: 0
A40: A | B40: 121 | E40: =IFERROR(VLOOKUP(region&'Prod. roślinna str 3'!$C40,Dane_srednie_baza,6,0),0) -> 0 | F40: =IFERROR(VLOOKUP(region&'Prod. roślinna str 3'!C40,Dane_srednie_baza,7,0),0) -> 0 | G40: 0 | H40: 0 | J40: =AND(VLOOKUP(C40,rosliny_baza,2,0),('Prod. zwierzęca towar.'!$B$6>0)) ->  | L40: 0 | M40: 0 | N40: 0 | O40: 0 | P40: 0 | Q40: =IF(OR(C40='Koszty nieponiesione'!$A$283,C40='Koszty nieponiesione'!$A$291,C40='Koszty nieponiesione'!$A$295,C40='Koszty nieponiesione'!$A$303,C40='Koszty nieponiesione'!$A$307,C40='Koszty nieponiesione'!$A$311,C40='Koszty nieponiesione'!$A$315,C40='Koszty nieponiesione'!$A$319), 'Prod. roślinna'!D40,0) -> 0 | S40: 0
A41: A | B41: 122 | E41: =IFERROR(VLOOKUP(region&'Prod. roślinna str 3'!$C41,Dane_srednie_baza,6,0),0) -> 0 | F41: =IFERROR(VLOOKUP(region&'Prod. roślinna str 3'!C41,Dane_srednie_baza,7,0),0) -> 0 | G41: 0 | H41: 0 | J41: =AND(VLOOKUP(C41,rosliny_baza,2,0),('Prod. zwierzęca towar.'!$B$6>0)) ->  | L41: 0 | M41: 0 | N41: 0 | O41: 0 | P41: 0 | Q41: =IF(OR(C41='Koszty nieponiesione'!$A$283,C41='Koszty nieponiesione'!$A$291,C41='Koszty nieponiesione'!$A$295,C41='Koszty nieponiesione'!$A$303,C41='Koszty nieponiesione'!$A$307,C41='Koszty nieponiesione'!$A$311,C41='Koszty nieponiesione'!$A$315,C41='Koszty nieponiesione'!$A$319), 'Prod. roślinna'!D41,0) -> 0 | S41: 0
A42: A | B42: 123 | E42: =IFERROR(VLOOKUP(region&'Prod. roślinna str 3'!$C42,Dane_srednie_baza,6,0),0) -> 0 | F42: =IFERROR(VLOOKUP(region&'Prod. roślinna str 3'!C42,Dane_srednie_baza,7,0),0) -> 0 | G42: 0 | H42: 0 | J42: =AND(VLOOKUP(C42,rosliny_baza,2,0),('Prod. zwierzęca towar.'!$B$6>0)) ->  | L42: 0 | M42: 0 | N42: 0 | O42: 0 | P42: 0 | Q42: =IF(OR(C42='Koszty nieponiesione'!$A$283,C42='Koszty nieponiesione'!$A$291,C42='Koszty nieponiesione'!$A$295,C42='Koszty nieponiesione'!$A$303,C42='Koszty nieponiesione'!$A$307,C42='Koszty nieponiesione'!$A$311,C42='Koszty nieponiesione'!$A$315,C42='Koszty nieponiesione'!$A$319), 'Prod. roślinna'!D42,0) -> 0 | S42: 0
A43: A | B43: 124 | E43: =IFERROR(VLOOKUP(region&'Prod. roślinna str 3'!$C43,Dane_srednie_baza,6,0),0) -> 0 | F43: =IFERROR(VLOOKUP(region&'Prod. roślinna str 3'!C43,Dane_srednie_baza,7,0),0) -> 0 | G43: 0 | H43: 0 | J43: =AND(VLOOKUP(C43,rosliny_baza,2,0),('Prod. zwierzęca towar.'!$B$6>0)) ->  | L43: 0 | M43: 0 | N43: 0 | O43: 0 | P43: 0 | Q43: =IF(OR(C43='Koszty nieponiesione'!$A$283,C43='Koszty nieponiesione'!$A$291,C43='Koszty nieponiesione'!$A$295,C43='Koszty nieponiesione'!$A$303,C43='Koszty nieponiesione'!$A$307,C43='Koszty nieponiesione'!$A$311,C43='Koszty nieponiesione'!$A$315,C43='Koszty nieponiesione'!$A$319), 'Prod. roślinna'!D43,0) -> 0 | S43: 0
A44: A | B44: 125 | E44: =IFERROR(VLOOKUP(region&'Prod. roślinna str 3'!$C44,Dane_srednie_baza,6,0),0) -> 0 | F44: =IFERROR(VLOOKUP(region&'Prod. roślinna str 3'!C44,Dane_srednie_baza,7,0),0) -> 0 | G44: 0 | H44: 0 | J44: =AND(VLOOKUP(C44,rosliny_baza,2,0),('Prod. zwierzęca towar.'!$B$6>0)) ->  | L44: 0 | M44: 0 | N44: 0 | O44: 0 | P44: 0 | Q44: =IF(OR(C44='Koszty nieponiesione'!$A$283,C44='Koszty nieponiesione'!$A$291,C44='Koszty nieponiesione'!$A$295,C44='Koszty nieponiesione'!$A$303,C44='Koszty nieponiesione'!$A$307,C44='Koszty nieponiesione'!$A$311,C44='Koszty nieponiesione'!$A$315,C44='Koszty nieponiesione'!$A$319), 'Prod. roślinna'!D44,0) -> 0 | S44: 0
A45: A | B45: 126 | E45: =IFERROR(VLOOKUP(region&'Prod. roślinna str 3'!$C45,Dane_srednie_baza,6,0),0) -> 0 | F45: =IFERROR(VLOOKUP(region&'Prod. roślinna str 3'!C45,Dane_srednie_baza,7,0),0) -> 0 | G45: 0 | H45: 0 | J45: =AND(VLOOKUP(C45,rosliny_baza,2,0),('Prod. zwierzęca towar.'!$B$6>0)) ->  | L45: 0 | M45: 0 | N45: 0 | O45: 0 | P45: 0 | Q45: =IF(OR(C45='Koszty nieponiesione'!$A$283,C45='Koszty nieponiesione'!$A$291,C45='Koszty nieponiesione'!$A$295,C45='Koszty nieponiesione'!$A$303,C45='Koszty nieponiesione'!$A$307,C45='Koszty nieponiesione'!$A$311,C45='Koszty nieponiesione'!$A$315,C45='Koszty nieponiesione'!$A$319), 'Prod. roślinna'!D45,0) -> 0 | S45: 0
A46: A | B46: 127 | E46: =IFERROR(VLOOKUP(region&'Prod. roślinna str 3'!$C46,Dane_srednie_baza,6,0),0) -> 0 | F46: =IFERROR(VLOOKUP(region&'Prod. roślinna str 3'!C46,Dane_srednie_baza,7,0),0) -> 0 | G46: 0 | H46: 0 | J46: =AND(VLOOKUP(C46,rosliny_baza,2,0),('Prod. zwierzęca towar.'!$B$6>0)) ->  | L46: 0 | M46: 0 | N46: 0 | O46: 0 | P46: 0 | Q46: =IF(OR(C46='Koszty nieponiesione'!$A$283,C46='Koszty nieponiesione'!$A$291,C46='Koszty nieponiesione'!$A$295,C46='Koszty nieponiesione'!$A$303,C46='Koszty nieponiesione'!$A$307,C46='Koszty nieponiesione'!$A$311,C46='Koszty nieponiesione'!$A$315,C46='Koszty nieponiesione'!$A$319), 'Prod. roślinna'!D46,0) -> 0 | S46: 0
A47: A | B47: 128 | E47: =IFERROR(VLOOKUP(region&'Prod. roślinna str 3'!$C47,Dane_srednie_baza,6,0),0) -> 0 | F47: =IFERROR(VLOOKUP(region&'Prod. roślinna str 3'!C47,Dane_srednie_baza,7,0),0) -> 0 | G47: 0 | H47: 0 | J47: =AND(VLOOKUP(C47,rosliny_baza,2,0),('Prod. zwierzęca towar.'!$B$6>0)) ->  | L47: 0 | M47: 0 | N47: 0 | O47: 0 | P47: 0 | Q47: =IF(OR(C47='Koszty nieponiesione'!$A$283,C47='Koszty nieponiesione'!$A$291,C47='Koszty nieponiesione'!$A$295,C47='Koszty nieponiesione'!$A$303,C47='Koszty nieponiesione'!$A$307,C47='Koszty nieponiesione'!$A$311,C47='Koszty nieponiesione'!$A$315,C47='Koszty nieponiesione'!$A$319), 'Prod. roślinna'!D47,0) -> 0 | S47: 0
A48: A | B48: 129 | E48: =IFERROR(VLOOKUP(region&'Prod. roślinna str 3'!$C48,Dane_srednie_baza,6,0),0) -> 0 | F48: =IFERROR(VLOOKUP(region&'Prod. roślinna str 3'!C48,Dane_srednie_baza,7,0),0) -> 0 | G48: 0 | H48: 0 | J48: =AND(VLOOKUP(C48,rosliny_baza,2,0),('Prod. zwierzęca towar.'!$B$6>0)) ->  | L48: 0 | M48: 0 | N48: 0 | O48: 0 | P48: 0 | Q48: =IF(OR(C48='Koszty nieponiesione'!$A$283,C48='Koszty nieponiesione'!$A$291,C48='Koszty nieponiesione'!$A$295,C48='Koszty nieponiesione'!$A$303,C48='Koszty nieponiesione'!$A$307,C48='Koszty nieponiesione'!$A$311,C48='Koszty nieponiesione'!$A$315,C48='Koszty nieponiesione'!$A$319), 'Prod. roślinna'!D48,0) -> 0 | S48: 0
A49: A | B49: 130 | E49: =IFERROR(VLOOKUP(region&'Prod. roślinna str 3'!$C49,Dane_srednie_baza,6,0),0) -> 0 | F49: =IFERROR(VLOOKUP(region&'Prod. roślinna str 3'!C49,Dane_srednie_baza,7,0),0) -> 0 | G49: 0 | H49: 0 | J49: =AND(VLOOKUP(C49,rosliny_baza,2,0),('Prod. zwierzęca towar.'!$B$6>0)) ->  | L49: 0 | M49: 0 | N49: 0 | O49: 0 | P49: 0 | Q49: =IF(OR(C49='Koszty nieponiesione'!$A$283,C49='Koszty nieponiesione'!$A$291,C49='Koszty nieponiesione'!$A$295,C49='Koszty nieponiesione'!$A$303,C49='Koszty nieponiesione'!$A$307,C49='Koszty nieponiesione'!$A$311,C49='Koszty nieponiesione'!$A$315,C49='Koszty nieponiesione'!$A$319), 'Prod. roślinna'!D49,0) -> 0 | S49: 0
A50: A | B50: 131 | E50: =IFERROR(VLOOKUP(region&'Prod. roślinna str 3'!$C50,Dane_srednie_baza,6,0),0) -> 0 | F50: =IFERROR(VLOOKUP(region&'Prod. roślinna str 3'!C50,Dane_srednie_baza,7,0),0) -> 0 | G50: 0 | H50: 0 | J50: =AND(VLOOKUP(C50,rosliny_baza,2,0),('Prod. zwierzęca towar.'!$B$6>0)) ->  | L50: 0 | M50: 0 | N50: 0 | O50: 0 | P50: 0 | Q50: =IF(OR(C50='Koszty nieponiesione'!$A$283,C50='Koszty nieponiesione'!$A$291,C50='Koszty nieponiesione'!$A$295,C50='Koszty nieponiesione'!$A$303,C50='Koszty nieponiesione'!$A$307,C50='Koszty nieponiesione'!$A$311,C50='Koszty nieponiesione'!$A$315,C50='Koszty nieponiesione'!$A$319), 'Prod. roślinna'!D50,0) -> 0 | S50: 0
A51: A | B51: 132 | E51: =IFERROR(VLOOKUP(region&'Prod. roślinna str 3'!$C51,Dane_srednie_baza,6,0),0) -> 0 | F51: =IFERROR(VLOOKUP(region&'Prod. roślinna str 3'!C51,Dane_srednie_baza,7,0),0) -> 0 | G51: 0 | H51: 0 | J51: =AND(VLOOKUP(C51,rosliny_baza,2,0),('Prod. zwierzęca towar.'!$B$6>0)) ->  | L51: 0 | M51: 0 | N51: 0 | O51: 0 | P51: 0 | Q51: =IF(OR(C51='Koszty nieponiesione'!$A$283,C51='Koszty nieponiesione'!$A$291,C51='Koszty nieponiesione'!$A$295,C51='Koszty nieponiesione'!$A$303,C51='Koszty nieponiesione'!$A$307,C51='Koszty nieponiesione'!$A$311,C51='Koszty nieponiesione'!$A$315,C51='Koszty nieponiesione'!$A$319), 'Prod. roślinna'!D51,0) -> 0 | S51: 0
A52: A | B52: 133 | E52: =IFERROR(VLOOKUP(region&'Prod. roślinna str 3'!$C52,Dane_srednie_baza,6,0),0) -> 0 | F52: =IFERROR(VLOOKUP(region&'Prod. roślinna str 3'!C52,Dane_srednie_baza,7,0),0) -> 0 | G52: 0 | H52: 0 | J52: =AND(VLOOKUP(C52,rosliny_baza,2,0),('Prod. zwierzęca towar.'!$B$6>0)) ->  | L52: 0 | M52: 0 | N52: 0 | O52: 0 | P52: 0 | Q52: =IF(OR(C52='Koszty nieponiesione'!$A$283,C52='Koszty nieponiesione'!$A$291,C52='Koszty nieponiesione'!$A$295,C52='Koszty nieponiesione'!$A$303,C52='Koszty nieponiesione'!$A$307,C52='Koszty nieponiesione'!$A$311,C52='Koszty nieponiesione'!$A$315,C52='Koszty nieponiesione'!$A$319), 'Prod. roślinna'!D52,0) -> 0 | S52: 0
A53: A | B53: 134 | E53: =IFERROR(VLOOKUP(region&'Prod. roślinna str 3'!$C53,Dane_srednie_baza,6,0),0) -> 0 | F53: =IFERROR(VLOOKUP(region&'Prod. roślinna str 3'!C53,Dane_srednie_baza,7,0),0) -> 0 | G53: 0 | H53: 0 | J53: =AND(VLOOKUP(C53,rosliny_baza,2,0),('Prod. zwierzęca towar.'!$B$6>0)) ->  | L53: 0 | M53: 0 | N53: 0 | O53: 0 | P53: 0 | Q53: =IF(OR(C53='Koszty nieponiesione'!$A$283,C53='Koszty nieponiesione'!$A$291,C53='Koszty nieponiesione'!$A$295,C53='Koszty nieponiesione'!$A$303,C53='Koszty nieponiesione'!$A$307,C53='Koszty nieponiesione'!$A$311,C53='Koszty nieponiesione'!$A$315,C53='Koszty nieponiesione'!$A$319), 'Prod. roślinna'!D53,0) -> 0 | S53: 0
A54: A | B54: 135 | E54: =IFERROR(VLOOKUP(region&'Prod. roślinna str 3'!$C54,Dane_srednie_baza,6,0),0) -> 0 | F54: =IFERROR(VLOOKUP(region&'Prod. roślinna str 3'!C54,Dane_srednie_baza,7,0),0) -> 0 | G54: 0 | H54: 0 | J54: =AND(VLOOKUP(C54,rosliny_baza,2,0),('Prod. zwierzęca towar.'!$B$6>0)) ->  | L54: 0 | M54: 0 | N54: 0 | O54: 0 | P54: 0 | Q54: =IF(OR(C54='Koszty nieponiesione'!$A$283,C54='Koszty nieponiesione'!$A$291,C54='Koszty nieponiesione'!$A$295,C54='Koszty nieponiesione'!$A$303,C54='Koszty nieponiesione'!$A$307,C54='Koszty nieponiesione'!$A$311,C54='Koszty nieponiesione'!$A$315,C54='Koszty nieponiesione'!$A$319), 'Prod. roślinna'!D54,0) -> 0 | S54: 0
A55: A | B55: 136 | E55: =IFERROR(VLOOKUP(region&'Prod. roślinna str 3'!$C55,Dane_srednie_baza,6,0),0) -> 0 | F55: =IFERROR(VLOOKUP(region&'Prod. roślinna str 3'!C55,Dane_srednie_baza,7,0),0) -> 0 | G55: 0 | H55: 0 | J55: =AND(VLOOKUP(C55,rosliny_baza,2,0),('Prod. zwierzęca towar.'!$B$6>0)) ->  | L55: 0 | M55: 0 | N55: 0 | O55: 0 | P55: 0 | Q55: =IF(OR(C55='Koszty nieponiesione'!$A$283,C55='Koszty nieponiesione'!$A$291,C55='Koszty nieponiesione'!$A$295,C55='Koszty nieponiesione'!$A$303,C55='Koszty nieponiesione'!$A$307,C55='Koszty nieponiesione'!$A$311,C55='Koszty nieponiesione'!$A$315,C55='Koszty nieponiesione'!$A$319), 'Prod. roślinna'!D55,0) -> 0 | S55: 0
A56: A | B56: 137 | E56: =IFERROR(VLOOKUP(region&'Prod. roślinna str 3'!$C56,Dane_srednie_baza,6,0),0) -> 0 | F56: =IFERROR(VLOOKUP(region&'Prod. roślinna str 3'!C56,Dane_srednie_baza,7,0),0) -> 0 | G56: =E56*F56 -> 0 | H56: 0 | J56: =AND(VLOOKUP(C56,rosliny_baza,2,0),('Prod. zwierzęca towar.'!$B$6>0)) ->  | L56: 0 | M56: 0 | N56: 0 | O56: 0 | P56: 0 | Q56: =IF(OR(C56='Koszty nieponiesione'!$A$283,C56='Koszty nieponiesione'!$A$291,C56='Koszty nieponiesione'!$A$295,C56='Koszty nieponiesione'!$A$303,C56='Koszty nieponiesione'!$A$307,C56='Koszty nieponiesione'!$A$311,C56='Koszty nieponiesione'!$A$315,C56='Koszty nieponiesione'!$A$319), 'Prod. roślinna'!D56,0) -> 0 | S56: 0
B57: Razem (poz. 89 - 137) | D57: =SUM(D8:D56) -> 0 | E57: x | F57: x | G57: x | H57: =SUM(H8:H56) -> 0 | I57: x | K57: =IF(SUM(K8:K56)<'Prod. zwierzęca towar.'!H57,SUM(K8:K56),'Prod. zwierzęca towar.'!H57) -> 0 | L57: =SUM(L8:L56) -> 0 | M57: =SUM(M8:M56) -> 0 | N57: =SUM(N8:N56) -> 0 | P57: =SUM(P8:P56) -> 0 | Q57: =SUM(Q8:Q56) -> 0 | R57: =SUM(R8:R56) -> 0 | S57: =SUM(S8:S56) -> 0
B58: *Dane w kolumnie 9 "Wysokości szkód w uprawach uwzględnianych w produkcji zwierzęcej” oblicza się w zakresie upraw : rośliny pastewne objętościowe na gruntach ornych, okopowe pastewne na pasze, buraki pastewne na pasze, brukiew pastewna na pasze, marchew pastewna na pasze, dynia pastewna na pasze, pozostałe okopowe pastewne na pasze, kukurydza pastewna na zielonkę, zboża na zielonkę i mieszanki zbóż z innymi roślinami na zielonkę, trawy w uprawie polowej na zielonkę, strączkowe na zielonkę, motylkowe drobnonasienne na zielonkę, mieszanki motylkowych z trawami, pozostałe polowe uprawy pastewne na zielonkę, rośliny pastewne objętościowe z użytków zielonych (uprawa lub zielonka), rośliny pastewne objętościowe z łąk – zielonka, rośliny pastewne objętościowe z pastwisk, rośliny pastewne objętościowe z pastwisk pielęgnowanych, rośliny pastewne objętościowe z pastwisk niepielęgnowanych, kukurydza (sucha i wilgotna) na ziarno, proso na ziarno, strączkowe pastewne na nasiona suche, groch pastewny (peluszka) na nasiona suche, pozostałe strączkowe pastewne na nasiona suche, mieszanki strączkowych z innymi roślinami jare na nasiona suche, mieszanki strączkowych z innymi roślinami ozime na nasiona suche. w przypadku prowadzenia produkcji zwierzęcej w zakresie: byki do opasu, wolce 2-letnie i starsze, jałówki do opasu 2-letnie i starsze, byczki od 1 do 2 lat, jałówki od 1 do 2 lat, owce 1 roczne i starsze, mleko krowie, mleko owcze, mleko kozie, kozy 1 roczne i starsze, konie, tuczniki o wadze 50 kg i więcej, warchlaki do tuczu o wadze od 20 do 50 kg.
C61: Czytelne podpisy członków komisji powołanych przez Wojewodę
B62: 1. | C62: ……………………………………………………………………………………………….……… | F62: 6. | G62: ……………………………………………………………………………………………….………
B63: 2. | C63: ……………………………………………………………………………………………….……… | F63: 7. | G63: ……………………………………………………………………………………………….………
B64: 3. | C64: ……………………………………………………………………………………………….……… | F64: 8. | G64: ……………………………………………………………………………………………….………
B65: 4. | C65: ……………………………………………………………………………………………….……… | F65: 9. | G65: ……………………………………………………………………………………………….……… | N65: …………………………………..……………..……….….
B66: 5. | C66: ……………………………………………………………………………………………….……… | F66: 10. | G66: ……………………………………………………………………………………………….……… | N66: (data i czytelny podpis rolnika)

Sheet Prod. roślinna str 4
B1: Załącznik 1 Szkody w produkcji roślinnej | M1: DLA REGIONU FADN | R1: =Protokół!V1 -> A
B2: Imię i nazwisko producenta rolnego | D2: Imię i nazwisko producenta rolnego | F2: =Protokół!G8 -> ……………………………………… ………………………...……………
B4: L.p | C4: Nazwa wszystkich upraw w gospodarstwie rolnym | D4: Powierzchnia uprawy w roku wystąpienia niekorzystnego zjawiska atmosferycznego | E4: Średni plon z 1 ha danej uprawy | F4: Średnia cena | G4: Średni dochód z 1 ha | H4: Średnia roczna wartość produkcji | I4: Straty plonu w % w roku wystąpienia szkody | K4: Wysokość szkód w uprawach uwzględnianych w produkcji zwierzęcej * | L4: Wartość produkcji w roku wystąpienia szkód po wystąpieniu niekorzystnego zjawiska atmosferycznego | M4: Kwota obniżenia dochodu w wyniku szkód | N4: Koszty nieponiesione w związku z wystąpieniem szkód łącznie | P4: pow 70% | Q4: pow UZ | R4: Koszty poniesione z powodu niezebrania plonów w wyniku szkód łącznie | S4: Powierzchnia upraw rolnych dotknięta zjawiskiem wynosi
D5: ha | E5: dt/ha | F5: w zł/dt | G5: w zł/ha | H5: w zł | I5: % | K5: zł | L5: zł | M5: zł | N5: zł | R5: zł
C6: NAZWA
B7: 1 | C7: 2 | D7: 3 | E7: 4 | F7: 5 | G7: 6=4x5 | H7: 7=3x6 | I7: 8 | K7: 9=7x8 | L7: 10= 7x(100%-8) | M7: 11=7-10 | N7: 12 | R7: 13 | S7: 14
A8: =C8&region -> A | B8: 138 | E8: =IFERROR(VLOOKUP(region&'Prod. roślinna str 4'!$C8,Dane_srednie_baza,6,0),0) -> 0 | F8: =IFERROR(VLOOKUP(region&'Prod. roślinna str 4'!C8,Dane_srednie_baza,7,0),0) -> 0 | G8: =E8*F8 -> 0 | H8: =D8*G8 -> 0 | J8: =AND(VLOOKUP(C8,rosliny_baza,2,0),('Prod. zwierzęca towar.'!$B$6>0)) ->  | L8: =H8*(100%-I8) -> 0 | M8: =H8-L8 -> 0 | N8: =I8*O8 -> 0 | O8: =IF(I8>=70%,VLOOKUP(A8,Koszty_nieponiesione_baza,2,0)*D8,0) -> 0 | P8: =IF(I8>=70%,D8,0) -> 0 | Q8: =IF(OR(C8='Koszty nieponiesione'!$A$283,C8='Koszty nieponiesione'!$A$291,C8='Koszty nieponiesione'!$A$295,C8='Koszty nieponiesione'!$A$303,C8='Koszty nieponiesione'!$A$307,C8='Koszty nieponiesione'!$A$311,C8='Koszty nieponiesione'!$A$315,C8='Koszty nieponiesione'!$A$319), 'Prod. roślinna'!D8,0) -> 0 | S8: =IF(I8>0,D8,0) -> 0
A9: A | B9: 139 | E9: =IFERROR(VLOOKUP(region&'Prod. roślinna str 4'!$C9,Dane_srednie_baza,6,0),0) -> 0 | F9: =IFERROR(VLOOKUP(region&'Prod. roślinna str 4'!C9,Dane_srednie_baza,7,0),0) -> 0 | G9: =E9*F9 -> 0 | H9: =D9*G9 -> 0 | J9: =AND(VLOOKUP(C9,rosliny_baza,2,0),('Prod. zwierzęca towar.'!$B$6>0)) ->  | L9: =H9*(100%-I9) -> 0 | M9: =H9-L9 -> 0 | N9: =I9*O9 -> 0 | O9: 0 | P9: 0 | Q9: =IF(OR(C9='Koszty nieponiesione'!$A$283,C9='Koszty nieponiesione'!$A$291,C9='Koszty nieponiesione'!$A$295,C9='Koszty nieponiesione'!$A$303,C9='Koszty nieponiesione'!$A$307,C9='Koszty nieponiesione'!$A$311,C9='Koszty nieponiesione'!$A$315,C9='Koszty nieponiesione'!$A$319), 'Prod. roślinna'!D9,0) -> 0 | S9: 0
A10: A | B10: 140 | E10: =IFERROR(VLOOKUP(region&'Prod. roślinna str 4'!$C10,Dane_srednie_baza,6,0),0) -> 0 | F10: =IFERROR(VLOOKUP(region&'Prod. roślinna str 4'!C10,Dane_srednie_baza,7,0),0) -> 0 | G10: 0 | H10: 0 | J10: =AND(VLOOKUP(C10,rosliny_baza,2,0),('Prod. zwierzęca towar.'!$B$6>0)) ->  | L10: 0 | M10: 0 | N10: 0 | O10: 0 | P10: 0 | Q10: =IF(OR(C10='Koszty nieponiesione'!$A$283,C10='Koszty nieponiesione'!$A$291,C10='Koszty nieponiesione'!$A$295,C10='Koszty nieponiesione'!$A$303,C10='Koszty nieponiesione'!$A$307,C10='Koszty nieponiesione'!$A$311,C10='Koszty nieponiesione'!$A$315,C10='Koszty nieponiesione'!$A$319), 'Prod. roślinna'!D10,0) -> 0 | S10: 0
A11: A | B11: 141 | E11: =IFERROR(VLOOKUP(region&'Prod. roślinna str 4'!$C11,Dane_srednie_baza,6,0),0) -> 0 | F11: =IFERROR(VLOOKUP(region&'Prod. roślinna str 4'!C11,Dane_srednie_baza,7,0),0) -> 0 | G11: 0 | H11: 0 | J11: =AND(VLOOKUP(C11,rosliny_baza,2,0),('Prod. zwierzęca towar.'!$B$6>0)) ->  | L11: 0 | M11: 0 | N11: 0 | O11: 0 | P11: 0 | Q11: =IF(OR(C11='Koszty nieponiesione'!$A$283,C11='Koszty nieponiesione'!$A$291,C11='Koszty nieponiesione'!$A$295,C11='Koszty nieponiesione'!$A$303,C11='Koszty nieponiesione'!$A$307,C11='Koszty nieponiesione'!$A$311,C11='Koszty nieponiesione'!$A$315,C11='Koszty nieponiesione'!$A$319), 'Prod. roślinna'!D11,0) -> 0 | S11: 0
A12: A | B12: 142 | E12: =IFERROR(VLOOKUP(region&'Prod. roślinna str 4'!$C12,Dane_srednie_baza,6,0),0) -> 0 | F12: =IFERROR(VLOOKUP(region&'Prod. roślinna str 4'!C12,Dane_srednie_baza,7,0),0) -> 0 | G12: 0 | H12: 0 | J12: =AND(VLOOKUP(C12,rosliny_baza,2,0),('Prod. zwierzęca towar.'!$B$6>0)) ->  | L12: 0 | M12: 0 | N12: 0 | O12: 0 | P12: 0 | Q12: =IF(OR(C12='Koszty nieponiesione'!$A$283,C12='Koszty nieponiesione'!$A$291,C12='Koszty nieponiesione'!$A$295,C12='Koszty nieponiesione'!$A$303,C12='Koszty nieponiesione'!$A$307,C12='Koszty nieponiesione'!$A$311,C12='Koszty nieponiesione'!$A$315,C12='Koszty nieponiesione'!$A$319), 'Prod. roślinna'!D12,0) -> 0 | S12: 0
A13: A | B13: 143 | E13: =IFERROR(VLOOKUP(region&'Prod. roślinna str 4'!$C13,Dane_srednie_baza,6,0),0) -> 0 | F13: =IFERROR(VLOOKUP(region&'Prod. roślinna str 4'!C13,Dane_srednie_baza,7,0),0) -> 0 | G13: 0 | H13: 0 | J13: =AND(VLOOKUP(C13,rosliny_baza,2,0),('Prod. zwierzęca towar.'!$B$6>0)) ->  | L13: 0 | M13: 0 | N13: 0 | O13: 0 | P13: 0 | Q13: =IF(OR(C13='Koszty nieponiesione'!$A$283,C13='Koszty nieponiesione'!$A$291,C13='Koszty nieponiesione'!$A$295,C13='Koszty nieponiesione'!$A$303,C13='Koszty nieponiesione'!$A$307,C13='Koszty nieponiesione'!$A$311,C13='Koszty nieponiesione'!$A$315,C13='Koszty nieponiesione'!$A$319), 'Prod. roślinna'!D13,0) -> 0 | S13: 0
A14: A | B14: 144 | E14: =IFERROR(VLOOKUP(region&'Prod. roślinna str 4'!$C14,Dane_srednie_baza,6,0),0) -> 0 | F14: =IFERROR(VLOOKUP(region&'Prod. roślinna str 4'!C14,Dane_srednie_baza,7,0),0) -> 0 | G14: 0 | H14: 0 | J14: =AND(VLOOKUP(C14,rosliny_baza,2,0),('Prod. zwierzęca towar.'!$B$6>0)) ->  | L14: 0 | M14: 0 | N14: 0 | O14: 0 | P14: 0 | Q14: =IF(OR(C14='Koszty nieponiesione'!$A$283,C14='Koszty nieponiesione'!$A$291,C14='Koszty nieponiesione'!$A$295,C14='Koszty nieponiesione'!$A$303,C14='Koszty nieponiesione'!$A$307,C14='Koszty nieponiesione'!$A$311,C14='Koszty nieponiesione'!$A$315,C14='Koszty nieponiesione'!$A$319), 'Prod. roślinna'!D14,0) -> 0 | S14: 0
A15: A | B15: 145 | E15: =IFERROR(VLOOKUP(region&'Prod. roślinna str 4'!$C15,Dane_srednie_baza,6,0),0) -> 0 | F15: =IFERROR(VLOOKUP(region&'Prod. roślinna str 4'!C15,Dane_srednie_baza,7,0),0) -> 0 | G15: 0 | H15: 0 | J15: =AND(VLOOKUP(C15,rosliny_baza,2,0),('Prod. zwierzęca towar.'!$B$6>0)) ->  | L15: 0 | M15: 0 | N15: 0 | O15: 0 | P15: 0 | Q15: =IF(OR(C15='Koszty nieponiesione'!$A$283,C15='Koszty nieponiesione'!$A$291,C15='Koszty nieponiesione'!$A$295,C15='Koszty nieponiesione'!$A$303,C15='Koszty nieponiesione'!$A$307,C15='Koszty nieponiesione'!$A$311,C15='Koszty nieponiesione'!$A$315,C15='Koszty nieponiesione'!$A$319), 'Prod. roślinna'!D15,0) -> 0 | S15: 0
A16: A | B16: 146 | E16: =IFERROR(VLOOKUP(region&'Prod. roślinna str 4'!$C16,Dane_srednie_baza,6,0),0) -> 0 | F16: =IFERROR(VLOOKUP(region&'Prod. roślinna str 4'!C16,Dane_srednie_baza,7,0),0) -> 0 | G16: 0 | H16: 0 | J16: =AND(VLOOKUP(C16,rosliny_baza,2,0),('Prod. zwierzęca towar.'!$B$6>0)) ->  | L16: 0 | M16: 0 | N16: 0 | O16: 0 | P16: 0 | Q16: =IF(OR(C16='Koszty nieponiesione'!$A$283,C16='Koszty nieponiesione'!$A$291,C16='Koszty nieponiesione'!$A$295,C16='Koszty nieponiesione'!$A$303,C16='Koszty nieponiesione'!$A$307,C16='Koszty nieponiesione'!$A$311,C16='Koszty nieponiesione'!$A$315,C16='Koszty nieponiesione'!$A$319), 'Prod. roślinna'!D16,0) -> 0 | S16: 0
A17: A | B17: 147 | E17: =IFERROR(VLOOKUP(region&'Prod. roślinna str 4'!$C17,Dane_srednie_baza,6,0),0) -> 0 | F17: =IFERROR(VLOOKUP(region&'Prod. roślinna str 4'!C17,Dane_srednie_baza,7,0),0) -> 0 | G17: 0 | H17: 0 | J17: =AND(VLOOKUP(C17,rosliny_baza,2,0),('Prod. zwierzęca towar.'!$B$6>0)) ->  | L17: 0 | M17: 0 | N17: 0 | O17: 0 | P17: 0 | Q17: =IF(OR(C17='Koszty nieponiesione'!$A$283,C17='Koszty nieponiesione'!$A$291,C17='Koszty nieponiesione'!$A$295,C17='Koszty nieponiesione'!$A$303,C17='Koszty nieponiesione'!$A$307,C17='Koszty nieponiesione'!$A$311,C17='Koszty nieponiesione'!$A$315,C17='Koszty nieponiesione'!$A$319), 'Prod. roślinna'!D17,0) -> 0 | S17: 0
A18: A | B18: 148 | E18: =IFERROR(VLOOKUP(region&'Prod. roślinna str 4'!$C18,Dane_srednie_baza,6,0),0) -> 0 | F18: =IFERROR(VLOOKUP(region&'Prod. roślinna str 4'!C18,Dane_srednie_baza,7,0),0) -> 0 | G18: 0 | H18: 0 | J18: =AND(VLOOKUP(C18,rosliny_baza,2,0),('Prod. zwierzęca towar.'!$B$6>0)) ->  | L18: 0 | M18: 0 | N18: 0 | O18: 0 | P18: 0 | Q18: =IF(OR(C18='Koszty nieponiesione'!$A$283,C18='Koszty nieponiesione'!$A$291,C18='Koszty nieponiesione'!$A$295,C18='Koszty nieponiesione'!$A$303,C18='Koszty nieponiesione'!$A$307,C18='Koszty nieponiesione'!$A$311,C18='Koszty nieponiesione'!$A$315,C18='Koszty nieponiesione'!$A$319), 'Prod. roślinna'!D18,0) -> 0 | S18: 0
A19: A | B19: 149 | E19: =IFERROR(VLOOKUP(region&'Prod. roślinna str 4'!$C19,Dane_srednie_baza,6,0),0) -> 0 | F19: =IFERROR(VLOOKUP(region&'Prod. roślinna str 4'!C19,Dane_srednie_baza,7,0),0) -> 0 | G19: 0 | H19: 0 | J19: =AND(VLOOKUP(C19,rosliny_baza,2,0),('Prod. zwierzęca towar.'!$B$6>0)) ->  | L19: 0 | M19: 0 | N19: 0 | O19: 0 | P19: 0 | Q19: =IF(OR(C19='Koszty nieponiesione'!$A$283,C19='Koszty nieponiesione'!$A$291,C19='Koszty nieponiesione'!$A$295,C19='Koszty nieponiesione'!$A$303,C19='Koszty nieponiesione'!$A$307,C19='Koszty nieponiesione'!$A$311,C19='Koszty nieponiesione'!$A$315,C19='Koszty nieponiesione'!$A$319), 'Prod. roślinna'!D19,0) -> 0 | S19: 0
A20: A | B20: 150 | E20: =IFERROR(VLOOKUP(region&'Prod. roślinna str 4'!$C20,Dane_srednie_baza,6,0),0) -> 0 | F20: =IFERROR(VLOOKUP(region&'Prod. roślinna str 4'!C20,Dane_srednie_baza,7,0),0) -> 0 | G20: 0 | H20: 0 | J20: =AND(VLOOKUP(C20,rosliny_baza,2,0),('Prod. zwierzęca towar.'!$B$6>0)) ->  | L20: 0 | M20: 0 | N20: 0 | O20: 0 | P20: 0 | Q20: =IF(OR(C20='Koszty nieponiesione'!$A$283,C20='Koszty nieponiesione'!$A$291,C20='Koszty nieponiesione'!$A$295,C20='Koszty nieponiesione'!$A$303,C20='Koszty nieponiesione'!$A$307,C20='Koszty nieponiesione'!$A$311,C20='Koszty nieponiesione'!$A$315,C20='Koszty nieponiesione'!$A$319), 'Prod. roślinna'!D20,0) -> 0 | S20: 0
A21: A | B21: 151 | E21: =IFERROR(VLOOKUP(region&'Prod. roślinna str 4'!$C21,Dane_srednie_baza,6,0),0) -> 0 | F21: =IFERROR(VLOOKUP(region&'Prod. roślinna str 4'!C21,Dane_srednie_baza,7,0),0) -> 0 | G21: 0 | H21: 0 | J21: =AND(VLOOKUP(C21,rosliny_baza,2,0),('Prod. zwierzęca towar.'!$B$6>0)) ->  | L21: 0 | M21: 0 | N21: 0 | O21: 0 | P21: 0 | Q21: =IF(OR(C21='Koszty nieponiesione'!$A$283,C21='Koszty nieponiesione'!$A$291,C21='Koszty nieponiesione'!$A$295,C21='Koszty nieponiesione'!$A$303,C21='Koszty nieponiesione'!$A$307,C21='Koszty nieponiesione'!$A$311,C21='Koszty nieponiesione'!$A$315,C21='Koszty nieponiesione'!$A$319), 'Prod. roślinna'!D21,0) -> 0 | S21: 0
A22: A | B22: 152 | E22: =IFERROR(VLOOKUP(region&'Prod. roślinna str 4'!$C22,Dane_srednie_baza,6,0),0) -> 0 | F22: =IFERROR(VLOOKUP(region&'Prod. roślinna str 4'!C22,Dane_srednie_baza,7,0),0) -> 0 | G22: 0 | H22: 0 | J22: =AND(VLOOKUP(C22,rosliny_baza,2,0),('Prod. zwierzęca towar.'!$B$6>0)) ->  | L22: 0 | M22: 0 | N22: 0 | O22: 0 | P22: 0 | Q22: =IF(OR(C22='Koszty nieponiesione'!$A$283,C22='Koszty nieponiesione'!$A$291,C22='Koszty nieponiesione'!$A$295,C22='Koszty nieponiesione'!$A$303,C22='Koszty nieponiesione'!$A$307,C22='Koszty nieponiesione'!$A$311,C22='Koszty nieponiesione'!$A$315,C22='Koszty nieponiesione'!$A$319), 'Prod. roślinna'!D22,0) -> 0 | S22: 0
A23: A | B23: 153 | E23: =IFERROR(VLOOKUP(region&'Prod. roślinna str 4'!$C23,Dane_srednie_baza,6,0),0) -> 0 | F23: =IFERROR(VLOOKUP(region&'Prod. roślinna str 4'!C23,Dane_srednie_baza,7,0),0) -> 0 | G23: 0 | H23: 0 | J23: =AND(VLOOKUP(C23,rosliny_baza,2,0),('Prod. zwierzęca towar.'!$B$6>0)) ->  | L23: 0 | M23: 0 | N23: 0 | O23: 0 | P23: 0 | Q23: =IF(OR(C23='Koszty nieponiesione'!$A$283,C23='Koszty nieponiesione'!$A$291,C23='Koszty nieponiesione'!$A$295,C23='Koszty nieponiesione'!$A$303,C23='Koszty nieponiesione'!$A$307,C23='Koszty nieponiesione'!$A$311,C23='Koszty nieponiesione'!$A$315,C23='Koszty nieponiesione'!$A$319), 'Prod. roślinna'!D23,0) -> 0 | S23: 0
A24: A | B24: 154 | E24: =IFERROR(VLOOKUP(region&'Prod. roślinna str 4'!$C24,Dane_srednie_baza,6,0),0) -> 0 | F24: =IFERROR(VLOOKUP(region&'Prod. roślinna str 4'!C24,Dane_srednie_baza,7,0),0) -> 0 | G24: 0 | H24: 0 | J24: =AND(VLOOKUP(C24,rosliny_baza,2,0),('Prod. zwierzęca towar.'!$B$6>0)) ->  | L24: 0 | M24: 0 | N24: 0 | O24: 0 | P24: 0 | Q24: =IF(OR(C24='Koszty nieponiesione'!$A$283,C24='Koszty nieponiesione'!$A$291,C24='Koszty nieponiesione'!$A$295,C24='Koszty nieponiesione'!$A$303,C24='Koszty nieponiesione'!$A$307,C24='Koszty nieponiesione'!$A$311,C24='Koszty nieponiesione'!$A$315,C24='Koszty nieponiesione'!$A$319), 'Prod. roślinna'!D24,0) -> 0 | S24: 0
A25: A | B25: 155 | E25: =IFERROR(VLOOKUP(region&'Prod. roślinna str 4'!$C25,Dane_srednie_baza,6,0),0) -> 0 | F25: =IFERROR(VLOOKUP(region&'Prod. roślinna str 4'!C25,Dane_srednie_baza,7,0),0) -> 0 | G25: 0 | H25: 0 | J25: =AND(VLOOKUP(C25,rosliny_baza,2,0),('Prod. zwierzęca towar.'!$B$6>0)) ->  | L25: 0 | M25: 0 | N25: 0 | O25: 0 | P25: 0 | Q25: =IF(OR(C25='Koszty nieponiesione'!$A$283,C25='Koszty nieponiesione'!$A$291,C25='Koszty nieponiesione'!$A$295,C25='Koszty nieponiesione'!$A$303,C25='Koszty nieponiesione'!$A$307,C25='Koszty nieponiesione'!$A$311,C25='Koszty nieponiesione'!$A$315,C25='Koszty nieponiesione'!$A$319), 'Prod. roślinna'!D25,0) -> 0 | S25: 0
A26: A | B26: 156 | E26: =IFERROR(VLOOKUP(region&'Prod. roślinna str 4'!$C26,Dane_srednie_baza,6,0),0) -> 0 | F26: =IFERROR(VLOOKUP(region&'Prod. roślinna str 4'!C26,Dane_srednie_baza,7,0),0) -> 0 | G26: 0 | H26: 0 | J26: =AND(VLOOKUP(C26,rosliny_baza,2,0),('Prod. zwierzęca towar.'!$B$6>0)) ->  | L26: 0 | M26: 0 | N26: 0 | O26: 0 | P26: 0 | Q26: =IF(OR(C26='Koszty nieponiesione'!$A$283,C26='Koszty nieponiesione'!$A$291,C26='Koszty nieponiesione'!$A$295,C26='Koszty nieponiesione'!$A$303,C26='Koszty nieponiesione'!$A$307,C26='Koszty nieponiesione'!$A$311,C26='Koszty nieponiesione'!$A$315,C26='Koszty nieponiesione'!$A$319), 'Prod. roślinna'!D26,0) -> 0 | S26: 0
A27: A | B27: 157 | E27: =IFERROR(VLOOKUP(region&'Prod. roślinna str 4'!$C27,Dane_srednie_baza,6,0),0) -> 0 | F27: =IFERROR(VLOOKUP(region&'Prod. roślinna str 4'!C27,Dane_srednie_baza,7,0),0) -> 0 | G27: 0 | H27: 0 | J27: =AND(VLOOKUP(C27,rosliny_baza,2,0),('Prod. zwierzęca towar.'!$B$6>0)) ->  | L27: 0 | M27: 0 | N27: 0 | O27: 0 | P27: 0 | Q27: =IF(OR(C27='Koszty nieponiesione'!$A$283,C27='Koszty nieponiesione'!$A$291,C27='Koszty nieponiesione'!$A$295,C27='Koszty nieponiesione'!$A$303,C27='Koszty nieponiesione'!$A$307,C27='Koszty nieponiesione'!$A$311,C27='Koszty nieponiesione'!$A$315,C27='Koszty nieponiesione'!$A$319), 'Prod. roślinna'!D27,0) -> 0 | S27: 0
A28: A | B28: 158 | E28: =IFERROR(VLOOKUP(region&'Prod. roślinna str 4'!$C28,Dane_srednie_baza,6,0),0) -> 0 | F28: =IFERROR(VLOOKUP(region&'Prod. roślinna str 4'!C28,Dane_srednie_baza,7,0),0) -> 0 | G28: 0 | H28: 0 | J28: =AND(VLOOKUP(C28,rosliny_baza,2,0),('Prod. zwierzęca towar.'!$B$6>0)) ->  | L28: 0 | M28: 0 | N28: 0 | O28: 0 | P28: 0 | Q28: =IF(OR(C28='Koszty nieponiesione'!$A$283,C28='Koszty nieponiesione'!$A$291,C28='Koszty nieponiesione'!$A$295,C28='Koszty nieponiesione'!$A$303,C28='Koszty nieponiesione'!$A$307,C28='Koszty nieponiesione'!$A$311,C28='Koszty nieponiesione'!$A$315,C28='Koszty nieponiesione'!$A$319), 'Prod. roślinna'!D28,0) -> 0 | S28: 0
A29: A | B29: 159 | E29: =IFERROR(VLOOKUP(region&'Prod. roślinna str 4'!$C29,Dane_srednie_baza,6,0),0) -> 0 | F29: =IFERROR(VLOOKUP(region&'Prod. roślinna str 4'!C29,Dane_srednie_baza,7,0),0) -> 0 | G29: 0 | H29: 0 | J29: =AND(VLOOKUP(C29,rosliny_baza,2,0),('Prod. zwierzęca towar.'!$B$6>0)) ->  | L29: 0 | M29: 0 | N29: 0 | O29: 0 | P29: 0 | Q29: =IF(OR(C29='Koszty nieponiesione'!$A$283,C29='Koszty nieponiesione'!$A$291,C29='Koszty nieponiesione'!$A$295,C29='Koszty nieponiesione'!$A$303,C29='Koszty nieponiesione'!$A$307,C29='Koszty nieponiesione'!$A$311,C29='Koszty nieponiesione'!$A$315,C29='Koszty nieponiesione'!$A$319), 'Prod. roślinna'!D29,0) -> 0 | S29: 0
A30: A | B30: 160 | E30: =IFERROR(VLOOKUP(region&'Prod. roślinna str 4'!$C30,Dane_srednie_baza,6,0),0) -> 0 | F30: =IFERROR(VLOOKUP(region&'Prod. roślinna str 4'!C30,Dane_srednie_baza,7,0),0) -> 0 | G30: 0 | H30: 0 | J30: =AND(VLOOKUP(C30,rosliny_baza,2,0),('Prod. zwierzęca towar.'!$B$6>0)) ->  | L30: 0 | M30: 0 | N30: 0 | O30: 0 | P30: 0 | Q30: =IF(OR(C30='Koszty nieponiesione'!$A$283,C30='Koszty nieponiesione'!$A$291,C30='Koszty nieponiesione'!$A$295,C30='Koszty nieponiesione'!$A$303,C30='Koszty nieponiesione'!$A$307,C30='Koszty nieponiesione'!$A$311,C30='Koszty nieponiesione'!$A$315,C30='Koszty nieponiesione'!$A$319), 'Prod. roślinna'!D30,0) -> 0 | S30: 0
A31: A | B31: 161 | E31: =IFERROR(VLOOKUP(region&'Prod. roślinna str 4'!$C31,Dane_srednie_baza,6,0),0) -> 0 | F31: =IFERROR(VLOOKUP(region&'Prod. roślinna str 4'!C31,Dane_srednie_baza,7,0),0) -> 0 | G31: 0 | H31: 0 | J31: =AND(VLOOKUP(C31,rosliny_baza,2,0),('Prod. zwierzęca towar.'!$B$6>0)) ->  | L31: 0 | M31: 0 | N31: 0 | O31: 0 | P31: 0 | Q31: =IF(OR(C31='Koszty nieponiesione'!$A$283,C31='Koszty nieponiesione'!$A$291,C31='Koszty nieponiesione'!$A$295,C31='Koszty nieponiesione'!$A$303,C31='Koszty nieponiesione'!$A$307,C31='Koszty nieponiesione'!$A$311,C31='Koszty nieponiesione'!$A$315,C31='Koszty nieponiesione'!$A$319), 'Prod. roślinna'!D31,0) -> 0 | S31: 0
A32: A | B32: 162 | E32: =IFERROR(VLOOKUP(region&'Prod. roślinna str 4'!$C32,Dane_srednie_baza,6,0),0) -> 0 | F32: =IFERROR(VLOOKUP(region&'Prod. roślinna str 4'!C32,Dane_srednie_baza,7,0),0) -> 0 | G32: 0 | H32: 0 | J32: =AND(VLOOKUP(C32,rosliny_baza,2,0),('Prod. zwierzęca towar.'!$B$6>0)) ->  | L32: 0 | M32: 0 | N32: 0 | O32: 0 | P32: 0 | Q32: =IF(OR(C32='Koszty nieponiesione'!$A$283,C32='Koszty nieponiesione'!$A$291,C32='Koszty nieponiesione'!$A$295,C32='Koszty nieponiesione'!$A$303,C32='Koszty nieponiesione'!$A$307,C32='Koszty nieponiesione'!$A$311,C32='Koszty nieponiesione'!$A$315,C32='Koszty nieponiesione'!$A$319), 'Prod. roślinna'!D32,0) -> 0 | S32: 0
A33: A | B33: 163 | E33: =IFERROR(VLOOKUP(region&'Prod. roślinna str 4'!$C33,Dane_srednie_baza,6,0),0) -> 0 | F33: =IFERROR(VLOOKUP(region&'Prod. roślinna str 4'!C33,Dane_srednie_baza,7,0),0) -> 0 | G33: 0 | H33: 0 | J33: =AND(VLOOKUP(C33,rosliny_baza,2,0),('Prod. zwierzęca towar.'!$B$6>0)) ->  | L33: 0 | M33: 0 | N33: 0 | O33: 0 | P33: 0 | Q33: =IF(OR(C33='Koszty nieponiesione'!$A$283,C33='Koszty nieponiesione'!$A$291,C33='Koszty nieponiesione'!$A$295,C33='Koszty nieponiesione'!$A$303,C33='Koszty nieponiesione'!$A$307,C33='Koszty nieponiesione'!$A$311,C33='Koszty nieponiesione'!$A$315,C33='Koszty nieponiesione'!$A$319), 'Prod. roślinna'!D33,0) -> 0 | S33: 0
A34: A | B34: 164 | E34: =IFERROR(VLOOKUP(region&'Prod. roślinna str 4'!$C34,Dane_srednie_baza,6,0),0) -> 0 | F34: =IFERROR(VLOOKUP(region&'Prod. roślinna str 4'!C34,Dane_srednie_baza,7,0),0) -> 0 | G34: 0 | H34: 0 | J34: =AND(VLOOKUP(C34,rosliny_baza,2,0),('Prod. zwierzęca towar.'!$B$6>0)) ->  | L34: 0 | M34: 0 | N34: 0 | O34: 0 | P34: 0 | Q34: =IF(OR(C34='Koszty nieponiesione'!$A$283,C34='Koszty nieponiesione'!$A$291,C34='Koszty nieponiesione'!$A$295,C34='Koszty nieponiesione'!$A$303,C34='Koszty nieponiesione'!$A$307,C34='Koszty nieponiesione'!$A$311,C34='Koszty nieponiesione'!$A$315,C34='Koszty nieponiesione'!$A$319), 'Prod. roślinna'!D34,0) -> 0 | S34: 0
A35: A | B35: 165 | E35: =IFERROR(VLOOKUP(region&'Prod. roślinna str 4'!$C35,Dane_srednie_baza,6,0),0) -> 0 | F35: =IFERROR(VLOOKUP(region&'Prod. roślinna str 4'!C35,Dane_srednie_baza,7,0),0) -> 0 | G35: 0 | H35: 0 | J35: =AND(VLOOKUP(C35,rosliny_baza,2,0),('Prod. zwierzęca towar.'!$B$6>0)) ->  | L35: 0 | M35: =H35-L35 -> 0 | N35: 0 | O35: 0 | P35: 0 | Q35: =IF(OR(C35='Koszty nieponiesione'!$A$283,C35='Koszty nieponiesione'!$A$291,C35='Koszty nieponiesione'!$A$295,C35='Koszty nieponiesione'!$A$303,C35='Koszty nieponiesione'!$A$307,C35='Koszty nieponiesione'!$A$311,C35='Koszty nieponiesione'!$A$315,C35='Koszty nieponiesione'!$A$319), 'Prod. roślinna'!D35,0) -> 0 | S35: 0
A36: A | B36: 166 | E36: =IFERROR(VLOOKUP(region&'Prod. roślinna str 4'!$C36,Dane_srednie_baza,6,0),0) -> 0 | F36: =IFERROR(VLOOKUP(region&'Prod. roślinna str 4'!C36,Dane_srednie_baza,7,0),0) -> 0 | G36: 0 | H36: 0 | J36: =AND(VLOOKUP(C36,rosliny_baza,2,0),('Prod. zwierzęca towar.'!$B$6>0)) ->  | L36: 0 | M36: 0 | N36: 0 | O36: 0 | P36: 0 | Q36: =IF(OR(C36='Koszty nieponiesione'!$A$283,C36='Koszty nieponiesione'!$A$291,C36='Koszty nieponiesione'!$A$295,C36='Koszty nieponiesione'!$A$303,C36='Koszty nieponiesione'!$A$307,C36='Koszty nieponiesione'!$A$311,C36='Koszty nieponiesione'!$A$315,C36='Koszty nieponiesione'!$A$319), 'Prod. roślinna'!D36,0) -> 0 | S36: 0
A37: A | B37: 167 | E37: =IFERROR(VLOOKUP(region&'Prod. roślinna str 4'!$C37,Dane_srednie_baza,6,0),0) -> 0 | F37: =IFERROR(VLOOKUP(region&'Prod. roślinna str 4'!C37,Dane_srednie_baza,7,0),0) -> 0 | G37: 0 | H37: 0 | J37: =AND(VLOOKUP(C37,rosliny_baza,2,0),('Prod. zwierzęca towar.'!$B$6>0)) ->  | L37: 0 | M37: 0 | N37: 0 | O37: 0 | P37: 0 | Q37: =IF(OR(C37='Koszty nieponiesione'!$A$283,C37='Koszty nieponiesione'!$A$291,C37='Koszty nieponiesione'!$A$295,C37='Koszty nieponiesione'!$A$303,C37='Koszty nieponiesione'!$A$307,C37='Koszty nieponiesione'!$A$311,C37='Koszty nieponiesione'!$A$315,C37='Koszty nieponiesione'!$A$319), 'Prod. roślinna'!D37,0) -> 0 | S37: 0
A38: A | B38: 168 | E38: =IFERROR(VLOOKUP(region&'Prod. roślinna str 4'!$C38,Dane_srednie_baza,6,0),0) -> 0 | F38: =IFERROR(VLOOKUP(region&'Prod. roślinna str 4'!C38,Dane_srednie_baza,7,0),0) -> 0 | G38: 0 | H38: 0 | J38: =AND(VLOOKUP(C38,rosliny_baza,2,0),('Prod. zwierzęca towar.'!$B$6>0)) ->  | L38: 0 | M38: 0 | N38: 0 | O38: 0 | P38: 0 | Q38: =IF(OR(C38='Koszty nieponiesione'!$A$283,C38='Koszty nieponiesione'!$A$291,C38='Koszty nieponiesione'!$A$295,C38='Koszty nieponiesione'!$A$303,C38='Koszty nieponiesione'!$A$307,C38='Koszty nieponiesione'!$A$311,C38='Koszty nieponiesione'!$A$315,C38='Koszty nieponiesione'!$A$319), 'Prod. roślinna'!D38,0) -> 0 | S38: 0
A39: A | B39: 169 | E39: =IFERROR(VLOOKUP(region&'Prod. roślinna str 4'!$C39,Dane_srednie_baza,6,0),0) -> 0 | F39: =IFERROR(VLOOKUP(region&'Prod. roślinna str 4'!C39,Dane_srednie_baza,7,0),0) -> 0 | G39: 0 | H39: 0 | J39: =AND(VLOOKUP(C39,rosliny_baza,2,0),('Prod. zwierzęca towar.'!$B$6>0)) ->  | L39: 0 | M39: 0 | N39: 0 | O39: 0 | P39: 0 | Q39: =IF(OR(C39='Koszty nieponiesione'!$A$283,C39='Koszty nieponiesione'!$A$291,C39='Koszty nieponiesione'!$A$295,C39='Koszty nieponiesione'!$A$303,C39='Koszty nieponiesione'!$A$307,C39='Koszty nieponiesione'!$A$311,C39='Koszty nieponiesione'!$A$315,C39='Koszty nieponiesione'!$A$319), 'Prod. roślinna'!D39,0) -> 0 | S39: 0
A40: A | B40: 170 | E40: =IFERROR(VLOOKUP(region&'Prod. roślinna str 4'!$C40,Dane_srednie_baza,6,0),0) -> 0 | F40: =IFERROR(VLOOKUP(region&'Prod. roślinna str 4'!C40,Dane_srednie_baza,7,0),0) -> 0 | G40: 0 | H40: 0 | J40: =AND(VLOOKUP(C40,rosliny_baza,2,0),('Prod. zwierzęca towar.'!$B$6>0)) ->  | L40: 0 | M40: 0 | N40: 0 | O40: 0 | P40: 0 | Q40: =IF(OR(C40='Koszty nieponiesione'!$A$283,C40='Koszty nieponiesione'!$A$291,C40='Koszty nieponiesione'!$A$295,C40='Koszty nieponiesione'!$A$303,C40='Koszty nieponiesione'!$A$307,C40='Koszty nieponiesione'!$A$311,C40='Koszty nieponiesione'!$A$315,C40='Koszty nieponiesione'!$A$319), 'Prod. roślinna'!D40,0) -> 0 | S40: 0
A41: A | B41: 171 | E41: =IFERROR(VLOOKUP(region&'Prod. roślinna str 4'!$C41,Dane_srednie_baza,6,0),0) -> 0 | F41: =IFERROR(VLOOKUP(region&'Prod. roślinna str 4'!C41,Dane_srednie_baza,7,0),0) -> 0 | G41: 0 | H41: 0 | J41: =AND(VLOOKUP(C41,rosliny_baza,2,0),('Prod. zwierzęca towar.'!$B$6>0)) ->  | L41: 0 | M41: 0 | N41: 0 | O41: 0 | P41: 0 | Q41: =IF(OR(C41='Koszty nieponiesione'!$A$283,C41='Koszty nieponiesione'!$A$291,C41='Koszty nieponiesione'!$A$295,C41='Koszty nieponiesione'!$A$303,C41='Koszty nieponiesione'!$A$307,C41='Koszty nieponiesione'!$A$311,C41='Koszty nieponiesione'!$A$315,C41='Koszty nieponiesione'!$A$319), 'Prod. roślinna'!D41,0) -> 0 | S41: 0
A42: A | B42: 172 | E42: =IFERROR(VLOOKUP(region&'Prod. roślinna str 4'!$C42,Dane_srednie_baza,6,0),0) -> 0 | F42: =IFERROR(VLOOKUP(region&'Prod. roślinna str 4'!C42,Dane_srednie_baza,7,0),0) -> 0 | G42: 0 | H42: 0 | J42: =AND(VLOOKUP(C42,rosliny_baza,2,0),('Prod. zwierzęca towar.'!$B$6>0)) ->  | L42: 0 | M42: 0 | N42: 0 | O42: 0 | P42: 0 | Q42: =IF(OR(C42='Koszty nieponiesione'!$A$283,C42='Koszty nieponiesione'!$A$291,C42='Koszty nieponiesione'!$A$295,C42='Koszty nieponiesione'!$A$303,C42='Koszty nieponiesione'!$A$307,C42='Koszty nieponiesione'!$A$311,C42='Koszty nieponiesione'!$A$315,C42='Koszty nieponiesione'!$A$319), 'Prod. roślinna'!D42,0) -> 0 | S42: 0
A43: A | B43: 173 | E43: =IFERROR(VLOOKUP(region&'Prod. roślinna str 4'!$C43,Dane_srednie_baza,6,0),0) -> 0 | F43: =IFERROR(VLOOKUP(region&'Prod. roślinna str 4'!C43,Dane_srednie_baza,7,0),0) -> 0 | G43: 0 | H43: 0 | J43: =AND(VLOOKUP(C43,rosliny_baza,2,0),('Prod. zwierzęca towar.'!$B$6>0)) ->  | L43: 0 | M43: 0 | N43: 0 | O43: 0 | P43: 0 | Q43: =IF(OR(C43='Koszty nieponiesione'!$A$283,C43='Koszty nieponiesione'!$A$291,C43='Koszty nieponiesione'!$A$295,C43='Koszty nieponiesione'!$A$303,C43='Koszty nieponiesione'!$A$307,C43='Koszty nieponiesione'!$A$311,C43='Koszty nieponiesione'!$A$315,C43='Koszty nieponiesione'!$A$319), 'Prod. roślinna'!D43,0) -> 0 | S43: 0
A44: A | B44: 174 | E44: =IFERROR(VLOOKUP(region&'Prod. roślinna str 4'!$C44,Dane_srednie_baza,6,0),0) -> 0 | F44: =IFERROR(VLOOKUP(region&'Prod. roślinna str 4'!C44,Dane_srednie_baza,7,0),0) -> 0 | G44: 0 | H44: 0 | J44: =AND(VLOOKUP(C44,rosliny_baza,2,0),('Prod. zwierzęca towar.'!$B$6>0)) ->  | L44: 0 | M44: 0 | N44: 0 | O44: 0 | P44: 0 | Q44: =IF(OR(C44='Koszty nieponiesione'!$A$283,C44='Koszty nieponiesione'!$A$291,C44='Koszty nieponiesione'!$A$295,C44='Koszty nieponiesione'!$A$303,C44='Koszty nieponiesione'!$A$307,C44='Koszty nieponiesione'!$A$311,C44='Koszty nieponiesione'!$A$315,C44='Koszty nieponiesione'!$A$319), 'Prod. roślinna'!D44,0) -> 0 | S44: 0
A45: A | B45: 175 | E45: =IFERROR(VLOOKUP(region&'Prod. roślinna str 4'!$C45,Dane_srednie_baza,6,0),0) -> 0 | F45: =IFERROR(VLOOKUP(region&'Prod. roślinna str 4'!C45,Dane_srednie_baza,7,0),0) -> 0 | G45: 0 | H45: 0 | J45: =AND(VLOOKUP(C45,rosliny_baza,2,0),('Prod. zwierzęca towar.'!$B$6>0)) ->  | L45: 0 | M45: 0 | N45: 0 | O45: 0 | P45: 0 | Q45: =IF(OR(C45='Koszty nieponiesione'!$A$283,C45='Koszty nieponiesione'!$A$291,C45='Koszty nieponiesione'!$A$295,C45='Koszty nieponiesione'!$A$303,C45='Koszty nieponiesione'!$A$307,C45='Koszty nieponiesione'!$A$311,C45='Koszty nieponiesione'!$A$315,C45='Koszty nieponiesione'!$A$319), 'Prod. roślinna'!D45,0) -> 0 | S45: 0
A46: A | B46: 176 | E46: =IFERROR(VLOOKUP(region&'Prod. roślinna str 4'!$C46,Dane_srednie_baza,6,0),0) -> 0 | F46: =IFERROR(VLOOKUP(region&'Prod. roślinna str 4'!C46,Dane_srednie_baza,7,0),0) -> 0 | G46: 0 | H46: 0 | J46: =AND(VLOOKUP(C46,rosliny_baza,2,0),('Prod. zwierzęca towar.'!$B$6>0)) ->  | L46: 0 | M46: 0 | N46: 0 | O46: 0 | P46: 0 | Q46: =IF(OR(C46='Koszty nieponiesione'!$A$283,C46='Koszty nieponiesione'!$A$291,C46='Koszty nieponiesione'!$A$295,C46='Koszty nieponiesione'!$A$303,C46='Koszty nieponiesione'!$A$307,C46='Koszty nieponiesione'!$A$311,C46='Koszty nieponiesione'!$A$315,C46='Koszty nieponiesione'!$A$319), 'Prod. roślinna'!D46,0) -> 0 | S46: 0
A47: A | B47: 177 | G47: 0 | H47: 0 | J47: =AND(VLOOKUP(C47,rosliny_baza,2,0),('Prod. zwierzęca towar.'!$B$6>0)) ->  | L47: 0 | M47: 0 | O47: 0 | P47: 0 | Q47: =IF(OR(C47='Koszty nieponiesione'!$A$283,C47='Koszty nieponiesione'!$A$291,C47='Koszty nieponiesione'!$A$295,C47='Koszty nieponiesione'!$A$303,C47='Koszty nieponiesione'!$A$307,C47='Koszty nieponiesione'!$A$311,C47='Koszty nieponiesione'!$A$315,C47='Koszty nieponiesione'!$A$319), 'Prod. roślinna'!D47,0) -> 0 | S47: 0
A48: A | B48: 178 | G48: 0 | H48: 0 | J48: =AND(VLOOKUP(C48,rosliny_baza,2,0),('Prod. zwierzęca towar.'!$B$6>0)) ->  | L48: 0 | M48: 0 | O48: 0 | P48: 0 | Q48: =IF(OR(C48='Koszty nieponiesione'!$A$283,C48='Koszty nieponiesione'!$A$291,C48='Koszty nieponiesione'!$A$295,C48='Koszty nieponiesione'!$A$303,C48='Koszty nieponiesione'!$A$307,C48='Koszty nieponiesione'!$A$311,C48='Koszty nieponiesione'!$A$315,C48='Koszty nieponiesione'!$A$319), 'Prod. roślinna'!D48,0) -> 0 | S48: 0
A49: A | B49: 179 | G49: 0 | H49: 0 | J49: =AND(VLOOKUP(C49,rosliny_baza,2,0),('Prod. zwierzęca towar.'!$B$6>0)) ->  | L49: 0 | M49: 0 | O49: 0 | P49: 0 | Q49: =IF(OR(C49='Koszty nieponiesione'!$A$283,C49='Koszty nieponiesione'!$A$291,C49='Koszty nieponiesione'!$A$295,C49='Koszty nieponiesione'!$A$303,C49='Koszty nieponiesione'!$A$307,C49='Koszty nieponiesione'!$A$311,C49='Koszty nieponiesione'!$A$315,C49='Koszty nieponiesione'!$A$319), 'Prod. roślinna'!D49,0) -> 0 | S49: 0
A50: A | B50: 180 | G50: 0 | H50: 0 | J50: =AND(VLOOKUP(C50,rosliny_baza,2,0),('Prod. zwierzęca towar.'!$B$6>0)) ->  | L50: 0 | M50: 0 | O50: 0 | P50: 0 | Q50: =IF(OR(C50='Koszty nieponiesione'!$A$283,C50='Koszty nieponiesione'!$A$291,C50='Koszty nieponiesione'!$A$295,C50='Koszty nieponiesione'!$A$303,C50='Koszty nieponiesione'!$A$307,C50='Koszty nieponiesione'!$A$311,C50='Koszty nieponiesione'!$A$315,C50='Koszty nieponiesione'!$A$319), 'Prod. roślinna'!D50,0) -> 0 | S50: 0
A51: A | B51: 181 | G51: 0 | H51: 0 | J51: =AND(VLOOKUP(C51,rosliny_baza,2,0),('Prod. zwierzęca towar.'!$B$6>0)) ->  | L51: 0 | M51: 0 | O51: 0 | P51: 0 | Q51: =IF(OR(C51='Koszty nieponiesione'!$A$283,C51='Koszty nieponiesione'!$A$291,C51='Koszty nieponiesione'!$A$295,C51='Koszty nieponiesione'!$A$303,C51='Koszty nieponiesione'!$A$307,C51='Koszty nieponiesione'!$A$311,C51='Koszty nieponiesione'!$A$315,C51='Koszty nieponiesione'!$A$319), 'Prod. roślinna'!D51,0) -> 0 | S51: 0
A52: A | B52: 182 | G52: 0 | H52: 0 | J52: =AND(VLOOKUP(C52,rosliny_baza,2,0),('Prod. zwierzęca towar.'!$B$6>0)) ->  | L52: 0 | M52: 0 | O52: 0 | P52: 0 | Q52: =IF(OR(C52='Koszty nieponiesione'!$A$283,C52='Koszty nieponiesione'!$A$291,C52='Koszty nieponiesione'!$A$295,C52='Koszty nieponiesione'!$A$303,C52='Koszty nieponiesione'!$A$307,C52='Koszty nieponiesione'!$A$311,C52='Koszty nieponiesione'!$A$315,C52='Koszty nieponiesione'!$A$319), 'Prod. roślinna'!D52,0) -> 0 | S52: 0
A53: A | B53: 183 | G53: 0 | H53: 0 | J53: =AND(VLOOKUP(C53,rosliny_baza,2,0),('Prod. zwierzęca towar.'!$B$6>0)) ->  | L53: 0 | M53: 0 | O53: 0 | P53: 0 | Q53: =IF(OR(C53='Koszty nieponiesione'!$A$283,C53='Koszty nieponiesione'!$A$291,C53='Koszty nieponiesione'!$A$295,C53='Koszty nieponiesione'!$A$303,C53='Koszty nieponiesione'!$A$307,C53='Koszty nieponiesione'!$A$311,C53='Koszty nieponiesione'!$A$315,C53='Koszty nieponiesione'!$A$319), 'Prod. roślinna'!D53,0) -> 0 | S53: 0
A54: A | B54: 184 | G54: 0 | H54: 0 | J54: =AND(VLOOKUP(C54,rosliny_baza,2,0),('Prod. zwierzęca towar.'!$B$6>0)) ->  | L54: 0 | M54: 0 | O54: 0 | P54: 0 | Q54: =IF(OR(C54='Koszty nieponiesione'!$A$283,C54='Koszty nieponiesione'!$A$291,C54='Koszty nieponiesione'!$A$295,C54='Koszty nieponiesione'!$A$303,C54='Koszty nieponiesione'!$A$307,C54='Koszty nieponiesione'!$A$311,C54='Koszty nieponiesione'!$A$315,C54='Koszty nieponiesione'!$A$319), 'Prod. roślinna'!D54,0) -> 0 | S54: 0
A55: A | B55: 185 | G55: 0 | H55: 0 | J55: =AND(VLOOKUP(C55,rosliny_baza,2,0),('Prod. zwierzęca towar.'!$B$6>0)) ->  | L55: 0 | M55: 0 | O55: 0 | P55: 0 | Q55: =IF(OR(C55='Koszty nieponiesione'!$A$283,C55='Koszty nieponiesione'!$A$291,C55='Koszty nieponiesione'!$A$295,C55='Koszty nieponiesione'!$A$303,C55='Koszty nieponiesione'!$A$307,C55='Koszty nieponiesione'!$A$311,C55='Koszty nieponiesione'!$A$315,C55='Koszty nieponiesione'!$A$319), 'Prod. roślinna'!D55,0) -> 0 | S55: 0
A56: A | B56: 186 | G56: =E56*F56 -> 0 | H56: 0 | J56: =AND(VLOOKUP(C56,rosliny_baza,2,0),('Prod. zwierzęca towar.'!$B$6>0)) ->  | L56: 0 | M56: 0 | O56: 0 | P56: 0 | Q56: =IF(OR(C56='Koszty nieponiesione'!$A$283,C56='Koszty nieponiesione'!$A$291,C56='Koszty nieponiesione'!$A$295,C56='Koszty nieponiesione'!$A$303,C56='Koszty nieponiesione'!$A$307,C56='Koszty nieponiesione'!$A$311,C56='Koszty nieponiesione'!$A$315,C56='Koszty nieponiesione'!$A$319), 'Prod. roślinna'!D56,0) -> 0 | S56: 0
B57: Razem (poz. 138 - 186) | D57: =SUM(D8:D56) -> 0 | E57: x | F57: x | G57: x | H57: =SUM(H8:H56) -> 0 | I57: x | K57: =IF(SUM(K8:K56)<'Prod. zwierzęca towar.'!H57,SUM(K8:K56),'Prod. zwierzęca towar.'!H57) -> 0 | L57: =SUM(L8:L56) -> 0 | M57: =SUM(M8:M56) -> 0 | N57: =SUM(N8:N56) -> 0 | P57: =SUM(P8:P56) -> 0 | Q57: =SUM(Q8:Q56) -> 0 | R57: =SUM(R8:R56) -> 0 | S57: =SUM(S8:S56) -> 0
B58: *Dane w kolumnie 9 "Wysokości szkód w uprawach uwzględnianych w produkcji zwierzęcej” oblicza się w zakresie upraw : rośliny pastewne objętościowe na gruntach ornych, okopowe pastewne na pasze, buraki pastewne na pasze, brukiew pastewna na pasze, marchew pastewna na pasze, dynia pastewna na pasze, pozostałe okopowe pastewne na pasze, kukurydza pastewna na zielonkę, zboża na zielonkę i mieszanki zbóż z innymi roślinami na zielonkę, trawy w uprawie polowej na zielonkę, strączkowe na zielonkę, motylkowe drobnonasienne na zielonkę, mieszanki motylkowych z trawami, pozostałe polowe uprawy pastewne na zielonkę, rośliny pastewne objętościowe z użytków zielonych (uprawa lub zielonka), rośliny pastewne objętościowe z łąk – zielonka, rośliny pastewne objętościowe z pastwisk, rośliny pastewne objętościowe z pastwisk pielęgnowanych, rośliny pastewne objętościowe z pastwisk niepielęgnowanych, kukurydza (sucha i wilgotna) na ziarno, proso na ziarno, strączkowe pastewne na nasiona suche, groch pastewny (peluszka) na nasiona suche, pozostałe strączkowe pastewne na nasiona suche, mieszanki strączkowych z innymi roślinami jare na nasiona suche, mieszanki strączkowych z innymi roślinami ozime na nasiona suche. w przypadku prowadzenia produkcji zwierzęcej w zakresie: byki do opasu, wolce 2-letnie i starsze, jałówki do opasu 2-letnie i starsze, byczki od 1 do 2 lat, jałówki od 1 do 2 lat, owce 1 roczne i starsze, mleko krowie, mleko owcze, mleko kozie, kozy 1 roczne i starsze, konie, tuczniki o wadze 50 kg i więcej, warchlaki do tuczu o wadze od 20 do 50 kg.
C61: Czytelne podpisy członków komisji powołanych przez Wojewodę
B62: 1. | C62: ……………………………………………………………………………………………….……… | F62: 6. | G62: ……………………………………………………………………………………………….………
B63: 2. | C63: ……………………………………………………………………………………………….……… | F63: 7. | G63: ……………………………………………………………………………………………….………
B64: 3. | C64: ……………………………………………………………………………………………….……… | F64: 8. | G64: ……………………………………………………………………………………………….………
B65: 4. | C65: ……………………………………………………………………………………………….……… | F65: 9. | G65: ……………………………………………………………………………………………….……… | N65: …………………………………..……………..……….….
B66: 5. | C66: ……………………………………………………………………………………………….……… | F66: 10. | G66: ……………………………………………………………………………………………….……… | N66: (data i czytelny podpis rolnika)

Sheet Prod. roślinna-rozpisanie szkód
A1: Załącznik 1c Wyszczególnienie poziomu i wartości szkód w uprawie dla danego zjawiska atmosferycznego w przypadku łączenia szkód niższych niż 30% | K1: DLA REGIONU FADN | M1: =Protokół!V1 -> A
A2: Imię i nazwisko producenta rolnego | C2: Imię i nazwisko producenta rolnego | E2: =Protokół!G8 -> ……………………………………… ………………………...……………
A4: L.p | B4: Nazwa wszystkich upraw w gospodarstwie rolnym | C4: Powierzchnia uprawy w roku wystąpienia niekorzystnego zjawiska atmosferycznego | D4: W wyniku wystąpienia | F4: W wyniku wystąpienia | H4: W wyniku wystąpienia | J4: W wyniku wystąpienia | L4: W wyniku wystąpienia | N4: Łącznie
D5: Straty plonu w roku wystąpienia szkody wyniosły | E5: Wartość szkód (kwota obniżenia dochodu w wyniku szkód) | F5: Straty plonu w roku wystąpienia szkody wyniosły | G5: Wartość szkód (kwota obniżenia dochodu w wyniku szkód) | H5: Straty plonu w roku wystąpienia szkody wyniosły | I5: Wartość szkód (kwota obniżenia dochodu w wyniku szkód) | J5: Straty plonu w roku wystąpienia szkody wyniosły | K5: Wartość szkód (kwota obniżenia dochodu w wyniku szkód) | L5: Straty plonu w roku wystąpienia szkody wyniosły | M5: Wartość szkód (kwota obniżenia dochodu w wyniku szkód) | N5: Straty plonu w roku wystąpienia szkody wyniosły | O5: Wartość szkód (kwota obniżenia dochodu w wyniku szkód)
B6: NAZWA | C6: ha | D6: % | E6: zł | F6: % | G6: zł | H6: % | I6: zł | J6: % | K6: zł | L6: % | M6: zł | N6: % | O6: zł
A7: 1 | B7: 2 | C7: 3 | D7: 4 | E7: 5 | F7: 6 | G7: 7 | H7: 8 | I7: 9 | J7: 10 | K7: 11 | L7: 12 | M7: 13 | N7: 14 | O7: 15
A8: 1 | N8: =D8+F8+H8+J8+L8 -> 0 | O8: =E8+G8+I8+K8+M8 -> 0
A9: 2 | N9: =D9+F9+H9+J9+L9 -> 0 | O9: =E9+G9+I9+K9+M9 -> 0
A10: 3 | N10: 0 | O10: 0
A11: 4 | N11: 0 | O11: 0
A12: 5 | N12: 0 | O12: 0
A13: 6 | N13: 0 | O13: 0
A14: 7 | N14: 0 | O14: 0
A15: 8 | N15: 0 | O15: 0
A16: 9 | N16: 0 | O16: 0
A17: 10 | N17: 0 | O17: 0
A18: 11 | N18: =D18+F18+H18+J18+L18 -> 0 | O18: 0
A19: 12 | N19: 0 | O19: 0
A20: 13 | N20: 0 | O20: 0
A21: 14 | N21: 0 | O21: =E21+G21+I21+K21+M21 -> 0
A22: 15 | N22: 0 | O22: 0
A23: 16 | N23: 0 | O23: 0
A24: 17 | N24: 0 | O24: 0
A25: 18 | N25: 0 | O25: 0
A26: 19 | N26: =D26+F26+H26+J26+L26 -> 0 | O26: 0
A27: 20 | N27: 0 | O27: 0
A28: 21 | N28: 0 | O28: 0
A29: 22 | N29: 0 | O29: 0
A30: 23 | N30: 0 | O30: 0
A31: 24 | N31: 0 | O31: 0
A32: 25 | N32: 0 | O32: 0
A33: 26 | N33: 0 | O33: 0
A34: 27 | N34: 0 | O34: 0
A35: 28 | N35: 0 | O35: 0
A36: 29 | N36: 0 | O36: 0
A37: 30 | N37: 0 | O37: 0
A38: 31 | N38: 0 | O38: 0
A39: 32 | N39: 0 | O39: 0
A40: 33 | N40: 0 | O40: 0
A41: 34 | N41: 0 | O41: 0
A42: 35 | N42: 0 | O42: 0
A43: 36 | N43: 0 | O43: 0
A44: 37 | N44: 0 | O44: 0
A45: 38 | N45: 0 | O45: 0
A46: 39 | N46: 0 | O46: 0
A47: Razem | C47: =SUM(C8:C46) -> 0 | D47: x | E47: =SUM(E8:E46) -> 0 | F47: x | G47: =SUM(G8:G46) -> 0 | H47: x | I47: =SUM(I8:I46) -> 0 | J47: x | K47: =SUM(K8:K46) -> 0 | L47: x | M47: =SUM(M8:M46) -> 0 | N47: x | O47: =SUM(O8:O46) -> 0
B49: Czytelne podpisy członków komisji powołanych przez Wojewodę
A50: 1. | B50: ……………………………………………………………………………………………….……… | E50: 6. | F50: ……………………………………………………………………………………………….………
A51: 2. | B51: ……………………………………………………………………………………………….……… | E51: 7. | F51: ……………………………………………………………………………………………….………
A52: 3. | B52: ……………………………………………………………………………………………….……… | E52: 8. | F52: ……………………………………………………………………………………………….………
A53: 4. | B53: ……………………………………………………………………………………………….……… | E53: 9. | F53: ……………………………………………………………………………………………….……… | L53: …………………………………..……………..……….….
A54: 5. | B54: ……………………………………………………………………………………………….……… | E54: 10. | F54: ……………………………………………………………………………………………….……… | M54: (data i czytelny podpis rolnika)

Sheet Prod. zwierzęca towar.
A1: Załącznik 2 Szkody w produkcji zwierzęcej towarowej (bez ryb) | J1: DLA REGIONU FADN | M1: =Protokół!V1 -> A
A2: Imię i nazwisko producenta rolnego | E2: =Protokół!G8 -> ……………………………………… ………………………...……………
A4: L.p | C4: Rodzaj produkcji zwierzęcej | E4: Średnia roczna produkcja zwierzęca | I4: Produkcja zwierzęca w roku wystąpienia szkod (z uwzględnieniem spadku produkcji spowodowanej padnięciem zwierząt w wyniku wystąpienia niekorzystnego zjawiska atmosferycznego) | K4: Kwota obniżenia dochodu w wyniku szkód w zł | L4: Koszty nieponiesione w związku z wystąpieniem szkód w zł | M4: Koszty poniesione w związku z wystąpieniem szkód w zł
E5: Liczba zwierząt * szt | F5: Produkcja od 1 szt zwierzęcia w dt/kg/szt. | G5: Cena w zł dt/kg/szt. | H5: Wartość w zł | I5: Liczba zwierząt szt | J5: Wartość produkcji w zł
A6: 1 | B6: =SUM(B7:B56) -> 0 | C6: 2 | E6: 3 | F6: 4 | G6: 5 | H6: 6=3x4x5 | I6: 7 | J6: 8=7x4x5 | K6: 9=6-8 | L6: 10 | M6: 11
A7: 1 | B7: =IFERROR(VLOOKUP(C7,zwierzeta_baza,2,0),0) -> 0 | D7: =IFERROR(VLOOKUP(region&$C7,Dane_srednie_baza,4,0),"") ->  | F7: =IFERROR(VLOOKUP(region&$C7,Dane_srednie_baza,6,0),0) -> 0 | G7: =IFERROR(VLOOKUP(region&$C7,Dane_srednie_baza,7,0),0) -> 0 | H7: =E7*F7*G7 -> 0 | J7: =I7*F7*G7 -> 0 | K7: =H7-J7 -> 0
A8: 2 | B8: 0 | F8: 0 | G8: 0 | H8: =E8*F8*G8 -> 0 | J8: 0 | K8: =H8-J8 -> 0
A9: 3 | B9: 0 | F9: 0 | G9: 0 | H9: 0 | J9: 0 | K9: 0
A10: 4 | B10: 0 | F10: 0 | G10: 0 | H10: 0 | J10: 0 | K10: 0
A11: 5 | B11: 0 | F11: 0 | G11: 0 | H11: 0 | J11: 0 | K11: 0
A12: 6 | B12: 0 | F12: 0 | G12: 0 | H12: 0 | J12: 0 | K12: 0
A13: 7 | B13: 0 | F13: 0 | G13: 0 | H13: 0 | J13: 0 | K13: 0
A14: 8 | B14: 0 | F14: 0 | G14: 0 | H14: 0 | J14: 0 | K14: 0
A15: 9 | B15: 0 | F15: 0 | G15: 0 | H15: 0 | J15: 0 | K15: 0
A16: 10 | B16: 0 | F16: 0 | G16: 0 | H16: 0 | J16: 0 | K16: 0
A17: 11 | B17: 0 | F17: 0 | G17: 0 | H17: 0 | J17: 0 | K17: 0
A18: 12 | B18: 0 | F18: 0 | G18: 0 | H18: 0 | J18: 0 | K18: 0
A19: 13 | B19: 0 | F19: 0 | G19: 0 | H19: 0 | J19: 0 | K19: 0
A20: 14 | B20: 0 | F20: 0 | G20: 0 | H20: 0 | J20: 0 | K20: 0
A21: 15 | B21: 0 | F21: 0 | G21: 0 | H21: 0 | J21: 0 | K21: 0
A22: 16 | B22: 0 | F22: 0 | G22: 0 | H22: 0 | J22: 0 | K22: 0
A23: 17 | B23: 0 | F23: 0 | G23: 0 | H23: 0 | J23: 0 | K23: 0
A24: 18 | B24: 0 | F24: 0 | G24: 0 | H24: 0 | J24: 0 | K24: 0
A25: 19 | B25: 0 | F25: 0 | G25: 0 | H25: 0 | J25: 0 | K25: 0
A26: 20 | B26: 0 | F26: 0 | G26: 0 | H26: 0 | J26: 0 | K26: 0
A27: 21 | B27: 0 | F27: 0 | G27: 0 | H27: =E27*F27*G27 -> 0 | J27: =I27*F27*G27 -> 0 | K27: =H27-J27 -> 0
A28: 22 | B28: 0 | F28: 0 | G28: 0 | H28: 0 | J28: 0 | K28: 0
A29: 23 | B29: 0 | F29: 0 | G29: 0 | H29: 0 | J29: 0 | K29: 0
A30: 24 | B30: 0 | F30: 0 | G30: 0 | H30: 0 | J30: 0 | K30: 0
A31: 25 | B31: 0 | F31: 0 | G31: 0 | H31: 0 | J31: 0 | K31: 0
A32: 26 | B32: 0 | F32: 0 | G32: 0 | H32: 0 | J32: 0 | K32: 0
A33: 27 | B33: 0 | F33: 0 | G33: 0 | H33: 0 | J33: 0 | K33: 0
A34: 28 | B34: 0 | F34: 0 | G34: 0 | H34: 0 | J34: 0 | K34: 0
A35: 29 | B35: 0 | F35: 0 | G35: 0 | H35: =E35*F35*G35 -> 0 | J35: =I35*F35*G35 -> 0 | K35: =H35-J35 -> 0
A36: 30 | B36: 0 | F36: 0 | G36: 0 | H36: 0 | J36: 0 | K36: 0
A37: 31 | B37: 0 | F37: 0 | G37: 0 | H37: 0 | J37: 0 | K37: 0
A38: 32 | B38: 0 | F38: 0 | G38: 0 | H38: 0 | J38: 0 | K38: 0
A39: 33 | B39: 0 | F39: 0 | G39: 0 | H39: 0 | J39: 0 | K39: 0
A40: 34 | B40: 0 | F40: 0 | G40: 0 | H40: 0 | J40: 0 | K40: 0
A41: 35 | B41: 0 | F41: 0 | G41: 0 | H41: 0 | J41: 0 | K41: 0
A42: 36 | B42: 0 | F42: 0 | G42: 0 | H42: 0 | J42: 0 | K42: 0
A43: 37 | B43: 0 | F43: 0 | G43: 0 | H43: 0 | J43: 0 | K43: 0
A44: 38 | B44: 0 | F44: 0 | G44: 0 | H44: 0 | J44: 0 | K44: 0
A45: 39 | B45: 0 | F45: 0 | G45: 0 | H45: 0 | J45: 0 | K45: 0
A46: 40 | B46: 0 | F46: 0 | G46: 0 | H46: 0 | J46: 0 | K46: 0
A47: 41 | B47: 0 | H47: 0 | J47: 0 | K47: 0
A48: 42 | B48: 0 | H48: 0 | J48: 0 | K48: 0
A49: 43 | B49: 0 | H49: 0 | J49: 0 | K49: 0
A50: 44 | B50: 0 | H50: =E50*F50*G50 -> 0 | J50: =I50*F50*G50 -> 0 | K50: =H50-J50 -> 0
A51: 45 | B51: 0 | H51: 0 | J51: 0 | K51: 0
A52: 46 | B52: 0 | H52: 0 | J52: 0 | K52: 0
A53: 47 | B53: 0 | H53: 0 | J53: 0 | K53: 0
A54: 48 | B54: 0 | H54: 0 | J54: 0 | K54: 0
A55: 49 | B55: 0 | H55: =E55*F55*G55 -> 0 | J55: =I55*F55*G55 -> 0 | K55: =H55-J55 -> 0
A56: 50 | B56: 0 | H56: 0 | J56: 0 | K56: 0
A57: Razem | E57: x | F57: x | G57: x | H57: =SUM(H7:H56) -> 0 | I57: x | J57: =SUM(J7:J56) -> 0 | K57: =SUM(K7:K56) -> 0 | L57: =SUM(L7:L56) -> 0 | M57: =SUM(M7:M56) -> 0
A58: * Np. w przypadku "Prosiąt od 1 maciory" należy wpisać liczbę macior, natomiast dla pozycji "Miód pszczeli" należy wpisać liczbę rodziń pszczelich.
C59: Czytelne podpisy członków komisji powołanych przez Wojewodę
A60: 1. | C60: ……………………………………………….…………………………………… | F60: 6. | G60: ……………………………………………….……………………………………
A61: 2. | C61: ……………………………………………….…………………………………… | F61: 7. | G61: ……………………………………………….……………………………………
A62: 3. | C62: ……………………………………………….…………………………………… | F62: 8. | G62: ……………………………………………….……………………………………
A63: 4. | C63: ……………………………………………….…………………………………… | F63: 9. | G63: ……………………………………………….……………………………………
A64: 5. | C64: ……………………………………………….…………………………………… | F64: 10. | G64: ……………………………………………….……………………………………
K65: …………………………………..……………..……….….
L66: (data i czytelny podpis rolnika)

Sheet Prod. ryb
A1: Załącznik nr 3 Szkody w hodowli ryb | K1: DLA REGIONU FADN | M1: =Protokół!V1 -> A
A2: Imię i nazwisko producenta rolnego | D2: =Protokół!G8 -> ……………………………………… ………………………...……………
A4: L.p | B4: Nazwa zbiornika lub nr zgodny z operatem wodno-prawnym | C4: Nr działki ewidencyjnej | D4: Powierzchnia stawów | E4: Hodowlane gatunki ryb | F4: Średnia roczna produkcja ryb ze stawu /kg/ | G4: Średnia cena ryb /zł/kg/ | H4: Średnia roczna wartość produkcji ryb /zł/ | I4: Produkcja ryb w roku wystąpienia szkód (z uwzględnieniem spadku produkcji spowodowanej padnięciem ryb w wyniku wystąpienia niekorzystnego zjawiska atmosferycznego) | K4: Kwota obniżenia dochodu w wyniku szkód w /zł/ | L4: % średniej rocznej produkcji | M4: Koszty nieponiesione w związku z wystąpieniem szkód | N4: Koszty poniesione w związku z wystąpieniem szkód
I5: Wielkość produkcji /kg/ | J5: Wartość produkcji /zł/
A6: 1 | B6: 2 | C6: 3 | D6: 4 | E6: 5 | F6: 6 | G6: 7 | H6: 8=6x7 | I6: 9 | J6: 10=7x9 | K6: 11=8-10 | L6: 12=(11/8)*100 | M6: 13 | N6: 14
A7: 1 | H7: =F7*G7 -> 0 | J7: =G7*I7 -> 0 | K7: =H7-J7 -> 0 | L7: =IFERROR((K7/H7)*100,0) -> 0
A8: 2 | H8: =F8*G8 -> 0 | J8: =G8*I8 -> 0 | K8: =H8-J8 -> 0 | L8: =IFERROR((K8/H8)*100,0) -> 0
A9: 3 | H9: =F9*G9 -> 0 | J9: =G9*I9 -> 0 | K9: =H9-J9 -> 0 | L9: 0
A10: 4 | H10: =F10*G10 -> 0 | J10: =G10*I10 -> 0 | K10: =H10-J10 -> 0 | L10: 0
A11: 5 | H11: =F11*G11 -> 0 | J11: =G11*I11 -> 0 | K11: =H11-J11 -> 0 | L11: 0
A12: 6 | H12: =F12*G12 -> 0 | J12: =G12*I12 -> 0 | K12: =H12-J12 -> 0 | L12: 0
A13: 7 | H13: 0 | J13: 0 | K13: 0 | L13: 0
A14: 8 | H14: 0 | J14: 0 | K14: 0 | L14: 0
A15: 9 | H15: 0 | J15: 0 | K15: 0 | L15: 0
A16: 10 | H16: 0 | J16: 0 | K16: 0 | L16: 0
A17: 11 | H17: 0 | J17: 0 | K17: 0 | L17: 0
A18: 12 | H18: 0 | J18: 0 | K18: 0 | L18: 0
A19: 13 | H19: =F19*G19 -> 0 | J19: =G19*I19 -> 0 | K19: 0 | L19: 0
A20: Razem | C20: x | D20: =SUM(D7:D19) -> 0 | E20: x | F20: x | G20: x | H20: =SUM(H7:H19) -> 0 | I20: x | J20: x | K20: =SUM(K7:K19) -> 0 | L20: 0 | M20: =SUM(M7:M19) -> 0 | N20: =SUM(N7:N19) -> 0
B22: Czytelne podpisy członków komisji powołanych przez Wojewodę
A23: 1. | B23: ……………………………………………………………………. | F23: 6. | G23: …………………….……….…………………………………….
A24: 2. | B24: ……………………………………………………………………. | F24: 7. | G24: …………………………………………………………………….
A25: 3. | B25: ……………………………………………………………………. | F25: 8. | G25: …………………………………………………………………….
A26: 4. | B26: ……………………………………………………………………. | F26: 9. | G26: …………………………………………………………………….
A27: 5. | B27: ……………………………………………………………………. | F27: 10. | G27: …………………………………………………………………….
K28: …………………………………..……………..……….….
K29: (data i czytelny podpis rolnika)

Sheet Środki trwałe
A1: Załącznik 4a Szkody w środkach trwałych innych niż uprawy trwałe | E1: DLA REGIONU FADN | F1: =Protokół!V1 -> A
B2: Imię i nazwisko producenta rolnego | C2: =Protokół!G8 -> ……………………………………… ………………………...……………
A4: L.p. | B4: Rodzaj zwierząt gospodarskich stada podstawowego - opis szkody | C4: Liczba zwierząt w szt | D4: Numer identyfikacyjny zwierzęcia lub numer stada (dotyczy zwierząt objętych systemem IRZ) | E4: Wysokość szkód w zł | F4: Uwagi
A5: 1 | B5: 2 | C5: 3 | D5: 4 | E5: 5 | F5: 6
A6: 1
A7: 2
A8: 3
A9: 4
A10: 5
A11: 6
A12: 7
A13: 8
A14: 9
A15: 10
A16: Razem | C16: x | D16: x | E16: =ROUND(SUM(E6:E15),2) -> 0 | F16: x
A18: L.p. | B18: Rodzaj maszyn i narzędzi służących do produkcji rolnej - opis szkody | E18: Wysokość szkód w zł | F18: Uwagi
A19: 1 | B19: 2 | E19: 3 | F19: 4
A20: 1
A21: 2
A22: 3
A23: 4
A24: 5
A25: Razem | E25: =ROUND(SUM(E20:E24),2) -> 0 | F25: x
A27: L.p. | B27: Rodzaj budynków i budowli służących do produkcji rolnej - opis szkody | E27: Wysokość szkód w zł | F27: Uwagi
A28: 1 | B28: 2 | E28: 3 | F28: 4
A29: 1
A30: 2
A31: 3
A32: 4
A33: 5
A34: Razem | E34: =ROUND(SUM(E29:E33),2) -> 0 | F34: x
A36: Czytelne podpisy członków komisji powołanych przez Wojewodę
A37: 1. | B37: ………………………………...……… | C37: 6. | D37: ………………………..…………………
A38: 2. | B38: ………………………………...……… | C38: 7. | D38: ………………………..…………………
A39: 3. | B39: ………………………………...……… | C39: 8. | D39: ………………………..…………………
A40: 4. | B40: ………………………………...……… | C40: 9. | D40: ………………………..…………………
A41: 5. | B41: ………………………………...……… | C41: 10. | D41: ………………………..…………………
D42: ……………………….……………………...…………….
D43: (data i czytelny podpis rolnika)

Sheet Uprawy trwałe
A1: Załącznik nr 4b Szkody w uprawach trwałych | I1: DLA REGIONU FADN | K1: =Protokół!V1 -> A
A2: Imię i nazwisko producenta rolnego | D2: =Protokół!G8 -> ……………………………………… ………………………...……………
A4: L.p. | B4: Nr działki ewidencyjnej1) | C4: Rodzaj środka trwałego - drzewa i krzewy sadownicze. Metoda wyceny – katalogi, cenniki, data ich wydania. Określanie wartości plantacji kultur wieloletnich. Krzysztof Zmarlicki. Polska Federacja Stowarzyszeń Rzeczoznawców Majątkowych. Warszawa 2011 | E4: Mierniki rzeczowe – jednostka miary, wartość jednostkowa | G4: Wartość bieżąca roślin (Wb) | H4: Punktacja cech określających wartość bieżącą roślin | J4: Wskaźnik oceny bonitacyjnej wartości bieżącej roślin (Wbwb) Wbwb=(stanowisko+stan zdrowotny)/2 | K4: Wartość roślin sadowniczych (Wrs)
H5: Stanowisko, warunki siedliskowe i glebowe | I5: Wskaźnik oceny stanu zdrowotnego | K5: Wrs = Wb * Wbwb
B6: 1 | C6: 2 | E6: 3 | F6: 4 | G6: 5=3*4 | H6: 6 | I6: 7 | J6: 8=(6+7)/2 | K6: 9=5*8
C7: gatunek, odmiana, wiek, podkładka, rozstawa | D7: powierzchnia uszkodzona (ha) | E7: szt., m2 | F7: jednostkowa wartość bieżąca (zł/szt), (zł/m2) | G7: zł | H7: - | I7: - | J7: - | K7: zł
A8: 1 | G8: =E8*F8 -> 0 | J8: =(H8+I8)/2 -> 0 | K8: =G8*J8 -> 0
A9: 2 | G9: =E9*F9 -> 0 | J9: =(H9+I9)/2 -> 0 | K9: 0
A10: 3 | G10: 0 | J10: 0 | K10: 0
A11: 4 | G11: 0 | J11: 0 | K11: 0
A12: 5 | G12: 0 | J12: 0 | K12: 0
A13: 6 | G13: 0 | J13: 0 | K13: 0
A14: 7 | G14: 0 | J14: 0 | K14: 0
A15: 8 | G15: 0 | J15: 0 | K15: 0
A16: 9 | G16: 0 | J16: 0 | K16: 0
A17: 10 | G17: 0 | J17: 0 | K17: 0
A18: 11 | G18: 0 | J18: 0 | K18: 0
A19: 12 | G19: 0 | J19: 0 | K19: 0
A20: 13 | G20: 0 | J20: 0 | K20: 0
A21: 14 | G21: 0 | J21: 0 | K21: 0
A22: 15 | G22: 0 | J22: 0 | K22: 0
A23: Razem | D23: =SUM(D8:D22) -> 0 | E23: x | F23: x | G23: =SUM(G8:G22) -> 0 | H23: x | I23: x | J23: x | K23: =SUM(K8:K22) -> 0
B25: Czytelne podpisy członków komisji powołanych przez Wojewodę
A26: 1. | B26: …………………………………………………………………………. | D26: 6. | E26: …………..………………………………………………………….
A27: 2. | B27: …………………………………………………………………………. | D27: 7. | E27: …………..………………………………………………………….
A28: 3. | B28: …………………………………………………………………………. | D28: 8. | E28: …………..………………………………………………………….
A29: 4. | B29: …………………………………………………………………………. | D29: 9. | E29: …………..………………………………………………………….
A30: 5. | B30: …………………………………………………………………………. | D30: 10. | E30: …………..………………………………………………………….
I31: …………………………………..……………..……….….
J32: (data i czytelny podpis rolnika)

Sheet Regiony FADN
A2: Województwa wg. regionów FADN
A3: Region FADN
A4: A | B4: B | C4: C | D4: D
A5: lubuskie | B5: dolnośląskie | C5: lubelskie | D5: małopolskie
A6: pomorskie | B6: kujawsko-pomorskie | C6: łódzkie | D6: podkarpackie
A7: warmińsko-mazurskie | B7: opolskie | C7: mazowieckie | D7: śląskie
A8: zachodniopomorskie | B8: wielkopolskie | C8: podlaskie | D8: świętokrzyskie

Sheet Dane średnie (hidden)
A2: INFO | B2: SYM | C2: NAZWA | D2: JM | E2: FADN_REG | F2: LM_P | G2: LM_S | I2: SYM2 | J2: NAZWA2 | K2: ZIELONE
A3: =E3&C3 -> AZboża na ziarno | B3: 61-1 | C3: Zboża na ziarno | D3: dt | E3: A | F3: 55.4883 | G3: 92.0572 | I3: 61-1 | J3: Zboża na ziarno | K3: 0
A4: =E4&C4 -> BZboża na ziarno | B4: 61-1 | C4: Zboża na ziarno | D4: dt | E4: B | F4: 60.7934 | G4: 88.2701 | I4: 61-12 | J4: Pszenica zwyczajna ogółem na ziarno | K4: 0
A5: CZboża na ziarno | B5: 61-1 | C5: Zboża na ziarno | D5: dt | E5: C | F5: 51.5674 | G5: 87.8967 | I5: 61-12-10 | J5: Pszenica zwyczajna jara na ziarno | K5: 0
A6: DZboża na ziarno | B6: 61-1 | C6: Zboża na ziarno | D6: dt | E6: D | F6: 59.8296 | G6: 88.4694 | I6: 61-12-20 | J6: Pszenica zwyczajna ozima na ziarno | K6: 0
A7: APszenica zwyczajna ogółem na ziarno | B7: 61-12 | C7: Pszenica zwyczajna ogółem na ziarno | D7: dt | E7: A | F7: 61.0531 | G7: 102.6749 | I7: 61-13 | J7: Żyto ogółem na ziarno | K7: 0
A8: BPszenica zwyczajna ogółem na ziarno | B8: 61-12 | C8: Pszenica zwyczajna ogółem na ziarno | D8: dt | E8: B | F8: 62.9895 | G8: 101.1388 | I8: 61-13-10 | J8: Żyto jare na ziarno | K8: 0
A9: CPszenica zwyczajna ogółem na ziarno | B9: 61-12 | C9: Pszenica zwyczajna ogółem na ziarno | D9: dt | E9: C | F9: 57.731 | G9: 100.041 | I9: 61-13-20 | J9: Żyto ozime na ziarno | K9: 0
A10: DPszenica zwyczajna ogółem na ziarno | B10: 61-12 | C10: Pszenica zwyczajna ogółem na ziarno | D10: dt | E10: D | F10: 59.269 | G10: 100.7725 | I10: 61-14 | J10: Jęczmień ogółem na ziarno | K10: 0
A11: APszenica zwyczajna jara na ziarno | B11: 61-12-10 | C11: Pszenica zwyczajna jara na ziarno | D11: dt | E11: A | F11: 50.4158 | G11: 99.6602 | I11: 61-14-10 | J11: Jęczmień jary na ziarno | K11: 0
A12: BPszenica zwyczajna jara na ziarno | B12: 61-12-10 | C12: Pszenica zwyczajna jara na ziarno | D12: dt | E12: B | F12: 52.8635 | G12: 99.6896 | I12: 61-14-20 | J12: Jęczmień ozimy na ziarno | K12: 0
A13: CPszenica zwyczajna jara na ziarno | B13: 61-12-10 | C13: Pszenica zwyczajna jara na ziarno | D13: dt | E13: C | F13: 49.9965 | G13: 98.18 | I13: 61-15-00 | J13: Owies na ziarno | K13: 0
A14: DPszenica zwyczajna jara na ziarno | B14: 61-12-10 | C14: Pszenica zwyczajna jara na ziarno | D14: dt | E14: D | F14: 50.0309 | G14: 99.063 | I14: 61-16 | J14: Pszenżyto ogółem na ziarno | K14: 0
A15: APszenica zwyczajna ozima na ziarno | B15: 61-12-20 | C15: Pszenica zwyczajna ozima na ziarno | D15: dt | E15: A | F15: 62.7849 | G15: 103.1371 | I15: 61-16-10 | J15: Pszenżyto jare na ziarno | K15: 0
A16: BPszenica zwyczajna ozima na ziarno | B16: 61-12-20 | C16: Pszenica zwyczajna ozima na ziarno | D16: dt | E16: B | F16: 63.887 | G16: 101.4753 | I16: 61-16-20 | J16: Pszenżyto ozime na ziarno | K16: 0
A17: CPszenica zwyczajna ozima na ziarno | B17: 61-12-20 | C17: Pszenica zwyczajna ozima na ziarno | D17: dt | E17: C | F17: 59.2778 | G17: 100.5294 | I17: 61-17 | J17: Mieszanki zbożowe na ziarno | K17: 0
A18: DPszenica zwyczajna ozima na ziarno | B18: 61-12-20 | C18: Pszenica zwyczajna ozima na ziarno | D18: dt | E18: D | F18: 60.3785 | G18: 100.959 | I18: 61-17-10 | J18: Mieszanki zbożowe jare na ziarno | K18: 0
A19: AŻyto ogółem na ziarno | B19: 61-13 | C19: Żyto ogółem na ziarno | D19: dt | E19: A | F19: 41.6233 | G19: 77.2224 | I19: 61-17-20 | J19: Mieszanki zbożowe ozime na ziarno | K19: 0
A20: BŻyto ogółem na ziarno | B20: 61-13 | C20: Żyto ogółem na ziarno | D20: dt | E20: B | F20: 41.5127 | G20: 76.6251 | I20: 61-18-00 | J20: Kukurydza (sucha i wilgotna) na ziarno | K20: 1
A21: CŻyto ogółem na ziarno | B21: 61-13 | C21: Żyto ogółem na ziarno | D21: dt | E21: C | F21: 36.4152 | G21: 76.5289 | I21: 61-19 | J21: Pozostałe zboża na ziarno | K21: 0
A22: DŻyto ogółem na ziarno | B22: 61-13 | C22: Żyto ogółem na ziarno | D22: dt | E22: D | F22: 38.0627 | G22: 77.5587 | I22: 61-19-10 | J22: Gryka na ziarno | K22: 0
A23: AŻyto jare na ziarno | B23: 61-13-10 | C23: Żyto jare na ziarno | D23: dt | E23: A | F23: 41.6788 | G23: 68.2571 | I23: 61-19-20 | J23: Proso na ziarno | K23: 1
A24: BŻyto jare na ziarno | B24: 61-13-10 | C24: Żyto jare na ziarno | D24: dt | E24: B | F24: 39.9605 | G24: 74.6919 | I24: 61-2 | J24: Strączkowe na nasiona suche | K24: 0
A25: CŻyto jare na ziarno | B25: 61-13-10 | C25: Żyto jare na ziarno | D25: dt | E25: C | F25: 35.7778 | G25: 78.1281 | I25: 61-21 | J25: Strączkowe jadalne na nasiona suche | K25: 0
A26: DŻyto jare na ziarno | B26: 61-13-10 | C26: Żyto jare na ziarno | D26: dt | E26: D | F26: 39.2903 | G26: 78.3566 | I26: 61-21-10 | J26: Groch konsumpcyjny na nasiona suche | K26: 0
A27: AŻyto ozime na ziarno | B27: 61-13-20 | C27: Żyto ozime na ziarno | D27: dt | E27: A | F27: 41.5292 | G27: 78.1624 | I27: 61-21-20 | J27: Fasola na nasiona suche | K27: 0
A28: BŻyto ozime na ziarno | B28: 61-13-20 | C28: Żyto ozime na ziarno | D28: dt | E28: B | F28: 41.6041 | G28: 76.8566 | I28: 61-21-30 | J28: Bób na nasiona suche | K28: 0
A29: CŻyto ozime na ziarno | B29: 61-13-20 | C29: Żyto ozime na ziarno | D29: dt | E29: C | F29: 36.3196 | G29: 76.3504 | I29: 61-21-40 | J29: Soczewica na nasiona suche | K29: 0
A30: DŻyto ozime na ziarno | B30: 61-13-20 | C30: Żyto ozime na ziarno | D30: dt | E30: D | F30: 37.9527 | G30: 77.6775 | I30: 61-21-50 | J30: Soja na nasiona suche | K30: 0
A31: AJęczmień ogółem na ziarno | B31: 61-14 | C31: Jęczmień ogółem na ziarno | D31: dt | E31: A | F31: 50.2625 | G31: 87.3332 | I31: 61-22 | J31: Strączkowe pastewne na nasiona suche | K31: 1
A32: BJęczmień ogółem na ziarno | B32: 61-14 | C32: Jęczmień ogółem na ziarno | D32: dt | E32: B | F32: 53.5275 | G32: 86.5557 | I32: 61-22-10 | J32: Groch pastewny (peluszka) na nasiona suche | K32: 1
A33: CJęczmień ogółem na ziarno | B33: 61-14 | C33: Jęczmień ogółem na ziarno | D33: dt | E33: C | F33: 47.424 | G33: 88.7754 | I33: 61-22-20 | J33: Bobik na nasiona suche | K33: 0
A34: DJęczmień ogółem na ziarno | B34: 61-14 | C34: Jęczmień ogółem na ziarno | D34: dt | E34: D | F34: 49.5031 | G34: 87.8539 | I34: 61-22-30 | J34: Łubin słodki na nasiona suche | K34: 0
A35: AJęczmień jary na ziarno | B35: 61-14-10 | C35: Jęczmień jary na ziarno | D35: dt | E35: A | F35: 43.9597 | G35: 85.4914 | I35: 61-22-4 | J35: Wyka ogółem na nasiona suche | K35: 0
A36: BJęczmień jary na ziarno | B36: 61-14-10 | C36: Jęczmień jary na ziarno | D36: dt | E36: B | F36: 47.7428 | G36: 89.1893 | I36: 61-22-41 | J36: Wyka jara na nasiona suche | K36: 0
A37: CJęczmień jary na ziarno | B37: 61-14-10 | C37: Jęczmień jary na ziarno | D37: dt | E37: C | F37: 44.5215 | G37: 90.194 | I37: 61-22-50 | J37: Seradela na nasiona suche | K37: 0
A38: DJęczmień jary na ziarno | B38: 61-14-10 | C38: Jęczmień jary na ziarno | D38: dt | E38: D | F38: 46.6132 | G38: 93.2203 | I38: 61-22-90 | J38: Pozostałe strączkowe pastewne na nasiona suche | K38: 1
A39: AJęczmień ozimy na ziarno | B39: 61-14-20 | C39: Jęczmień ozimy na ziarno | D39: dt | E39: A | F39: 58.2957 | G39: 88.0104 | I39: 61-23 | J39: Mieszanki strączkowych z innymi roślinami ogółem na nasiona suche | K39: 1
A40: BJęczmień ozimy na ziarno | B40: 61-14-20 | C40: Jęczmień ozimy na ziarno | D40: dt | E40: B | F40: 58.607 | G40: 84.2218 | I40: 61-23-10 | J40: Mieszanki strączkowych z innymi roślinami jare na nasiona suche | K40: 1
A41: CJęczmień ozimy na ziarno | B41: 61-14-20 | C41: Jęczmień ozimy na ziarno | D41: dt | E41: C | F41: 52.6324 | G41: 86.1433 | I41: 61-23-20 | J41: Mieszanki strączkowych z innymi roślinami ozime na nasiona suche | K41: 0
A42: DJęczmień ozimy na ziarno | B42: 61-14-20 | C42: Jęczmień ozimy na ziarno | D42: dt | E42: D | F42: 53.1391 | G42: 81.1664 | I42: 61-3 | J42: Rośliny przemysłowe | K42: 0
A43: AOwies na ziarno | B43: 61-15-00 | C43: Owies na ziarno | D43: dt | E43: A | F43: 34.1802 | G43: 81.8198 | I43: 61-31-00 | J43: Buraki cukrowe na korzeń | K43: 0
A44: BOwies na ziarno | B44: 61-15-00 | C44: Owies na ziarno | D44: dt | E44: B | F44: 36.1933 | G44: 80.1687 | I44: 61-32-00 | J44: Cykoria przemysłowa na korzeń | K44: 0
A45: COwies na ziarno | B45: 61-15-00 | C45: Owies na ziarno | D45: dt | E45: C | F45: 34.6816 | G45: 80.0565 | I45: 61-33 | J45: Rośliny oleiste | K45: 0
A46: DOwies na ziarno | B46: 61-15-00 | C46: Owies na ziarno | D46: dt | E46: D | F46: 37.2199 | G46: 78.8745 | I46: 61-33-1 | J46: Rzepak i rzepik ogółem oleisty | K46: 0
A47: APszenżyto ogółem na ziarno | B47: 61-16 | C47: Pszenżyto ogółem na ziarno | D47: dt | E47: A | F47: 49.4298 | G47: 86.0828 | I47: 61-33-11 | J47: Rzepak i rzepik jary oleisty | K47: 0
A48: BPszenżyto ogółem na ziarno | B48: 61-16 | C48: Pszenżyto ogółem na ziarno | D48: dt | E48: B | F48: 52.5803 | G48: 86.4237 | I48: 61-33-12 | J48: Rzepak i rzepik ozimy oleisty | K48: 0
A49: CPszenżyto ogółem na ziarno | B49: 61-16 | C49: Pszenżyto ogółem na ziarno | D49: dt | E49: C | F49: 45.9065 | G49: 86.4323 | I49: 61-33-20 | J49: Słonecznik oleisty | K49: 0
A50: DPszenżyto ogółem na ziarno | B50: 61-16 | C50: Pszenżyto ogółem na ziarno | D50: dt | E50: D | F50: 47.9176 | G50: 84.9064 | I50: 61-33-30 | J50: Len i lnianka oleiste | K50: 0
A51: APszenżyto jare na ziarno | B51: 61-16-10 | C51: Pszenżyto jare na ziarno | D51: dt | E51: A | F51: 43.6439 | G51: 80.2044 | I51: 61-33-90 | J51: Pozostałe rośliny oleiste | K51: 0
A52: BPszenżyto jare na ziarno | B52: 61-16-10 | C52: Pszenżyto jare na ziarno | D52: dt | E52: B | F52: 47.7877 | G52: 87.8754 | I52: 61-34 | J52: Rośliny włókniste (uprawa lub słoma) | K52: 0
A53: CPszenżyto jare na ziarno | B53: 61-16-10 | C53: Pszenżyto jare na ziarno | D53: dt | E53: C | F53: 44.1922 | G53: 84.8634 | I53: 61-35 | J53: Rośliny przemysłowe specjalne | K53: 0
A54: DPszenżyto jare na ziarno | B54: 61-16-10 | C54: Pszenżyto jare na ziarno | D54: dt | E54: D | F54: 44.0861 | G54: 85.7705 | I54: 61-35-10 | J54: Tytoń na liście | K54: 0
A55: APszenżyto ozime na ziarno | B55: 61-16-20 | C55: Pszenżyto ozime na ziarno | D55: dt | E55: A | F55: 50.55 | G55: 86.7072 | I55: 61-35-20 | J55: Chmiel na szyszki | K55: 0
A56: BPszenżyto ozime na ziarno | B56: 61-16-20 | C56: Pszenżyto ozime na ziarno | D56: dt | E56: B | F56: 52.9559 | G56: 86.4504 | I56: 61-35-30 | J56: Rośliny zielarskie (lecznicze, przyprawowe, aromatyczne) | K56: 0
A57: CPszenżyto ozime na ziarno | B57: 61-16-20 | C57: Pszenżyto ozime na ziarno | D57: dt | E57: C | F57: 46.1262 | G57: 86.6996 | I57: 61-35-40 | J57: Wiklina | K57: 0
A58: DPszenżyto ozime na ziarno | B58: 61-16-20 | C58: Pszenżyto ozime na ziarno | D58: dt | E58: D | F58: 48.2801 | G58: 84.7641 | I58: 61-4 | J58: Ziemniaki | K58: 0
A59: AMieszanki zbożowe na ziarno | B59: 61-17 | C59: Mieszanki zbożowe na ziarno | D59: dt | E59: A | F59: 38.0427 | G59: 75.8998 | I59: 61-42-00 | J59: Ziemniaki jadalne | K59: 0
A60: BMieszanki zbożowe na ziarno | B60: 61-17 | C60: Mieszanki zbożowe na ziarno | D60: dt | E60: B | F60: 40.783 | G60: 79.5755 | I60: 61-43-00 | J60: Ziemniaki skrobiowe | K60: 0
A61: CMieszanki zbożowe na ziarno | B61: 61-17 | C61: Mieszanki zbożowe na ziarno | D61: dt | E61: C | F61: 38.6718 | G61: 82.2613 | I61: 61-49-00 | J61: Ziemniaki ogólnoużytkowe | K61: 0
A62: DMieszanki zbożowe na ziarno | B62: 61-17 | C62: Mieszanki zbożowe na ziarno | D62: dt | E62: D | F62: 41.5858 | G62: 84.6978 | I62: 61-5 | J62: Rośliny pastewne objętościowe na gruntach ornych | K62: 1
A63: AMieszanki zbożowe jare na ziarno | B63: 61-17-10 | C63: Mieszanki zbożowe jare na ziarno | D63: dt | E63: A | F63: 37.9752 | G63: 75.515 | I63: 61-51 | J63: Okopowe pastewne na pasze | K63: 1
A64: BMieszanki zbożowe jare na ziarno | B64: 61-17-10 | C64: Mieszanki zbożowe jare na ziarno | D64: dt | E64: B | F64: 40.1774 | G64: 78.9754 | I64: 61-51-10 | J64: Buraki pastewne na pasze | K64: 1
A65: CMieszanki zbożowe jare na ziarno | B65: 61-17-10 | C65: Mieszanki zbożowe jare na ziarno | D65: dt | E65: C | F65: 38.6377 | G65: 82.2905 | I65: 61-51-30 | J65: Marchew pastewna na pasze | K65: 1
A66: DMieszanki zbożowe jare na ziarno | B66: 61-17-10 | C66: Mieszanki zbożowe jare na ziarno | D66: dt | E66: D | F66: 41.3163 | G66: 84.6512 | I66: 61-51-60 | J66: Dynia pastewna na pasze | K66: 1
A67: AMieszanki zbożowe ozime na ziarno | B67: 61-17-20 | C67: Mieszanki zbożowe ozime na ziarno | D67: dt | E67: A | F67: 49.5694 | G67: 84.5852 | I67: 61-52-00 | J67: Kukurydza pastewna na zielonkę | K67: 1
A68: =E68&C68 -> BMieszanki zbożowe ozime na ziarno | B68: 61-17-20 | C68: Mieszanki zbożowe ozime na ziarno | D68: dt | E68: B | F68: 52.6793 | G68: 83.9664 | I68: 61-53-00 | J68: Zboża i mieszanki zbóż z innymi roślinami na zielonkę | K68: 1
A69: CMieszanki zbożowe ozime na ziarno | B69: 61-17-20 | C69: Mieszanki zbożowe ozime na ziarno | D69: dt | E69: C | F69: 37.289 | G69: 78.7461 | I69: 61-54-00 | J69: Trawy w uprawie polowej na zielonkę (UZ) | K69: 1
A70: DMieszanki zbożowe ozime na ziarno | B70: 61-17-20 | C70: Mieszanki zbożowe ozime na ziarno | D70: dt | E70: D | F70: 42.0416 | G70: 90.1365 | I70: 61-55-00 | J70: Strączkowe na zielonkę | K70: 1
A71: AKukurydza (sucha i wilgotna) na ziarno | B71: 61-18-00 | C71: Kukurydza (sucha i wilgotna) na ziarno | D71: dt | E71: A | F71: 88.0829 | G71: 65.9282 | I71: 61-56-00 | J71: Motylkowe drobnonasienne na zielonkę (UZ) | K71: 1
A72: BKukurydza (sucha i wilgotna) na ziarno | B72: 61-18-00 | C72: Kukurydza (sucha i wilgotna) na ziarno | D72: dt | E72: B | F72: 89.6686 | G72: 66.978 | I72: 61-57-00 | J72: Mieszanki motylkowych z trawami (UZ) | K72: 1
A73: CKukurydza (sucha i wilgotna) na ziarno | B73: 61-18-00 | C73: Kukurydza (sucha i wilgotna) na ziarno | D73: dt | E73: C | F73: 91.2334 | G73: 71.238 | I73: 61-59-00 | J73: Pozostałe polowe uprawy pastewne na zielonkę | K73: 1
A74: DKukurydza (sucha i wilgotna) na ziarno | B74: 61-18-00 | C74: Kukurydza (sucha i wilgotna) na ziarno | D74: dt | E74: D | F74: 101.0673 | G74: 73.2591 | I74: 61-6 | J74: Rośliny pastewne objętościowe z użytków zielonych (uprawa lub zielonka) (UZ) | K74: 1
A75: APozostałe zboża na ziarno | B75: 61-19 | C75: Pozostałe zboża na ziarno | D75: dt | E75: A | F75: 12.5265 | G75: 176.4498 | I75: 61-61-00 | J75: Rośliny pastewne objętościowe z łąk - zielonka (UZ) | K75: 1
A76: BPozostałe zboża na ziarno | B76: 61-19 | C76: Pozostałe zboża na ziarno | D76: dt | E76: B | F76: 13.5269 | G76: 199.1775 | I76: 61-62 | J76: Rośliny pastewne objętościowe z pastwisk (UZ) | K76: 1
A77: CPozostałe zboża na ziarno | B77: 61-19 | C77: Pozostałe zboża na ziarno | D77: dt | E77: C | F77: 13.674 | G77: 180.231 | I77: 61-62-10 | J77: Rośliny pastewne objętościowe z pastwisk pielęgnowanych (UZ) | K77: 1
A78: DPozostałe zboża na ziarno | B78: 61-19 | C78: Pozostałe zboża na ziarno | D78: dt | E78: D | F78: 20.2392 | G78: 133.0833 | I78: 61-62-20 | J78: Rośliny pastewne objętościowe z pastwisk niepielęgnowanych (UZ) | K78: 1
A79: AGryka na ziarno | B79: 61-19-10 | C79: Gryka na ziarno | D79: dt | E79: A | F79: 12.5412 | G79: 193.9915 | I79: 61-7 | J79: Warzywa | K79: 0
A80: BGryka na ziarno | B80: 61-19-10 | C80: Gryka na ziarno | D80: dt | E80: B | F80: 12.8408 | G80: 213.2823 | I80: 61-71 | J80: Warzywa w uprawie polowej | K80: 0
A81: CGryka na ziarno | B81: 61-19-10 | C81: Gryka na ziarno | D81: dt | E81: C | F81: 12.6787 | G81: 194.905 | I81: 61-71-1 | J81: Warzywa uprawiane dla owoców i kwiatów w uprawie polowej | K81: 0
A82: DGryka na ziarno | B82: 61-19-10 | C82: Gryka na ziarno | D82: dt | E82: D | F82: 12.2812 | G82: 192.787 | I82: 61-71-10 | J82: Pomidory w uprawie polowej | K82: 0
A83: AProso na ziarno | B83: 61-19-20 | C83: Proso na ziarno | D83: dt | E83: A | F83: 8.7353 | G83: 100.0437 | I83: 61-71-2 | J83: Warzywa liściaste i łodygowe w uprawie polowej | K83: 0
A84: BProso na ziarno | B84: 61-19-20 | C84: Proso na ziarno | D84: dt | E84: B | F84: 25.6916 | G84: 119.3198 | I84: 61-71-20 | J84: Ogórki w uprawie polowej | K84: 0
A85: CProso na ziarno | B85: 61-19-20 | C85: Proso na ziarno | D85: dt | E85: C | F85: 22.122 | G85: 120.6676 | I85: 61-71-3 | J85: Warzywa korzeniowe i bulwiaste w uprawie polowej | K85: 0
A86: DProso na ziarno | B86: 61-19-20 | C86: Proso na ziarno | D86: dt | E86: D | F86: 29.9962 | G86: 119.9898 | I86: 61-71-30 | J86: Kalafiory i brokuły w uprawie polowej | K86: 0
A87: AStrączkowe na nasiona suche | B87: 61-2 | C87: Strączkowe na nasiona suche | D87: dt | E87: A | F87: 20.7747 | G87: 126.4843 | I87: 61-71-4 | J87: Warzywa strączkowe do zbioru na zielono w uprawie polowej | K87: 0
A88: BStrączkowe na nasiona suche | B88: 61-2 | C88: Strączkowe na nasiona suche | D88: dt | E88: B | F88: 22.1059 | G88: 140.2009 | I88: 61-71-40 | J88: Inne warzywa uprawiane dla owoców i kwiatów w uprawie polowej | K88: 0
A89: CStrączkowe na nasiona suche | B89: 61-2 | C89: Strączkowe na nasiona suche | D89: dt | E89: C | F89: 20.063 | G89: 178.4406 | I89: 61-71-50 | J89: Kapusta w uprawie polowej | K89: 0
A90: DStrączkowe na nasiona suche | B90: 61-2 | C90: Strączkowe na nasiona suche | D90: dt | E90: D | F90: 24.9997 | G90: 167.5154 | I90: 61-71-60 | J90: Inne warzywa liściaste i łodygowe (bez kapusty) w uprawie polowej | K90: 0
A91: AStrączkowe jadalne na nasiona suche | B91: 61-21 | C91: Strączkowe jadalne na nasiona suche | D91: dt | E91: A | F91: 24.2114 | G91: 127.9908 | I91: 61-71-70 | J91: Cebula w uprawie polowej | K91: 0
A92: BStrączkowe jadalne na nasiona suche | B92: 61-21 | C92: Strączkowe jadalne na nasiona suche | D92: dt | E92: B | F92: 24.0682 | G92: 167.5928 | I92: 61-71-80 | J92: Inne warzywa korzeniowe i bulwiaste (bez cebuli) w uprawie polowej | K92: 0
A93: CStrączkowe jadalne na nasiona suche | B93: 61-21 | C93: Strączkowe jadalne na nasiona suche | D93: dt | E93: C | F93: 20.4958 | G93: 285.478 | I93: 61-71-90 | J93: Warzywa strączkowe do zbioru na zielono w uprawie polowej | K93: 0
A94: DStrączkowe jadalne na nasiona suche | B94: 61-21 | C94: Strączkowe jadalne na nasiona suche | D94: dt | E94: D | F94: 27.9694 | G94: 180.4743 | I94: 61-72 | J94: Warzywa pod osłonami wysokimi | K94: 0
A95: AGroch konsumpcyjny na nasiona suche | B95: 61-21-10 | C95: Groch konsumpcyjny na nasiona suche | D95: dt | E95: A | F95: 25.7531 | G95: 113.0599 | I95: 61-72-1 | J95: Warzywa uprawiane dla owoców i kwiatów w uprawie pod osłonami wysokimi | K95: 0
A96: BGroch konsumpcyjny na nasiona suche | B96: 61-21-10 | C96: Groch konsumpcyjny na nasiona suche | D96: dt | E96: B | F96: 23.9784 | G96: 127.2291 | I96: 61-72-10 | J96: Pomidory w uprawie pod osłonami wysokimi | K96: 0
A97: CGroch konsumpcyjny na nasiona suche | B97: 61-21-10 | C97: Groch konsumpcyjny na nasiona suche | D97: dt | E97: C | F97: 23.9945 | G97: 121.8499 | I97: 61-72-2 | J97: Warzywa liściaste i łodygowe w uprawie pod osłonami wysokimi | K97: 0
A98: DGroch konsumpcyjny na nasiona suche | B98: 61-21-10 | C98: Groch konsumpcyjny na nasiona suche | D98: dt | E98: D | F98: 27.3113 | G98: 126.8041 | I98: 61-72-20 | J98: Ogórki w uprawie pod osłonami wysokimi | K98: 0
A99: AFasola na nasiona suche | B99: 61-21-20 | C99: Fasola na nasiona suche | D99: dt | E99: A | F99: 17.7898 | G99: 530.2819 | I99: 61-72-3 | J99: Warzywa korzeniowe i bulwiaste w uprawie pod osłonami wysokimi | K99: 0
A100: BFasola na nasiona suche | B100: 61-21-20 | C100: Fasola na nasiona suche | D100: dt | E100: B | F100: 17.7898 | G100: 530.2819 | I100: 61-72-4 | J100: Warzywa strączkowe do zbioru na zielono w uprawie pod osłonami wysokimi | K100: 0
A101: CFasola na nasiona suche | B101: 61-21-20 | C101: Fasola na nasiona suche | D101: dt | E101: C | F101: 17.844 | G101: 516.623 | I101: 61-72-40 | J101: Inne warzywa uprawiane dla owoców i kwiatów w uprawie pod osłonami wysokimi | K101: 0
A102: DFasola na nasiona suche | B102: 61-21-20 | C102: Fasola na nasiona suche | D102: dt | E102: D | F102: 16.2323 | G102: 727.2927 | I102: 61-72-50 | J102: Kapusta w uprawie pod osłonami wysokimi | K102: 0
A103: ABób na nasiona suche | B103: 61-21-30 | C103: Bób na nasiona suche | D103: dt | E103: A | F103: 24.694 | G103: 604.5958 | I103: 61-72-60 | J103: Inne warzywa liściaste i łodygowe (bez kapusty) w uprawie pod osłonami wysokimi | K103: 0
A104: BBób na nasiona suche | B104: 61-21-30 | C104: Bób na nasiona suche | D104: dt | E104: B | F104: 18.4113 | G104: 342.6012 | I104: 61-72-80 | J104: Inne warzywa korzeniowe i bulwiaste (bez cebuli) w uprawie pod osłonami wysokimi | K104: 0
A105: CBób na nasiona suche | B105: 61-21-30 | C105: Bób na nasiona suche | D105: dt | E105: C | F105: 29.4765 | G105: 896.8297 | I105: 61-72-90 | J105: Warzywa strączkowe do zbioru na zielono w uprawie pod osłonami wysokimi | K105: 0
A106: DBób na nasiona suche | B106: 61-21-30 | C106: Bób na nasiona suche | D106: dt | E106: D | F106: 26.0415 | G106: 800.8461 | I106: 61-73 | J106: Warzywa w ogrodach towarowych (w płodozmianie z warzywami) | K106: 0
A107: ASoczewica na nasiona suche | B107: 61-21-40 | C107: Soczewica na nasiona suche | D107: dt | E107: A | F107: 7.9166 | G107: 279.9644 | I107: 61-8 | J107: Kwiaty i inne rośliny ozdobne | K107: 0
A108: BSoczewica na nasiona suche | B108: 61-21-40 | C108: Soczewica na nasiona suche | D108: dt | E108: B | F108: 8.8684 | G108: 268.9718 | I108: 61-81 | J108: Kwiaty i inne rośliny ozdobne w uprawie polowej | K108: 0
A109: CSoczewica na nasiona suche | B109: 61-21-40 | C109: Soczewica na nasiona suche | D109: dt | E109: C | F109: 7.6051 | G109: 353.3988 | I109: 61-81-10 | J109: Kwiaty cięte w uprawie polowej | K109: 0
A110: DSoczewica na nasiona suche | B110: 61-21-40 | C110: Soczewica na nasiona suche | D110: dt | E110: D | F110: 8.8684 | G110: 268.9718 | I110: 61-81-20 | J110: Kwiaty i inne rośliny ozdobne - całe rośliny w uprawie polowej | K110: 0
A111: ASoja na nasiona suche | B111: 61-21-50 | C111: Soja na nasiona suche | D111: dt | E111: A | F111: 24.141 | G111: 197.1614 | I111: 61-82 | J111: Kwiaty i inne rośliny ozdobne pod osłonami wysokimi | K111: 0
A112: BSoja na nasiona suche | B112: 61-21-50 | C112: Soja na nasiona suche | D112: dt | E112: B | F112: 25.4005 | G112: 187.7028 | I112: 61-82-10 | J112: Kwiaty cięte w uprawie pod osłonami wysokimi | K112: 0
A113: CSoja na nasiona suche | B113: 61-21-50 | C113: Soja na nasiona suche | D113: dt | E113: C | F113: 21.8218 | G113: 190.3098 | I113: 61-82-20 | J113: Kwiaty i inne rośliny ozdobne - całe rośliny w uprawie pod osłonami wysokimi | K113: 0
A114: DSoja na nasiona suche | B114: 61-21-50 | C114: Soja na nasiona suche | D114: dt | E114: D | F114: 28.3495 | G114: 181.2592 | I114: 61-9 | J114: Owoce | K114: 0
A115: AStrączkowe pastewne na nasiona suche | B115: 61-22 | C115: Strączkowe pastewne na nasiona suche | D115: dt | E115: A | F115: 18.5561 | G115: 127.5709 | I115: 61-91 | J115: Owoce w uprawie polowej | K115: 0
A116: BStrączkowe pastewne na nasiona suche | B116: 61-22 | C116: Strączkowe pastewne na nasiona suche | D116: dt | E116: B | F116: 18.0023 | G116: 134.312 | I116: 61-91-10 | J116: Truskawki w uprawie polowej | K116: 0
A117: CStrączkowe pastewne na nasiona suche | B117: 61-22 | C117: Strączkowe pastewne na nasiona suche | D117: dt | E117: C | F117: 17.7966 | G117: 138.0545 | I117: 61-92 | J117: Owoce w uprawie pod osłonami wysokimi | K117: 0
A118: DStrączkowe pastewne na nasiona suche | B118: 61-22 | C118: Strączkowe pastewne na nasiona suche | D118: dt | E118: D | F118: 19.9655 | G118: 130.889 | I118: 61-92-10 | J118: Truskawki w uprawie pod osłonami wysokimi | K118: 0
A119: AGroch pastewny (peluszka) na nasiona suche | B119: 61-22-10 | C119: Groch pastewny (peluszka) na nasiona suche | D119: dt | E119: A | F119: 22.4915 | G119: 129.5346 | I119: 61-93 | J119: Owoce z sadów | K119: 0
A120: BGroch pastewny (peluszka) na nasiona suche | B120: 61-22-10 | C120: Groch pastewny (peluszka) na nasiona suche | D120: dt | E120: B | F120: 23.4346 | G120: 126.4942 | I120: 61-93-1 | J120: Owoce miękiszowe - ziarnkowe | K120: 0
A121: CGroch pastewny (peluszka) na nasiona suche | B121: 61-22-10 | C121: Groch pastewny (peluszka) na nasiona suche | D121: dt | E121: C | F121: 23.3323 | G121: 123.5831 | I121: 61-93-11 | J121: Jabłka | K121: 0
A122: DGroch pastewny (peluszka) na nasiona suche | B122: 61-22-10 | C122: Groch pastewny (peluszka) na nasiona suche | D122: dt | E122: D | F122: 24.7 | G122: 120.2662 | I122: 61-93-12 | J122: Gruszki | K122: 0
A123: ABobik na nasiona suche | B123: 61-22-20 | C123: Bobik na nasiona suche | D123: dt | E123: A | F123: 33.3974 | G123: 122.39 | I123: 61-93-2 | J123: Owoce pestkowe | K123: 0
A124: BBobik na nasiona suche | B124: 61-22-20 | C124: Bobik na nasiona suche | D124: dt | E124: B | F124: 28.8148 | G124: 147.9939 | I124: 61-93-21 | J124: Śliwki | K124: 0
A125: CBobik na nasiona suche | B125: 61-22-20 | C125: Bobik na nasiona suche | D125: dt | E125: C | F125: 23.5927 | G125: 117.9264 | I125: 61-93-22 | J125: Wiśnie | K125: 0
A126: DBobik na nasiona suche | B126: 61-22-20 | C126: Bobik na nasiona suche | D126: dt | E126: D | F126: 28.297 | G126: 118.5616 | I126: 61-93-23 | J126: Czereśnie | K126: 0
A127: AŁubin słodki na nasiona suche | B127: 61-22-30 | C127: Łubin słodki na nasiona suche | D127: dt | E127: A | F127: 15.0285 | G127: 125.702 | I127: 61-93-24 | J127: Brzoskwinie | K127: 0
A128: BŁubin słodki na nasiona suche | B128: 61-22-30 | C128: Łubin słodki na nasiona suche | D128: dt | E128: B | F128: 14.8646 | G128: 135.591 | I128: 61-93-25 | J128: Morele | K128: 0
A129: CŁubin słodki na nasiona suche | B129: 61-22-30 | C129: Łubin słodki na nasiona suche | D129: dt | E129: C | F129: 15.8463 | G129: 140.0597 | I129: 61-93-3 | J129: Orzechy | K129: 0
A130: DŁubin słodki na nasiona suche | B130: 61-22-30 | C130: Łubin słodki na nasiona suche | D130: dt | E130: D | F130: 16.6435 | G130: 138.2635 | I130: 61-93-31 | J130: Orzechy włoskie | K130: 0
A131: AWyka ogółem na nasiona suche | B131: 61-22-4 | C131: Wyka ogółem na nasiona suche | D131: dt | E131: A | F131: 13.5272 | G131: 253.5995 | I131: 61-93-32 | J131: Orzechy laskowe | K131: 0
A132: =E132&C132 -> BWyka ogółem na nasiona suche | B132: 61-22-4 | C132: Wyka ogółem na nasiona suche | D132: dt | E132: B | F132: 14.9733 | G132: 223.67 | I132: 61-93-4 | J132: Owoce jagodowe | K132: 0
A133: CWyka ogółem na nasiona suche | B133: 61-22-4 | C133: Wyka ogółem na nasiona suche | D133: dt | E133: C | F133: 15.3086 | G133: 167.2614 | I133: 61-93-41 | J133: Agrest | K133: 0
A134: DWyka ogółem na nasiona suche | B134: 61-22-4 | C134: Wyka ogółem na nasiona suche | D134: dt | E134: D | F134: 16.6099 | G134: 192.9728 | I134: 61-93-42 | J134: Aronia | K134: 0
A135: AWyka jara na nasiona suche | B135: 61-22-41 | C135: Wyka jara na nasiona suche | D135: dt | E135: A | F135: 13.6225 | G135: 255.1962 | I135: 61-93-43 | J135: Porzeczki czarne | K135: 0
A136: BWyka jara na nasiona suche | B136: 61-22-41 | C136: Wyka jara na nasiona suche | D136: dt | E136: B | F136: 15.0481 | G136: 224.4137 | I136: 61-93-45 | J136: Porzeczki czerwone | K136: 0
A137: CWyka jara na nasiona suche | B137: 61-22-41 | C137: Wyka jara na nasiona suche | D137: dt | E137: C | F137: 15.3361 | G137: 167.2614 | I137: 61-93-46 | J137: Maliny ogrodowe | K137: 0
A138: DWyka jara na nasiona suche | B138: 61-22-41 | C138: Wyka jara na nasiona suche | D138: dt | E138: D | F138: 16.5903 | G138: 192.9728 | I138: 61-93-47 | J138: Jeżyny | K138: 0
A139: ASeradela na nasiona suche | B139: 61-22-50 | C139: Seradela na nasiona suche | D139: dt | E139: A | F139: 7.6504 | G139: 473.4247 | I139: 61-93-48 | J139: Borówki | K139: 0
A140: BSeradela na nasiona suche | B140: 61-22-50 | C140: Seradela na nasiona suche | D140: dt | E140: B | F140: 7.6608 | G140: 438.6804 | I140: 61-93-49 | J140: Pozostałe owoce jagodowe | K140: 0
A141: CSeradela na nasiona suche | B141: 61-22-50 | C141: Seradela na nasiona suche | D141: dt | E141: C | F141: 7.1215 | G141: 511.269 | I141: 61-93-50 | J141: Winogrona | K141: 0
A142: DSeradela na nasiona suche | B142: 61-22-50 | C142: Seradela na nasiona suche | D142: dt | E142: D | F142: 7.6504 | G142: 473.4247 | I142: 62-10-00 | J142: Plantacje nasienne traw | K142: 0
A143: APozostałe strączkowe pastewne na nasiona suche | B143: 61-22-90 | C143: Pozostałe strączkowe pastewne na nasiona suche | D143: dt | E143: A | F143: 16.7505 | G143: 106.2466 | I143: 62-20-00 | J143: Plantacje nasienne motylkowych drobnonasiennych | K143: 0
A144: BPozostałe strączkowe pastewne na nasiona suche | B144: 61-22-90 | C144: Pozostałe strączkowe pastewne na nasiona suche | D144: dt | E144: B | F144: 16.2707 | G144: 110.0525 | I144: 62-4 | J144: Uprawy nasienne i rozsadniki warzyw i kwiatów | K144: 0
A145: CPozostałe strączkowe pastewne na nasiona suche | B145: 61-22-90 | C145: Pozostałe strączkowe pastewne na nasiona suche | D145: dt | E145: C | F145: 14.7491 | G145: 150.4243 | I145: 62-41 | J145: Uprawy nasienne i rozsadniki warzyw i kwiatów w uprawie polowej | K145: 0
A146: DPozostałe strączkowe pastewne na nasiona suche | B146: 61-22-90 | C146: Pozostałe strączkowe pastewne na nasiona suche | D146: dt | E146: D | F146: 14.9869 | G146: 133.0332 | I146: 62-41-10 | J146: Uprawy nasienne i rozsadniki warzyw w uprawie polowej | K146: 0
A147: AMieszanki strączkowych z innymi roślinami ogółem na nasiona suche | B147: 61-23 | C147: Mieszanki strączkowych z innymi roślinami ogółem na nasiona suche | D147: dt | E147: A | F147: 33.8422 | G147: 93.2584 | I147: 62-42 | J147: Uprawy nasienne i rozsadniki warzyw i kwiatów pod osłonami wysokimi | K147: 0
A148: BMieszanki strączkowych z innymi roślinami ogółem na nasiona suche | B148: 61-23 | C148: Mieszanki strączkowych z innymi roślinami ogółem na nasiona suche | D148: dt | E148: B | F148: 40.6896 | G148: 83.5221 | I148: 62-42-10 | J148: Nasienniki i rozsadniki warzyw w uprawie pod osłonami wysokimi | K148: 0
A149: CMieszanki strączkowych z innymi roślinami ogółem na nasiona suche | B149: 61-23 | C149: Mieszanki strączkowych z innymi roślinami ogółem na nasiona suche | D149: dt | E149: C | F149: 35.607 | G149: 90.3563 | I149: 62-42-20 | J149: Nasienniki i rozsadniki kwiatów w uprawie pod osłonami wysokimi | K149: 0
A150: DMieszanki strączkowych z innymi roślinami ogółem na nasiona suche | B150: 61-23 | C150: Mieszanki strączkowych z innymi roślinami ogółem na nasiona suche | D150: dt | E150: D | F150: 37.8372 | G150: 95.2197 | I150: 62-5 | J150: Inne uprawy nasienne | K150: 0
A151: AMieszanki strączkowych z innymi roślinami jare na nasiona suche | B151: 61-23-10 | C151: Mieszanki strączkowych z innymi roślinami jare na nasiona suche | D151: dt | E151: A | F151: 33.788 | G151: 93.2584 | I151: 62-51-00 | J151: Inne uprawy nasienne i rozsadniki w uprawie polowej | K151: 0
A152: BMieszanki strączkowych z innymi roślinami jare na nasiona suche | B152: 61-23-10 | C152: Mieszanki strączkowych z innymi roślinami jare na nasiona suche | D152: dt | E152: B | F152: 40.5571 | G152: 83.4391 | I152: 62-90-00 | J152: Pozostałe plantacje nasienne | K152: 0
A153: CMieszanki strączkowych z innymi roślinami jare na nasiona suche | B153: 61-23-10 | C153: Mieszanki strączkowych z innymi roślinami jare na nasiona suche | D153: dt | E153: C | F153: 35.5011 | G153: 89.6306 | I153: 04210 | J153: Szkółki drzew i krzewów owocowych | K153: 0
A154: DMieszanki strączkowych z innymi roślinami jare na nasiona suche | B154: 61-23-10 | C154: Mieszanki strączkowych z innymi roślinami jare na nasiona suche | D154: dt | E154: D | F154: 37.8372 | G154: 95.2197 | I154: Byki | J154: Byki do opasu, wolce 2-letnie i starsze | K154: 1
A155: AMieszanki strączkowych z innymi roślinami ozime na nasiona suche | B155: 61-23-20 | C155: Mieszanki strączkowych z innymi roślinami ozime na nasiona suche | D155: dt | E155: A | F155: 47.8081 | G155: 89.7217 | I155: Jalowki | J155: Jałówki do opasu 2-letnie i starsze | K155: 1
A156: BMieszanki strączkowych z innymi roślinami ozime na nasiona suche | B156: 61-23-20 | C156: Mieszanki strączkowych z innymi roślinami ozime na nasiona suche | D156: dt | E156: B | F156: 47.8081 | G156: 89.7217 | I156: Byczki | J156: Byczki od 1 do 2 lat | K156: 1
A157: CMieszanki strączkowych z innymi roślinami ozime na nasiona suche | B157: 61-23-20 | C157: Mieszanki strączkowych z innymi roślinami ozime na nasiona suche | D157: dt | E157: C | F157: 47.8081 | G157: 89.7217 | I157: Jalowki12 | J157: Jałówki od 1 do 2 lat | K157: 1
A158: DMieszanki strączkowych z innymi roślinami ozime na nasiona suche | B158: 61-23-20 | C158: Mieszanki strączkowych z innymi roślinami ozime na nasiona suche | D158: dt | E158: D | F158: 47.8081 | G158: 89.7217 | I158: Cieleta612 | J158: Cielęta od 6 mies. do 1 roku | K158: 0
A159: ARośliny przemysłowe | B159: 61-3 | C159: Rośliny przemysłowe | D159: dt | E159: A | F159: 101.7831 | G159: 75.7871 | I159: Cieleta | J159: Cielęta do opasu poniżej 6 mies. | K159: 0
A160: BRośliny przemysłowe | B160: 61-3 | C160: Rośliny przemysłowe | D160: dt | E160: B | F160: 182.4421 | G160: 45.2108 | I160: Owce | J160: Owce 1 roczne i starsze | K160: 1
A161: CRośliny przemysłowe | B161: 61-3 | C161: Rośliny przemysłowe | D161: dt | E161: C | F161: 126.7775 | G161: 62.8562 | I161: Jagnieta | J161: Jagnięta | K161: 0
A162: DRośliny przemysłowe | B162: 61-3 | C162: Rośliny przemysłowe | D162: dt | E162: D | F162: 100.0775 | G162: 77.8105 | I162: Kozy | J162: Kozy 1 roczne i starsze | K162: 1
A163: ABuraki cukrowe na korzeń | B163: 61-31-00 | C163: Buraki cukrowe na korzeń | D163: dt | E163: A | F163: 629.152 | G163: 20.4333 | I163: Kozleta | J163: Koźlęta | K163: 0
A164: BBuraki cukrowe na korzeń | B164: 61-31-00 | C164: Buraki cukrowe na korzeń | D164: dt | E164: B | F164: 627.5968 | G164: 19.5084 | I164: Tuczniki | J164: Tuczniki o wadze 50 kg i więcej | K164: 1
A165: CBuraki cukrowe na korzeń | B165: 61-31-00 | C165: Buraki cukrowe na korzeń | D165: dt | E165: C | F165: 638.6764 | G165: 20.2596 | I165: Warchlaki | J165: Warchlaki do opasu o wadze od 20 do 50 kg | K165: 1
A166: DBuraki cukrowe na korzeń | B166: 61-31-00 | C166: Buraki cukrowe na korzeń | D166: dt | E166: D | F166: 642.991 | G166: 16.2034 | I166: Prosieta | J166: Prosięta od 1 maciory | K166: 0
A167: ACykoria przemysłowa na korzeń | B167: 61-32-00 | C167: Cykoria przemysłowa na korzeń | D167: dt | E167: A | F167: 324.3535 | G167: 43.2919 | I167: Brojlery | J167: Brojlery kurze 2 tyg. i starsze | K167: 0
A168: BCykoria przemysłowa na korzeń | B168: 61-32-00 | C168: Cykoria przemysłowa na korzeń | D168: dt | E168: B | F168: 324.3535 | G168: 43.2919 | I168: Gesi | J168: Gęsi młode | K168: 0
A169: CCykoria przemysłowa na korzeń | B169: 61-32-00 | C169: Cykoria przemysłowa na korzeń | D169: dt | E169: C | F169: 324.3535 | G169: 43.2919 | I169: Kaczki | J169: Kaczki młode | K169: 0
A170: DCykoria przemysłowa na korzeń | B170: 61-32-00 | C170: Cykoria przemysłowa na korzeń | D170: dt | E170: D | F170: 324.3535 | G170: 43.2919 | I170: Indyki | J170: Indyki młode | K170: 0
A171: ARośliny oleiste | B171: 61-33 | C171: Rośliny oleiste | D171: dt | E171: A | F171: 33.48 | G171: 211.1921 | I171: MlekoKr | J171: Mleko krowie | K171: 1
A172: BRośliny oleiste | B172: 61-33 | C172: Rośliny oleiste | D172: dt | E172: B | F172: 33.1388 | G172: 219.4747 | I172: MlekoKo | J172: Mleko kozie | K172: 1
A173: CRośliny oleiste | B173: 61-33 | C173: Rośliny oleiste | D173: dt | E173: C | F173: 33.0737 | G173: 211.9693 | I173: JajaWKu | J173: Jaja wylęgowe kurze | K173: 0
A174: DRośliny oleiste | B174: 61-33 | C174: Rośliny oleiste | D174: dt | E174: D | F174: 32.6346 | G174: 214.4302 | I174: JajaWPo | J174: Jaja wylęgowe pozostałe | K174: 0
A175: ARzepak i rzepik ogółem oleisty | B175: 61-33-1 | C175: Rzepak i rzepik ogółem oleisty | D175: dt | E175: A | F175: 34.4631 | G175: 210.473 | I175: JajaKKu | J175: Jaja konsumpcyjne kurze | K175: 0
A176: BRzepak i rzepik ogółem oleisty | B176: 61-33-1 | C176: Rzepak i rzepik ogółem oleisty | D176: dt | E176: B | F176: 33.877 | G176: 217.7106 | I176: JajaKPo | J176: Jaja konsumpcyjne pozostałe | K176: 0
A177: CRzepak i rzepik ogółem oleisty | B177: 61-33-1 | C177: Rzepak i rzepik ogółem oleisty | D177: dt | E177: C | F177: 34.5329 | G177: 210.0046 | I177: Welna | J177: Wełna surowa i przetworzona owcza | K177: 0
A178: DRzepak i rzepik ogółem oleisty | B178: 61-33-1 | C178: Rzepak i rzepik ogółem oleisty | D178: dt | E178: D | F178: 34.1386 | G178: 214.5489 | I178: Miod | J178: Miód pszczeli | K178: 0
A179: ARzepak i rzepik jary oleisty | B179: 61-33-11 | C179: Rzepak i rzepik jary oleisty | D179: dt | E179: A | F179: 29.744 | G179: 206.0246 | I179: PrPszcz | J179: Pozostałe produkty pszczelarskie | K179: 0
A180: BRzepak i rzepik jary oleisty | B180: 61-33-11 | C180: Rzepak i rzepik jary oleisty | D180: dt | E180: B | F180: 29.4137 | G180: 216.5657 | J180: Konie | K180: 0
A181: CRzepak i rzepik jary oleisty | B181: 61-33-11 | C181: Rzepak i rzepik jary oleisty | D181: dt | E181: C | F181: 33.1431 | G181: 201.0152
A182: DRzepak i rzepik jary oleisty | B182: 61-33-11 | C182: Rzepak i rzepik jary oleisty | D182: dt | E182: D | F182: 32.9789 | G182: 204.5757
A183: ARzepak i rzepik ozimy oleisty | B183: 61-33-12 | C183: Rzepak i rzepik ozimy oleisty | D183: dt | E183: A | F183: 34.8086 | G183: 210.8753
A184: BRzepak i rzepik ozimy oleisty | B184: 61-33-12 | C184: Rzepak i rzepik ozimy oleisty | D184: dt | E184: B | F184: 34.0319 | G184: 217.7125
A185: CRzepak i rzepik ozimy oleisty | B185: 61-33-12 | C185: Rzepak i rzepik ozimy oleisty | D185: dt | E185: C | F185: 34.6969 | G185: 210.4284
A186: DRzepak i rzepik ozimy oleisty | B186: 61-33-12 | C186: Rzepak i rzepik ozimy oleisty | D186: dt | E186: D | F186: 34.1307 | G186: 215.5657
A187: ASłonecznik oleisty | B187: 61-33-20 | C187: Słonecznik oleisty | D187: dt | E187: A | F187: 19.5615 | G187: 145.4424
A188: BSłonecznik oleisty | B188: 61-33-20 | C188: Słonecznik oleisty | D188: dt | E188: B | F188: 24.928 | G188: 162.8714
A189: CSłonecznik oleisty | B189: 61-33-20 | C189: Słonecznik oleisty | D189: dt | E189: C | F189: 24.0015 | G189: 176.5775
A190: DSłonecznik oleisty | B190: 61-33-20 | C190: Słonecznik oleisty | D190: dt | E190: D | F190: 22.1329 | G190: 175.5028
A191: ALen i lnianka oleiste | B191: 61-33-30 | C191: Len i lnianka oleiste | D191: dt | E191: A | F191: 10.6693 | G191: 222.1236
A192: BLen i lnianka oleiste | B192: 61-33-30 | C192: Len i lnianka oleiste | D192: dt | E192: B | F192: 10.5763 | G192: 320.1955
A193: CLen i lnianka oleiste | B193: 61-33-30 | C193: Len i lnianka oleiste | D193: dt | E193: C | F193: 11.5158 | G193: 241.0059
A194: DLen i lnianka oleiste | B194: 61-33-30 | C194: Len i lnianka oleiste | D194: dt | E194: D | F194: 21.4238 | G194: 191.9838
A195: APozostałe rośliny oleiste | B195: 61-33-90 | C195: Pozostałe rośliny oleiste | D195: dt | E195: A | F195: 17.5903 | G195: 188.5308
A196: =E196&C196 -> BPozostałe rośliny oleiste | B196: 61-33-90 | C196: Pozostałe rośliny oleiste | D196: dt | E196: B | F196: 12.5399 | G196: 297.1382
A197: CPozostałe rośliny oleiste | B197: 61-33-90 | C197: Pozostałe rośliny oleiste | D197: dt | E197: C | F197: 15.5888 | G197: 466.025
A198: DPozostałe rośliny oleiste | B198: 61-33-90 | C198: Pozostałe rośliny oleiste | D198: dt | E198: D | F198: 8.0868 | G198: 600.2224
A199: ARośliny włókniste (uprawa lub słoma) | B199: 61-34 | C199: Rośliny włókniste (uprawa lub słoma) | D199: dt | E199: A | F199: 48.74 | G199: 50.39
A200: BRośliny włókniste (uprawa lub słoma) | B200: 61-34 | C200: Rośliny włókniste (uprawa lub słoma) | D200: dt | E200: B | F200: 48.74 | G200: 50.39
A201: CRośliny włókniste (uprawa lub słoma) | B201: 61-34 | C201: Rośliny włókniste (uprawa lub słoma) | D201: dt | E201: C | F201: 48.74 | G201: 50.39 | J201: gradu
... 509 more rows

Sheet Koszty nieponiesione (hidden)
A2: Nazwa uprawy | B2: FADN_REG | C2: Koszty nieponiesione na 1 ha uprawy (wartość z 2022 podwyższona o 10%) | E2: Koszty nieponiesione na 1 ha uprawy (wartość z 2023 podwyższona o 10%)
A3: Zboża na ziarno | B3: A | C3: 534.3894537 | D3: =A3&B3 -> Zboża na ziarnoA | E3: =C3*1.1 -> 587.8283991
A4: Zboża na ziarno | B4: B | C4: 555.298185 | D4: =A4&B4 -> Zboża na ziarnoB | E4: =C4*1.1 -> 610.8280035
A5: Zboża na ziarno | B5: C | C5: 539.5502189 | D5: Zboża na ziarnoC | E5: 593.5052408
A6: Zboża na ziarno | B6: D | C6: 566.4862432 | D6: Zboża na ziarnoD | E6: 623.1348675
A7: Pszenica zwyczajna ogółem na ziarno | B7: A | C7: 551.6096233 | D7: Pszenica zwyczajna ogółem na ziarnoA | E7: 606.7705856
A8: Pszenica zwyczajna ogółem na ziarno | B8: B | C8: 569.0533587 | D8: Pszenica zwyczajna ogółem na ziarnoB | E8: 625.9586946
A9: Pszenica zwyczajna ogółem na ziarno | B9: C | C9: 550.7245911 | D9: Pszenica zwyczajna ogółem na ziarnoC | E9: 605.7970503
A10: Pszenica zwyczajna ogółem na ziarno | B10: D | C10: 586.6192845 | D10: Pszenica zwyczajna ogółem na ziarnoD | E10: 645.281213
A11: Pszenica zwyczajna jara na ziarno | B11: A | C11: 520.7782775 | D11: Pszenica zwyczajna jara na ziarnoA | E11: 572.8561053
A12: Pszenica zwyczajna jara na ziarno | B12: B | C12: 521.7218942 | D12: Pszenica zwyczajna jara na ziarnoB | E12: 573.8940836
A13: Pszenica zwyczajna jara na ziarno | B13: C | C13: 523.2660593 | D13: Pszenica zwyczajna jara na ziarnoC | E13: 575.5926652
A14: Pszenica zwyczajna jara na ziarno | B14: D | C14: 533.8484087 | D14: Pszenica zwyczajna jara na ziarnoD | E14: 587.2332496
A15: Pszenica zwyczajna ozima na ziarno | B15: A | C15: 562.596192 | D15: Pszenica zwyczajna ozima na ziarnoA | E15: 618.8558112
A16: Pszenica zwyczajna ozima na ziarno | B16: B | C16: 580.3222489 | D16: Pszenica zwyczajna ozima na ziarnoB | E16: 638.3544738
A17: Pszenica zwyczajna ozima na ziarno | B17: C | C17: 562.4809816 | D17: Pszenica zwyczajna ozima na ziarnoC | E17: 618.7290798
A18: Pszenica zwyczajna ozima na ziarno | B18: D | C18: 596.6806351 | D18: Pszenica zwyczajna ozima na ziarnoD | E18: 656.3486987
A19: Żyto ogółem na ziarno | B19: A | C19: 497.6182308 | D19: Żyto ogółem na ziarnoA | E19: 547.3800538
A20: Żyto ogółem na ziarno | B20: B | C20: 509.3106735 | D20: Żyto ogółem na ziarnoB | E20: 560.2417408
A21: Żyto ogółem na ziarno | B21: C | C21: 513.3811719 | D21: Żyto ogółem na ziarnoC | E21: 564.7192891
A22: Żyto ogółem na ziarno | B22: D | C22: 511.6119464 | D22: Żyto ogółem na ziarnoD | E22: 562.773141
A23: Żyto jare na ziarno | B23: A | C23: 484.4081901 | D23: Żyto jare na ziarnoA | E23: 532.8490091
A24: Żyto jare na ziarno | B24: B | C24: 504.5420019 | D24: Żyto jare na ziarnoB | E24: 554.9962021
A25: Żyto jare na ziarno | B25: C | C25: 507.6849691 | D25: Żyto jare na ziarnoC | E25: 558.453466
A26: Żyto jare na ziarno | B26: D | C26: 552.279863 | D26: Żyto jare na ziarnoD | E26: 607.5078493
A27: Żyto ozime na ziarno | B27: A | C27: 498.5868668 | D27: Żyto ozime na ziarnoA | E27: 548.4455535
A28: Żyto ozime na ziarno | B28: B | C28: 509.6423105 | D28: Żyto ozime na ziarnoB | E28: 560.6065415
A29: Żyto ozime na ziarno | B29: C | C29: 513.0305473 | D29: Żyto ozime na ziarnoC | E29: 564.333602
A30: Żyto ozime na ziarno | B30: D | C30: 511.0078909 | D30: Żyto ozime na ziarnoD | E30: 562.10868
A31: Jęczmień ogółem na ziarno | B31: A | C31: 515.7526494 | D31: Jęczmień ogółem na ziarnoA | E31: 567.3279143
A32: Jęczmień ogółem na ziarno | B32: B | C32: 517.8761225 | D32: Jęczmień ogółem na ziarnoB | E32: 569.6637348
A33: Jęczmień ogółem na ziarno | B33: C | C33: 522.4495833 | D33: Jęczmień ogółem na ziarnoC | E33: 574.6945416
A34: Jęczmień ogółem na ziarno | B34: D | C34: 524.9474616 | D34: Jęczmień ogółem na ziarnoD | E34: 577.4422078
A35: Jęczmień jary na ziarno | B35: A | C35: 498.2980428 | D35: Jęczmień jary na ziarnoA | E35: 548.1278471
A36: Jęczmień jary na ziarno | B36: B | C36: 501.3432059 | D36: Jęczmień jary na ziarnoB | E36: 551.4775265
A37: Jęczmień jary na ziarno | B37: C | C37: 516.1758895 | D37: Jęczmień jary na ziarnoC | E37: 567.7934785
A38: Jęczmień jary na ziarno | B38: D | C38: 517.682797 | D38: Jęczmień jary na ziarnoD | E38: 569.4510767
A39: Jęczmień ozimy na ziarno | B39: A | C39: 539.5592688 | D39: Jęczmień ozimy na ziarnoA | E39: 593.5151957
A40: Jęczmień ozimy na ziarno | B40: B | C40: 532.2373609 | D40: Jęczmień ozimy na ziarnoB | E40: 585.461097
A41: Jęczmień ozimy na ziarno | B41: C | C41: 529.0185473 | D41: Jęczmień ozimy na ziarnoC | E41: 581.920402
A42: Jęczmień ozimy na ziarno | B42: D | C42: 534.1876684 | D42: Jęczmień ozimy na ziarnoD | E42: 587.6064353
A43: Owies na ziarno | B43: A | C43: 478.63095 | D43: Owies na ziarnoA | E43: 526.494045
A44: Owies na ziarno | B44: B | C44: 496.3611875 | D44: Owies na ziarnoB | E44: 545.9973063
A45: Owies na ziarno | B45: C | C45: 499.3090308 | D45: Owies na ziarnoC | E45: 549.2399339
A46: Owies na ziarno | B46: D | C46: 503.4418675 | D46: Owies na ziarnoD | E46: 553.7860543
A47: Pszenżyto ogółem na ziarno | B47: A | C47: 524.5003542 | D47: Pszenżyto ogółem na ziarnoA | E47: 576.9503897
A48: Pszenżyto ogółem na ziarno | B48: B | C48: 528.6901505 | D48: Pszenżyto ogółem na ziarnoB | E48: 581.5591655
A49: Pszenżyto ogółem na ziarno | B49: C | C49: 522.1685372 | D49: Pszenżyto ogółem na ziarnoC | E49: 574.3853909
A50: Pszenżyto ogółem na ziarno | B50: D | C50: 526.3521593 | D50: Pszenżyto ogółem na ziarnoD | E50: 578.9873752
A51: Pszenżyto jare na ziarno | B51: A | C51: 515.3710771 | D51: Pszenżyto jare na ziarnoA | E51: 566.9081848
A52: Pszenżyto jare na ziarno | B52: B | C52: 533.1174806 | D52: Pszenżyto jare na ziarnoB | E52: 586.4292287
A53: Pszenżyto jare na ziarno | B53: C | C53: 510.1749766 | D53: Pszenżyto jare na ziarnoC | E53: 561.1924743
A54: Pszenżyto jare na ziarno | B54: D | C54: 516.6764496 | D54: Pszenżyto jare na ziarnoD | E54: 568.3440945
A55: Pszenżyto ozime na ziarno | B55: A | C55: 529.2393668 | D55: Pszenżyto ozime na ziarnoA | E55: 582.1633034
A56: Pszenżyto ozime na ziarno | B56: B | C56: 528.6892503 | D56: Pszenżyto ozime na ziarnoB | E56: 581.5581753
A57: Pszenżyto ozime na ziarno | B57: C | C57: 523.5104572 | D57: Pszenżyto ozime na ziarnoC | E57: 575.861503
A58: Pszenżyto ozime na ziarno | B58: D | C58: 528.129227 | D58: Pszenżyto ozime na ziarnoD | E58: 580.9421497
A59: Mieszanki zbożowe na ziarno | B59: A | C59: 494.587549 | D59: Mieszanki zbożowe na ziarnoA | E59: 544.046304
A60: Mieszanki zbożowe na ziarno | B60: B | C60: 501.5177239 | D60: Mieszanki zbożowe na ziarnoB | E60: 551.6694962
A61: Mieszanki zbożowe na ziarno | B61: C | C61: 505.9830884 | D61: Mieszanki zbożowe na ziarnoC | E61: 556.5813972
A62: Mieszanki zbożowe na ziarno | B62: D | C62: 508.7453663 | D62: Mieszanki zbożowe na ziarnoD | E62: 559.619903
A63: Mieszanki zbożowe jare na ziarno | B63: A | C63: 493.7549502 | D63: Mieszanki zbożowe jare na ziarnoA | E63: 543.1304452
A64: Mieszanki zbożowe jare na ziarno | B64: B | C64: 500.481001 | D64: Mieszanki zbożowe jare na ziarnoB | E64: 550.5291011
A65: Mieszanki zbożowe jare na ziarno | B65: C | C65: 505.8828992 | D65: Mieszanki zbożowe jare na ziarnoC | E65: 556.4711891
A66: Mieszanki zbożowe jare na ziarno | B66: D | C66: 509.3970518 | D66: Mieszanki zbożowe jare na ziarnoD | E66: 560.336757
A67: Mieszanki zbożowe ozime na ziarno | B67: A | C67: 520.2510156 | D67: Mieszanki zbożowe ozime na ziarnoA | E67: 572.2761171
A68: Mieszanki zbożowe ozime na ziarno | B68: B | C68: 520.57002 | D68: =A68&B68 -> Mieszanki zbożowe ozime na ziarnoB | E68: =C68*1.1 -> 572.627022
A69: Mieszanki zbożowe ozime na ziarno | B69: C | C69: 488.6697603 | D69: Mieszanki zbożowe ozime na ziarnoC | E69: 537.5367363
A70: Mieszanki zbożowe ozime na ziarno | B70: D | C70: 479.7822042 | D70: Mieszanki zbożowe ozime na ziarnoD | E70: 527.7604246
A71: Kukurydza (sucha i wilgotna) na ziarno | B71: A | C71: 656.5756209 | D71: Kukurydza (sucha i wilgotna) na ziarnoA | E71: 722.2331829
A72: Kukurydza (sucha i wilgotna) na ziarno | B72: B | C72: 671.0642141 | D72: Kukurydza (sucha i wilgotna) na ziarnoB | E72: 738.1706355
A73: Kukurydza (sucha i wilgotna) na ziarno | B73: C | C73: 676.5002648 | D73: Kukurydza (sucha i wilgotna) na ziarnoC | E73: 744.1502912
A74: Kukurydza (sucha i wilgotna) na ziarno | B74: D | C74: 690.339541 | D74: Kukurydza (sucha i wilgotna) na ziarnoD | E74: 759.3734951
A75: Pozostałe zboża na ziarno | B75: A | C75: 350.6872995 | D75: Pozostałe zboża na ziarnoA | E75: 385.7560294
A76: Pozostałe zboża na ziarno | B76: B | C76: 344.0538662 | D76: Pozostałe zboża na ziarnoB | E76: 378.4592528
A77: Pozostałe zboża na ziarno | B77: C | C77: 343.5696056 | D77: Pozostałe zboża na ziarnoC | E77: 377.9265661
A78: Pozostałe zboża na ziarno | B78: D | C78: 405.8988145 | D78: Pozostałe zboża na ziarnoD | E78: 446.4886959
A79: Gryka na ziarno | B79: A | C79: 344.43399 | D79: Gryka na ziarnoA | E79: 378.877389
A80: Gryka na ziarno | B80: B | C80: 353.1145759 | D80: Gryka na ziarnoB | E80: 388.4260335
A81: Gryka na ziarno | B81: C | C81: 323.2725996 | D81: Gryka na ziarnoC | E81: 355.5998596
A82: Gryka na ziarno | B82: D | C82: 349.4269508 | D82: Gryka na ziarnoD | E82: 384.3696459
A83: Proso na ziarno | B83: A | C83: 370.0513504 | D83: Proso na ziarnoA | E83: 407.0564854
A84: Proso na ziarno | B84: B | C84: 423.2990967 | D84: Proso na ziarnoB | E84: 465.6290064
A85: Proso na ziarno | B85: C | C85: 415.0168397 | D85: Proso na ziarnoC | E85: 456.5185237
A86: Proso na ziarno | B86: D | C86: 418.2447483 | D86: Proso na ziarnoD | E86: 460.0692232
A87: Pozostałe zboża na ziarno | B87: A | C87: 442.552536 | D87: Pozostałe zboża na ziarnoA | E87: 486.8077896
A88: Pozostałe zboża na ziarno | B88: B | C88: 410.740506 | D88: Pozostałe zboża na ziarnoB | E88: 451.8145566
A89: Pozostałe zboża na ziarno | B89: C | C89: 442.552536 | D89: Pozostałe zboża na ziarnoC | E89: 486.8077896
A90: Pozostałe zboża na ziarno | B90: D | C90: 442.552536 | D90: Pozostałe zboża na ziarnoD | E90: 486.8077896
A91: Strączkowe na nasiona suche | B91: A | C91: 830.2834264 | D91: Strączkowe na nasiona sucheA | E91: 913.311769
A92: Strączkowe na nasiona suche | B92: B | C92: 805.1139495 | D92: Strączkowe na nasiona sucheB | E92: 885.6253445
A93: Strączkowe na nasiona suche | B93: C | C93: 797.7956267 | D93: Strączkowe na nasiona sucheC | E93: 877.5751894
A94: Strączkowe na nasiona suche | B94: D | C94: 920.7733941 | D94: Strączkowe na nasiona sucheD | E94: 1012.850733
A95: Strączkowe jadalne na nasiona suche | B95: A | C95: 809.7154343 | D95: Strączkowe jadalne na nasiona sucheA | E95: 890.6869777
A96: Strączkowe jadalne na nasiona suche | B96: B | C96: 807.642242 | D96: Strączkowe jadalne na nasiona sucheB | E96: 888.4064662
A97: Strączkowe jadalne na nasiona suche | B97: C | C97: 942.7845545 | D97: Strączkowe jadalne na nasiona sucheC | E97: 1037.06301
A98: Strączkowe jadalne na nasiona suche | B98: D | C98: 922.6605865 | D98: Strączkowe jadalne na nasiona sucheD | E98: 1014.926645
A99: Groch konsumpcyjny na nasiona suche | B99: A | C99: 848.5190157 | D99: Groch konsumpcyjny na nasiona sucheA | E99: 933.3709173
A100: Groch konsumpcyjny na nasiona suche | B100: B | C100: 815.41567 | D100: Groch konsumpcyjny na nasiona sucheB | E100: 896.957237
A101: Groch konsumpcyjny na nasiona suche | B101: C | C101: 752.4366747 | D101: Groch konsumpcyjny na nasiona sucheC | E101: 827.6803422
A102: Groch konsumpcyjny na nasiona suche | B102: D | C102: 799.9803925 | D102: Groch konsumpcyjny na nasiona sucheD | E102: 879.9784318
A103: Fasola na nasiona suche | B103: A | C103: 824.7669963 | D103: Fasola na nasiona sucheA | E103: 907.2436959
A104: Fasola na nasiona suche | B104: B | C104: 824.7669963 | D104: Fasola na nasiona sucheB | E104: 907.2436959
A105: Fasola na nasiona suche | B105: C | C105: 853.7897453 | D105: Fasola na nasiona sucheC | E105: 939.1687198
A106: Fasola na nasiona suche | B106: D | C106: 782.5035769 | D106: Fasola na nasiona sucheD | E106: 860.7539346
A107: Bób na nasiona suche | B107: A | C107: 787.3551389 | D107: Bób na nasiona sucheA | E107: 866.0906528
A108: Bób na nasiona suche | B108: B | C108: 664.4742493 | D108: Bób na nasiona sucheB | E108: 730.9216743
A109: Bób na nasiona suche | B109: C | C109: 944.5200062 | D109: Bób na nasiona sucheC | E109: 1038.972007
A110: Bób na nasiona suche | B110: D | C110: 843.1821404 | D110: Bób na nasiona sucheD | E110: 927.5003544
A111: Soczewica na nasiona suche | B111: A | C111: 864.1156951 | D111: Soczewica na nasiona sucheA | E111: 950.5272646
A112: Soczewica na nasiona suche | B112: B | C112: 931.7450898 | D112: Soczewica na nasiona sucheB | E112: 1024.919599
A113: Soczewica na nasiona suche | B113: C | C113: 905.9608681 | D113: Soczewica na nasiona sucheC | E113: 996.5569549
A114: Soczewica na nasiona suche | B114: D | C114: 931.7450898 | D114: Soczewica na nasiona sucheD | E114: 1024.919599
A115: Soja na nasiona suche | B115: A | C115: 876.6042892 | D115: Soja na nasiona sucheA | E115: 964.2647181
A116: Soja na nasiona suche | B116: B | C116: 825.1634714 | D116: Soja na nasiona sucheB | E116: 907.6798186
A117: Soja na nasiona suche | B117: C | C117: 998.3521156 | D117: Soja na nasiona sucheC | E117: 1098.187327
A118: Soja na nasiona suche | B118: D | C118: 900.0092159 | D118: Soja na nasiona sucheD | E118: 990.0101375
A119: Strączkowe pastewne na nasiona suche | B119: A | C119: 815.5583152 | D119: Strączkowe pastewne na nasiona sucheA | E119: 897.1141468
A120: Strączkowe pastewne na nasiona suche | B120: B | C120: 718.5930965 | D120: Strączkowe pastewne na nasiona sucheB | E120: 790.4524062
A121: Strączkowe pastewne na nasiona suche | B121: C | C121: 768.0569043 | D121: Strączkowe pastewne na nasiona sucheC | E121: 844.8625947
A122: Strączkowe pastewne na nasiona suche | B122: D | C122: 834.1079169 | D122: Strączkowe pastewne na nasiona sucheD | E122: 917.5187086
A123: Groch pastewny (peluszka) na nasiona suche | B123: A | C123: 800.4909652 | D123: Groch pastewny (peluszka) na nasiona sucheA | E123: 880.5400617
A124: Groch pastewny (peluszka) na nasiona suche | B124: B | C124: 820.4741683 | D124: Groch pastewny (peluszka) na nasiona sucheB | E124: 902.5215852
A125: Groch pastewny (peluszka) na nasiona suche | B125: C | C125: 806.7445683 | D125: Groch pastewny (peluszka) na nasiona sucheC | E125: 887.4190251
A126: Groch pastewny (peluszka) na nasiona suche | B126: D | C126: 793.678859 | D126: Groch pastewny (peluszka) na nasiona sucheD | E126: 873.0467449
A127: Bobik na nasiona suche | B127: A | C127: 976.3299488 | D127: Bobik na nasiona sucheA | E127: 1073.962944
A128: Bobik na nasiona suche | B128: B | C128: 707.8433894 | D128: =A128&B128 -> Bobik na nasiona sucheB | E128: 778.6277284
A129: Bobik na nasiona suche | B129: C | C129: 887.1514559 | D129: Bobik na nasiona sucheC | E129: 975.8666015
A130: Bobik na nasiona suche | B130: D | C130: 1043.562331 | D130: Bobik na nasiona sucheD | E130: 1147.918564
A131: Łubin słodki na nasiona suche | B131: A | C131: 752.2766261 | D131: Łubin słodki na nasiona sucheA | E131: 827.5042887
A132: Łubin słodki na nasiona suche | B132: B | C132: 704.430436 | D132: Łubin słodki na nasiona sucheB | E132: =C132*1.1 -> 774.8734796
A133: Łubin słodki na nasiona suche | B133: C | C133: 743.4862502 | D133: Łubin słodki na nasiona sucheC | E133: 817.8348752
A134: Łubin słodki na nasiona suche | B134: D | C134: 768.1126619 | D134: Łubin słodki na nasiona sucheD | E134: 844.9239281
A135: Wyka ogółem na nasiona suche | B135: A | C135: 723.8874389 | D135: Wyka ogółem na nasiona sucheA | E135: 796.2761828
A136: Wyka ogółem na nasiona suche | B136: B | C136: 747.4015526 | D136: Wyka ogółem na nasiona sucheB | E136: 822.1417079
A137: Wyka ogółem na nasiona suche | B137: C | C137: 663.4737062 | D137: Wyka ogółem na nasiona sucheC | E137: 729.8210768
A138: Wyka ogółem na nasiona suche | B138: D | C138: 768.4458882 | D138: Wyka ogółem na nasiona sucheD | E138: 845.290477
A139: Wyka jara na nasiona suche | B139: A | C139: 706.8917882 | D139: Wyka jara na nasiona sucheA | E139: 777.580967
A140: Wyka jara na nasiona suche | B140: B | C140: 748.9480412 | D140: Wyka jara na nasiona sucheB | E140: 823.8428453
A141: Wyka jara na nasiona suche | B141: C | C141: 670.4488656 | D141: Wyka jara na nasiona sucheC | E141: 737.4937522
A142: Wyka jara na nasiona suche | B142: D | C142: 806.7501868 | D142: Wyka jara na nasiona sucheD | E142: 887.4252054
A143: Seradela na nasiona suche | B143: A | C143: 926.6486202 | D143: Seradela na nasiona sucheA | E143: 1019.313482
A144: Seradela na nasiona suche | B144: B | C144: 641.9464377 | D144: Seradela na nasiona sucheB | E144: 706.1410815
A145: Seradela na nasiona suche | B145: C | C145: 717.6182326 | D145: Seradela na nasiona sucheC | E145: 789.3800559
A146: Seradela na nasiona suche | B146: D | C146: 624.6500078 | D146: Seradela na nasiona sucheD | E146: 687.1150086
A147: Pozostałe strączkowe pastewne na nasiona suche | B147: A | C147: 763.5787562 | D147: Pozostałe strączkowe pastewne na nasiona sucheA | E147: 839.9366318
A148: Pozostałe strączkowe pastewne na nasiona suche | B148: B | C148: 594.456393 | D148: Pozostałe strączkowe pastewne na nasiona sucheB | E148: 653.9020323
A149: Pozostałe strączkowe pastewne na nasiona suche | B149: C | C149: 615.5049939 | D149: Pozostałe strączkowe pastewne na nasiona sucheC | E149: 677.0554933
A150: Pozostałe strączkowe pastewne na nasiona suche | B150: D | C150: 1085.823635 | D150: Pozostałe strączkowe pastewne na nasiona sucheD | E150: 1194.405998
A151: Mieszanki strączkowych z innymi roślinami ogółem na nasiona suche | B151: A | C151: 755.6616483 | D151: Mieszanki strączkowych z innymi roślinami ogółem na nasiona sucheA | E151: 831.2278131
A152: Mieszanki strączkowych z innymi roślinami ogółem na nasiona suche | B152: B | C152: 801.4868501 | D152: Mieszanki strączkowych z innymi roślinami ogółem na nasiona sucheB | E152: 881.6355351
A153: Mieszanki strączkowych z innymi roślinami ogółem na nasiona suche | B153: C | C153: 702.5162678 | D153: Mieszanki strączkowych z innymi roślinami ogółem na nasiona sucheC | E153: 772.7678946
A154: Mieszanki strączkowych z innymi roślinami ogółem na nasiona suche | B154: D | C154: 828.4712593 | D154: =A154&B154 -> Mieszanki strączkowych z innymi roślinami ogółem na nasiona sucheD | E154: 911.3183852
A155: Mieszanki strączkowych z innymi roślinami jare na nasiona suche | B155: A | C155: 753.3734936 | D155: =A155&B155 -> Mieszanki strączkowych z innymi roślinami jare na nasiona sucheA | E155: 828.7108429
A156: Mieszanki strączkowych z innymi roślinami jare na nasiona suche | B156: B | C156: 809.8606706 | D156: Mieszanki strączkowych z innymi roślinami jare na nasiona sucheB | E156: 890.8467377
A157: Mieszanki strączkowych z innymi roślinami jare na nasiona suche | B157: C | C157: 708.5910153 | D157: Mieszanki strączkowych z innymi roślinami jare na nasiona sucheC | E157: 779.4501168
A158: Mieszanki strączkowych z innymi roślinami jare na nasiona suche | B158: D | C158: 835.6237622 | D158: Mieszanki strączkowych z innymi roślinami jare na nasiona sucheD | E158: 919.1861384
A159: Rośliny przemysłowe | B159: A | C159: 986.02433 | D159: Rośliny przemysłoweA | E159: 1084.626763
A160: Rośliny przemysłowe | B160: B | C160: 1019.86526 | D160: Rośliny przemysłoweB | E160: 1121.851786
A161: Rośliny przemysłowe | B161: C | C161: 1031.016898 | D161: Rośliny przemysłoweC | E161: 1134.118588
A162: Rośliny przemysłowe | B162: D | C162: 1090.953195 | D162: Rośliny przemysłoweD | E162: 1200.048515
A163: Buraki cukrowe na korzeń | B163: A | C163: 1146.653571 | D163: Buraki cukrowe na korzeńA | E163: 1261.318928
A164: Buraki cukrowe na korzeń | B164: B | C164: 1068.521017 | D164: Buraki cukrowe na korzeńB | E164: 1175.373119
A165: Buraki cukrowe na korzeń | B165: C | C165: 1073.329556 | D165: Buraki cukrowe na korzeńC | E165: 1180.662512
A166: Buraki cukrowe na korzeń | B166: D | C166: 1197.258285 | D166: Buraki cukrowe na korzeńD | E166: 1316.984114
A167: Cykoria przemysłowa na korzeń | B167: A | C167: 684.0439322 | D167: Cykoria przemysłowa na korzeńA | E167: 752.4483254
A168: Cykoria przemysłowa na korzeń | B168: B | C168: 684.0439322 | D168: Cykoria przemysłowa na korzeńB | E168: 752.4483254
A169: Cykoria przemysłowa na korzeń | B169: C | C169: 684.0439322 | D169: Cykoria przemysłowa na korzeńC | E169: 752.4483254
A170: Cykoria przemysłowa na korzeń | B170: D | C170: 684.0439322 | D170: Cykoria przemysłowa na korzeńD | E170: 752.4483254
A171: Rośliny oleiste | B171: A | C171: 748.5818374 | D171: Rośliny oleisteA | E171: 823.4400212
A172: Rośliny oleiste | B172: B | C172: 749.2432585 | D172: Rośliny oleisteB | E172: 824.1675843
A173: Rośliny oleiste | B173: C | C173: 718.6365988 | D173: Rośliny oleisteC | E173: 790.5002587
A174: Rośliny oleiste | B174: D | C174: 747.2137144 | D174: Rośliny oleisteD | E174: 821.9350859
A175: Rzepak i rzepik ogółem oleisty | B175: A | C175: 747.5786255 | D175: Rzepak i rzepik ogółem oleistyA | E175: 822.3364881
A176: Rzepak i rzepik ogółem oleisty | B176: B | C176: 740.5912743 | D176: Rzepak i rzepik ogółem oleistyB | E176: 814.6504017
A177: Rzepak i rzepik ogółem oleisty | B177: C | C177: 721.6855897 | D177: Rzepak i rzepik ogółem oleistyC | E177: 793.8541487
A178: Rzepak i rzepik ogółem oleisty | B178: D | C178: 750.921268 | D178: Rzepak i rzepik ogółem oleistyD | E178: 826.0133948
A179: Rzepak i rzepik jary oleisty | B179: A | C179: 685.3705689 | D179: Rzepak i rzepik jary oleistyA | E179: 753.9076258
A180: Rzepak i rzepik jary oleisty | B180: B | C180: 718.2924572 | D180: Rzepak i rzepik jary oleistyB | E180: 790.1217029
A181: Rzepak i rzepik jary oleisty | B181: C | C181: 699.4705728 | D181: Rzepak i rzepik jary oleistyC | E181: 769.41763
A182: Rzepak i rzepik jary oleisty | B182: D | C182: 800.9490348 | D182: Rzepak i rzepik jary oleistyD | E182: 881.0439382
A183: Rzepak i rzepik ozimy oleisty | B183: A | C183: 747.7728 | D183: Rzepak i rzepik ozimy oleistyA | E183: 822.55008
A184: Rzepak i rzepik ozimy oleisty | B184: B | C184: 741.8821937 | D184: Rzepak i rzepik ozimy oleistyB | E184: 816.070413
A185: Rzepak i rzepik ozimy oleisty | B185: C | C185: 723.3060247 | D185: Rzepak i rzepik ozimy oleistyC | E185: 795.6366271
A186: Rzepak i rzepik ozimy oleisty | B186: D | C186: 748.0314379 | D186: Rzepak i rzepik ozimy oleistyD | E186: 822.8345817
A187: Słonecznik oleisty | B187: A | C187: 938.137888 | D187: Słonecznik oleistyA | E187: 1031.951677
A188: Słonecznik oleisty | B188: B | C188: 1202.281341 | D188: Słonecznik oleistyB | E188: 1322.509475
A189: Słonecznik oleisty | B189: C | C189: 900.0693128 | D189: Słonecznik oleistyC | E189: 990.0762441
A190: Słonecznik oleisty | B190: D | C190: 828.033899 | D190: Słonecznik oleistyD | E190: 910.8372889
A191: Len i lnianka oleiste | B191: A | C191: 793.9104783 | D191: Len i lnianka oleisteA | E191: 873.3015261
A192: Len i lnianka oleiste | B192: B | C192: 637.9178461 | D192: Len i lnianka oleisteB | E192: 701.7096307
A193: Len i lnianka oleiste | B193: C | C193: 440.753339 | D193: Len i lnianka oleisteC | E193: 484.8286729
A194: Len i lnianka oleiste | B194: D | C194: 736.1062048 | D194: Len i lnianka oleisteD | E194: 809.7168253
A195: Soja oleista | B195: A | C195: 617.1973156 | D195: Soja oleistaA | E195: 678.9170472
A196: Soja oleista | B196: B | C196: 617.1973156 | D196: =A196&B196 -> Soja oleistaB | E196: =C196*1.1 -> 678.9170472
A197: Soja oleista | B197: C | C197: 605.1488531 | D197: Soja oleistaC | E197: 665.6637384
A198: Soja oleista | B198: D | C198: 617.1973156 | D198: Soja oleistaD | E198: 678.9170472
A199: Pozostałe rośliny oleiste | B199: A | C199: 744.9780513 | D199: Pozostałe rośliny oleisteA | E199: 819.4758565
A200: Pozostałe rośliny oleiste | B200: B | C200: 611.7435183 | D200: Pozostałe rośliny oleisteB | E200: 672.9178702
A201: Pozostałe rośliny oleiste | B201: C | C201: 919.1863341 | D201: Pozostałe rośliny oleisteC | E201: 1011.104968
... 425 more rows

Sheet Kalendarz (hidden)
B1: Miesiąc | F1: Dzień
A3: 1 | B3: Styczeń | F3: 1
A4: 2 | B4: Luty | F4: 2
A5: 3 | B5: Marzec | F5: 3
A6: 4 | B6: Kwiecień | F6: 4
A7: 5 | B7: Maj | F7: 5
A8: 6 | B8: Czerwiec | F8: 6
A9: 7 | B9: Lipiec | F9: 7
A10: 8 | B10: Sierpień | F10: 8
A11: 9 | B11: Wrzesień | F11: 9
A12: 10 | B12: Październik | F12: 10
A13: 11 | B13: Listopad | F13: 11
A14: 12 | B14: Grudzień | F14: 12
F15: 13
F16: 14
F17: 15
F18: 16
F19: 17
F20: 18
F21: 19
F22: 20
F23: 21
F24: 22
F25: 23
F26: 24
F27: 25
F28: 26
F29: 27
F30: 28
F31: 29
F32: 30
F33: 31
